Workbook

Sheet Running Totals

Sheet Donation Averages

Sheet Income Source Analytics

Sheet Donations by Class
A41: Row Labels | B41: Count of donate_id | C41: Sum of donate_amount | D41: Average of donate_amount2
A42: 1925 | B42: 1 | C42: 100 | D42: 100
A43: 1938 | B43: 1 | C43: 50 | D43: 50
A44: 1941 | B44: 1 | C44: 20 | D44: 20
A45: 1944 | B45: 1 | C45: 40 | D45: 40
A46: 1945 | B46: 1 | C46: 100 | D46: 100
A47: 1946 | B47: 6 | C47: 375 | D47: 62.5
A48: 1948 | B48: 10 | C48: 870 | D48: 87
A49: 1949 | B49: 10 | C49: 615 | D49: 61.5
A50: 1950 | B50: 1 | C50: 50 | D50: 50
A51: 1951 | B51: 14 | C51: 1652 | D51: 118
A52: 1955 | B52: 33 | C52: 3130 | D52: 94.84848485
A53: 1956 | B53: 27 | C53: 1581 | D53: 58.55555556
A54: 1957 | B54: 23 | C54: 3434 | D54: 149.3043478
A55: 1958 | B55: 57 | C55: 4130.58 | D55: 72.46631579
A56: 1959 | B56: 32 | C56: 1963 | D56: 61.34375
A57: 1960 | B57: 12 | C57: 950 | D57: 79.16666667
A58: 1961 | B58: 1 | C58: 25 | D58: 25
A59: 1962 | B59: 4 | C59: 375 | D59: 93.75
A60: 1963 | B60: 47 | C60: 2105.19 | D60: 44.7912766
A61: 1964 | B61: 103 | C61: 9026.29 | D61: 87.6338835
A62: 1965 | B62: 34 | C62: 2075 | D62: 61.02941176
A63: 1966 | B63: 66 | C63: 4528 | D63: 68.60606061
A64: 1967 | B64: 17 | C64: 1522 | D64: 89.52941176
A65: 1968 | B65: 31 | C65: 1900 | D65: 61.29032258
A66: 1969 | B66: 41 | C66: 3108.69 | D66: 75.82170732
A67: 1970 | B67: 3 | C67: 571 | D67: 190.3333333
A68: 1971 | B68: 2 | C68: 200 | D68: 100
A69: 1972 | B69: 1 | C69: 100 | D69: 100
A70: 1973 | B70: 1 | C70: 100 | D70: 100
A71: 1974 | B71: 1 | C71: 50 | D71: 50
A72: 1975 | B72: 48 | C72: 3075 | D72: 64.0625
A73: 1976 | B73: 1 | C73: 19.76 | D73: 19.76
A74: 1977 | B74: 21 | C74: 896.24 | D74: 42.67809524
A75: 1978 | B75: 41 | C75: 1964 | D75: 47.90243902
A76: 1979 | B76: 34 | C76: 2857.96 | D76: 84.05764706
A77: 1980 | B77: 19 | C77: 940 | D77: 49.47368421
A78: 1981 | B78: 10 | C78: 140 | D78: 14
A79: 1982 | B79: 4 | C79: 348.29 | D79: 87.0725
A80: 1983 | B80: 1 | C80: 100 | D80: 100
A81: 1984 | B81: 1 | C81: 50 | D81: 50
A82: 1985 | B82: 2 | C82: 250 | D82: 125
A83: 1986 | B83: 12 | C83: 190 | D83: 15.83333333
A84: 1987 | B84: 4 | C84: 115 | D84: 28.75
A85: 1989 | B85: 31 | C85: 3048.12 | D85: 98.32645161
A86: 1990 | B86: 1 | C86: 250 | D86: 250
A87: 1992 | B87: 2 | C87: 300 | D87: 150
A88: 1993 | B88: 1 | C88: 25 | D88: 25
A89: 1995 | B89: 1 | C89: 25 | D89: 25
A90: 1996 | B90: 1 | C90: 20 | D90: 20
A91: 1997 | B91: 1 | C91: 50 | D91: 50
A92: 1999 | B92: 1 | C92: 50 | D92: 50
A93: 2001 | B93: 2 | C93: 300 | D93: 150
A94: 2003 | B94: 2 | C94: 125 | D94: 62.5
A95: 2004 | B95: 2 | C95: 75 | D95: 37.5
A96: 2005 | B96: 9 | C96: 225 | D96: 25
A97: 2007 | B97: 19 | C97: 590 | D97: 31.05263158
A98: 2008 | B98: 3 | C98: 340 | D98: 113.3333333
A99: 2009 | B99: 12 | C99: 325.81 | D99: 27.15083333
A100: 2010 | B100: 3 | C100: 400 | D100: 133.3333333
A101: 2011 | B101: 10 | C101: 195 | D101: 19.5
A102: 2012 | B102: 5 | C102: 325 | D102: 65
A103: 2013 | B103: 5 | C103: 205 | D103: 41
A104: 2014 | B104: 3 | C104: 120 | D104: 40
A105: 2015 | B105: 13 | C105: 380 | D105: 29.23076923
A106: 2016 | B106: 15 | C106: 385 | D106: 25.66666667
A107: 2017 | B107: 1 | C107: 50 | D107: 50
A108: 2018 | B108: 1 | C108: 50 | D108: 50
A109: 2019 | B109: 14 | C109: 215 | D109: 15.35714286
A110: 2020 | B110: 2 | C110: 75 | D110: 37.5
A111: 2023 | B111: 1 | C111: 100 | D111: 100
A112: (blank) | B112: 27 | C112: 1915 | D112: 70.92592593
A113: Grand Total | B113: 968 | C113: 65856.93 | D113: 68.0340186

Sheet Fund Drive Budget History
A1: 8 | B1: Fall 2000 | C1: 68617
A2: 9 | B2: Spring 2001 | C2: 102827
A3: 10 | B3: Fall 2001 | C3: 95623
A4: 11 | B4: Spring 2002 | C4: 111701
A5: 12 | B5: Fall 2002 | C5: 106844
A6: 13 | B6: Spring 2003 | C6: 102871
A7: 14 | B7: Fall 2003 | C7: 98477
A8: 15 | B8: Spring 2004 | C8: 108900
A9: 16 | B9: Fall 2004 | C9: 113124
A10: 17 | B10: Spring 2005 | C10: 118619
A11: 18 | B11: Fall 2005 | C11: 111051
A12: 19 | B12: Spring 2006 | C12: 113413
A13: 20 | B13: Fall 2006 | C13: 95079
A14: 21 | B14: Spring 2007 | C14: 103994
A15: 22 | B15: Fall 2007 | C15: 116556
A16: 23 | B16: Spring 2008 | C16: 107504
A17: 24 | B17: Fall 2008 | C17: 108019
A18: 25 | B18: Spring 2009 | C18: 113444
A19: 26 | B19: Fall 2009 | C19: 109229
A20: 27 | B20: Spring 2010 | C20: 98094
A21: 28 | B21: Fall 2010 | C21: 96500
A22: 29 | B22: Spring 2011 | C22: 104010
A23: 30 | B23: Fall 2011 | C23: 98593
A24: 31 | B24: Spring 2012 | C24: 104884
A25: 32 | B25: Fall 2012 | C25: 117343
A26: 33 | B26: Spring 2013 | C26: 104622
A27: 34 | B27: Fall 2013 | C27: 97167
A28: 35 | B28: Spring 2014 | C28: 99462
A29: 36 | B29: Fall 2014 | C29: 98667
A30: 37 | B30: Spring 2015 | C30: 101357
A31: 38 | B31: Fall 2015 | C31: 99590
A32: 39 | B32: Spring 2016 | C32: 89448
A33: 40 | B33: Fall 2016 | C33: 95352
A34: 41 | B34: Spring 2017 | C34: 96226
A35: 42 | B35: Fall 2017 | C35: 92344
A36: 43 | B36: Spring 2018 | C36: 96226
A37: 44 | B37: Fall 2018 | C37: 74104
A38: 45 | B38: Spring 2019 | C38: 74493
A39: 46 | B39: Fall 2019 | C39: 75511.82
A40: 47 | B40: Spring 2020 | C40: 65854

Sheet Tables
AJ1: FD 46 | BS1: FD 45 | DB1: FD 44 | EK1: FD 43
A2: Day | B2: Date | C2: Goal | D2: Cash # | E2: Cash Amt | F2: Credit Card # | G2: Credit Card Amt | H2: PayPal # | I2: PayPal Amt | J2: Check # | K2: Check Amt | L2: Operating Budget | M2: Donations by Day | N2: Total Donations | O2: Avg Overall Donation Amt | P2: Avg Donation/Day | Q2: Average Donated Daily | R2: Daily % of Goal | S2: Daily % Cash $ | T2: Daily % Cash # | U2: Overall % Cash $ | V2: Overall % Cash # | W2: Daily % CC $ | X2: Daily % CC # | Y2: Overall % CC $ | Z2: Overall % CC # | AA2: Daily % PP $ | AB2: Daily % PP # | AC2: Overall % PP $ | AD2: Overall % PP # | AE2: Daily % Chk $ | AF2: Daily % Chk # | AG2: Overall % Chk $ | AH2: Overall % Chk # | AJ2: Day | AK2: Date | AL2: Goal | AM2: Cash # | AN2: Cash Amt | AO2: Credit Card # | AP2: Credit Card Amt | AQ2: PayPal # | AR2: PayPal Amt | AS2: Check # | AT2: Check Amt | AU2: Operating Budget | AV2: Donations by Day | AW2: Total Donations | AX2: Avg Overall Donation Amt | AY2: Avg Donation/Day | AZ2: Average Donated Daily | BA2: Daily % of Goal | BB2: Daily % Cash $ | BC2: Daily % Cash # | BD2: Overall % Cash $ | BE2: Overall % Cash # | BF2: Daily % CC $ | BG2: Daily % CC # | BH2: Overall % CC $ | BI2: Overall % CC # | BJ2: Daily % PP $ | BK2: Daily % PP # | BL2: Overall % PP $ | BM2: Overall % PP # | BN2: Daily % Chk $ | BO2: Daily % Chk # | BP2: Overall % Chk $ | BQ2: Overall % Chk # | BS2: Day | BT2: Date | BU2: Goal | BV2: Cash # | BW2: Cash Amt | BX2: Credit Card # | BY2: Credit Card Amt | BZ2: PayPal # | CA2: PayPal Amt | CB2: Check # | CC2: Check Amt | CD2: Operating Budget | CE2: Donations by Day | CF2: Total Donations | CG2: Avg Overall Donation Amt | CH2: Avg Donation/Day | CI2: Average Donated Daily | CJ2: Daily % of Goal | CK2: Daily % Cash $ | CL2: Daily % Cash # | CM2: Overall % Cash $ | CN2: Overall % Cash # | CO2: Daily % CC $ | CP2: Daily % CC # | CQ2: Overall % CC $ | CR2: Overall % CC # | CS2: Daily % PP $ | CT2: Daily % PP # | CU2: Overall % PP $ | CV2: Overall % PP # | CW2: Daily % Chk $ | CX2: Daily % Chk # | CY2: Overall % Chk $ | CZ2: Overall % Chk # | DB2: Day | DC2: Date | DD2: Goal | DE2: Cash # | DF2: Cash Amt | DG2: Credit Card # | DH2: Credit Card Amt | DI2: PayPal # | DJ2: PayPal Amt | DK2: Check # | DL2: Check Amt | DM2: Operating Budget | DN2: Donations by Day | DO2: Total Donations | DP2: Avg Overall Donation Amt | DQ2: Avg Donation/Day | DR2: Average Donated Daily | DS2: Daily % of Goal | DT2: Daily % Cash $ | DU2: Daily % Cash # | DV2: Overall % Cash $ | DW2: Overall % Cash # | DX2: Daily % CC $ | DY2: Daily % CC # | DZ2: Overall % CC $ | EA2: Overall % CC # | EB2: Daily % PP $ | EC2: Daily % PP # | ED2: Overall % PP $ | EE2: Overall % PP # | EF2: Daily % Chk $ | EG2: Daily % Chk # | EH2: Overall % Chk $ | EI2: Overall % Chk # | EK2: Day | EL2: Date | EM2: Goal | EN2: Cash # | EO2: Cash Amt | EP2: Credit Card # | EQ2: Credit Card Amt | ER2: PayPal # | ES2: PayPal Amt | ET2: Check # | EU2: Check Amt | EV2: Operating Budget | EW2: Donations by Day | EX2: Total Donations | EY2: Avg Overall Donation Amt | EZ2: Avg Donation/Day | FA2: Average Donated Daily | FB2: Daily % of Goal | FC2: Daily % Cash $ | FD2: Daily % Cash # | FE2: Overall % Cash $ | FF2: Overall % Cash # | FG2: Daily % CC $ | FH2: Daily % CC # | FI2: Overall % CC $ | FJ2: Overall % CC # | FK2: Daily % PP $ | FL2: Daily % PP # | FM2: Overall % PP $ | FN2: Overall % PP # | FO2: Daily % Chk $ | FP2: Daily % Chk # | FQ2: Overall % Chk $ | FR2: Overall % Chk #
A3: Pre-Fund Drive | C3: 65854 | D3: =COUNTIFS('Sanitized Raw Data'!$H:$H,"<"&B4,'Sanitized Raw Data'!$D:$D,"Cash") -> 0 | E3: =SUMIFS('Sanitized Raw Data'!$C:$C,'Sanitized Raw Data'!$H:$H,"<"&B4,'Sanitized Raw Data'!$D:$D,"Cash") -> 0 | F3: =COUNTIFS('Sanitized Raw Data'!$H:$H,"<"&B4,'Sanitized Raw Data'!$D:$D,"CC") -> 21 | G3: =SUMIFS('Sanitized Raw Data'!$C:$C,'Sanitized Raw Data'!$H:$H,"<"&B4,'Sanitized Raw Data'!$D:$D,"CC") -> 2460.69 | H3: =COUNTIFS('Sanitized Raw Data'!$H:$H,"<"&B4,'Sanitized Raw Data'!$D:$D,"PayPal") -> 165 | I3: =SUMIFS('Sanitized Raw Data'!$C:$C,'Sanitized Raw Data'!$H:$H,"<"&B4,'Sanitized Raw Data'!$D:$D,"PayPal") -> 3373.72 | J3: =COUNTIFS('Sanitized Raw Data'!$H:$H,"<"&B4,'Sanitized Raw Data'!$D:$D,"Personal Check") -> 66 | K3: =SUMIFS('Sanitized Raw Data'!$C:$C,'Sanitized Raw Data'!$H:$H,"<"&B4,'Sanitized Raw Data'!$D:$D,"Personal Check") -> 5705.66 | L3: =SUM(E3,K3,I3,G3) -> 11540.07 | M3: =SUM(D3,F3,H3,J3) -> 252 | N3: =SUM(D3,J3,H3,F3) -> 252 | O3: =L3/N3 -> 45.79392857 | P3: =(SUM(E3,K3,I3,G3))/(SUM(D3,F3,H3,J3)) -> 45.79392857 | R3: =(L3/C$3) -> 0.1752371914 | S3: =E3/L3 -> 0 | T3: =D3/M3 -> 0 | U3: =B3/H3 -> 0 | V3: =B3/J3 -> 0 | W3: =G3/L3 -> 0.2132300757 | X3: =F3/M3 -> 0.08333333333 | Y3: =F3/L3 -> 0.001819746327 | Z3: =F3/N3 -> 0.08333333333 | AA3: =I3/L3 -> 0.2923483133 | AB3: =H3/M3 -> 0.6547619048 | AC3: =I3/L3 -> 0.2923483133 | AD3: =H3/N3 -> 0.6547619048 | AE3: =K3/L3 -> 0.494421611 | AF3: =J3/M3 -> 0.2619047619 | AG3: =K3/L3 -> 0.494421611 | AH3: =J3/N3 -> 0.2619047619 | AJ3: Pre-Fund Drive | AL3: 76366 | AM3: 0 | AN3: 0 | AO3: 0 | AP3: 0 | AQ3: 88 | AR3: 2170.82 | AS3: 29 | AT3: 2963.79 | AU3: 5134.61 | AV3: 117 | AW3: 117 | AX3: 43.88555556 | AY3: 43.88555556 | BA3: 0.06723685934 | BB3: 0 | BC3: 0 | BD3: 0 | BE3: 0 | BF3: 0 | BG3: 0 | BH3: 0 | BI3: 0 | BJ3: 0.4227818666 | BK3: 0.7521367521 | BL3: 0.4227818666 | BM3: 0.7521367521 | BN3: 0.5772181334 | BO3: 0.2478632479 | BP3: 0.5772181334 | BQ3: 0.2478632479 | BS3: Pre-Fund Drive | BU3: 74493 | BV3: 0 | BW3: 0 | BX3: 0 | BY3: 0 | BZ3: 80 | CA3: 1382.78 | CB3: 44 | CC3: 5175.79 | CD3: 6558.57 | CE3: 124 | CF3: 124 | CG3: 52.89169355 | CH3: 52.89169355 | CJ3: 0.08804276912 | CK3: 0 | CL3: 0 | CM3: 0 | CN3: 0 | CO3: 0 | CP3: 0 | CQ3: 0 | CR3: 0 | CS3: 0.2108355937 | CT3: 0.6451612903 | CU3: 0.2108355937 | CV3: 0.6451612903 | CW3: 0.7891644063 | CX3: 0.3548387097 | CY3: 0.7891644063 | CZ3: 0.3548387097 | DB3: Pre-Fund Drive | DD3: 74104 | DE3: 0 | DF3: 0 | DG3: 0 | DH3: 0 | DI3: 70 | DJ3: 1421.71 | DK3: 22 | DL3: 1044.58 | DM3: 2466.29 | DN3: 92 | DO3: 92 | DP3: 26.8075 | DQ3: 26.8075 | DS3: 0.03328146929 | DT3: 0 | DU3: 0 | DV3: 0 | DW3: 0 | DX3: 0 | DY3: 0 | DZ3: 0 | EA3: 0 | EB3: 0.5764569455 | EC3: 0.7608695652 | ED3: 0.5764569455 | EE3: 0.7608695652 | EF3: 0.4235430545 | EG3: 0.2391304348 | EH3: 0.4235430545 | EI3: 0.2391304348 | EK3: Pre-Fund Drive | EM3: 96226 | EN3: 0 | EO3: 0 | EP3: 7 | EQ3: 330 | ER3: 101 | ES3: 4160.26 | ET3: 29 | EU3: 2119.77 | EV3: 6610.03 | EW3: 137 | EX3: 137 | EY3: 48.24839416 | EZ3: 48.24839416 | FB3: 0.06869276495 | FC3: 0 | FD3: 0 | FE3: 0 | FF3: 0 | FG3: 0.04992413045 | FH3: 0.05109489051 | FI3: 0.001058996707 | FJ3: 0.05109489051 | FK3: 0.6293859483 | FL3: 0.7372262774 | FM3: 0.6293859483 | FN3: 0.7372262774 | FO3: 0.3206899212 | FP3: 0.2116788321 | FQ3: 0.3206899212 | FR3: 0.2116788321
A4: Day 1 | B4: 2020-07-15 | C4: 65854 | D4: =COUNTIFS('Sanitized Raw Data'!$H:$H,">="&$B4,'Sanitized Raw Data'!$H:$H,"<"&$B5,'Sanitized Raw Data'!$D:$D,"Cash") -> 0 | E4: =SUMIFS('Sanitized Raw Data'!$C:$C,'Sanitized Raw Data'!$H:$H,">="&$B4,'Sanitized Raw Data'!$H:$H,"<"&$B5,'Sanitized Raw Data'!$D:$D,"Cash") -> 0 | F4: =COUNTIFS('Sanitized Raw Data'!$H:$H,">="&$B4,'Sanitized Raw Data'!$H:$H,"<"&$B5,'Sanitized Raw Data'!$D:$D,"CC") -> 203 | G4: =SUMIFS('Sanitized Raw Data'!$C:$C,'Sanitized Raw Data'!$H:$H,">="&$B4,'Sanitized Raw Data'!$H:$H,"<"&$B5,'Sanitized Raw Data'!$D:$D,"CC") -> 16744.55 | H4: =COUNTIFS('Sanitized Raw Data'!$H:$H,">="&$B4,'Sanitized Raw Data'!$H:$H,"<"&$B5,'Sanitized Raw Data'!$D:$D,"PayPal") -> 9 | I4: =SUMIFS('Sanitized Raw Data'!$C:$C,'Sanitized Raw Data'!$H:$H,">="&$B4,'Sanitized Raw Data'!$H:$H,"<"&$B5,'Sanitized Raw Data'!$D:$D,"PayPal") -> 265 | J4: =COUNTIFS('Sanitized Raw Data'!$H:$H,">="&$B4,'Sanitized Raw Data'!$H:$H,"<"&$B5,'Sanitized Raw Data'!$D:$D,"Personal Check") -> 22 | K4: =SUMIFS('Sanitized Raw Data'!$C:$C,'Sanitized Raw Data'!$H:$H,">="&$B4,'Sanitized Raw Data'!$H:$H,"<"&$B5,'Sanitized Raw Data'!$D:$D,"Personal Check") -> 1490 | L4: =SUM(E4,K4,I4,G4,L3) -> 30039.62 | M4: 234 | N4: =SUM(D4,J4,H4,F4,N3) -> 486 | O4: =L4/N4 -> 61.8099177 | P4: =(SUM(E4,K4,I4,G4))/(SUM(D4,F4,H4,J4)) -> 79.05790598 | Q4: =L4/Sheet11!$A1 -> 30039.62 | R4: =(L4-L3)/C$3 -> 0.280917636 | S4: =E4/(L4-L3) -> 0 | T4: =D4/M4 -> 0 | U4: =SUM(E$3:E4)/L4 -> 0 | V4: =SUM(D$3:D4)/M4 -> 0 | W4: =G4/(L4-L3) -> 0.9051328276 | X4: =F4/M4 -> 0.8675213675 | Y4: =SUM(G$3:G4)/L4 -> 0.6393303244 | Z4: =SUM(F$3:F4)/N4 -> 0.4609053498 | AA4: =I4/(L4-L3) -> 0.01432467276 | AB4: =H4/M4 -> 0.03846153846 | AC4: =SUM(I$3:I4)/L4 -> 0.1211306934 | AD4: =SUM(H$3:H4)/N4 -> 0.3580246914 | AE4: =K4/(L4-L3) -> 0.08054249968 | AF4: =J4/M4 -> 0.09401709402 | AG4: =SUM(K$3:K4)/L4 -> 0.2395389822 | AH4: =SUM(J$3:J4)/N4 -> 0.1810699588 | AJ4: Day 1 | AK4: 2019-10-07 | AL4: 76366 | AM4: 0 | AN4: 0 | AO4: 31 | AP4: 3227.28 | AQ4: 11 | AR4: 474 | AS4: 6 | AT4: 569 | AU4: 9404.89 | AV4: 48 | AW4: 165 | AX4: 56.99933333 | AY4: 88.96416667 | AZ4: 9404.89 | BA4: 0.05591860252 | BB4: 0 | BC4: 0 | BD4: 0 | BE4: 0 | BF4: 0.7557537211 | BG4: 0.6458333333 | BH4: 0.343149149 | BI4: 0.1878787879 | BJ4: 0.1109997471 | BK4: 0.2291666667 | BL4: 0.2812175368 | BM4: 0.6 | BN4: 0.1332465318 | BO4: 0.125 | BP4: 0.3756333142 | BQ4: 0.2121212121 | BS4: Day 1 | BT4: 2019-04-08 | BU4: 74493 | BV4: 0 | BW4: 0 | BX4: 124 | BY4: 7977.19 | BZ4: 35 | CA4: 1338.46 | CB4: 20 | CC4: 1274.59 | CD4: 17148.81 | CE4: 179 | CF4: 303 | CG4: 56.59673267 | CH4: 59.16335196 | CI4: 17148.81 | CJ4: 0.1421642302 | CK4: 0 | CL4: 0 | CM4: 0 | CN4: 0 | CO4: 0.7532586608 | CP4: 0.6927374302 | CQ4: 0.4651745515 | CR4: 0.4092409241 | CS4: 0.126386182 | CT4: 0.1955307263 | CU4: 0.158683897 | CV4: 0.3795379538 | CW4: 0.1203551572 | CX4: 0.1117318436 | CY4: 0.3761415515 | CZ4: 0.2112211221 | DB4: Day 1 | DC4: 2018-10-09 | DD4: 74104 | DE4: 0 | DF4: 0 | DG4: 123 | DH4: 9141.66 | DI4: 27 | DJ4: 1652.89 | DK4: 21 | DL4: 1207.55 | DM4: 14468.39 | DN4: 171 | DO4: 263 | DP4: 55.01288973 | DQ4: 70.1877193 | DR4: 14468.39 | DS4: 0.161962917 | DT4: 0 | DU4: 0 | DV4: 0 | DW4: 0 | DX4: 0.7616717075 | DY4: 0.7192982456 | DZ4: 0.6318367144 | EA4: 0.4676806084 | EB4: 0.1377167329 | EC4: 0.1578947368 | ED4: 0.2125046394 | EE4: 0.3688212928 | EF4: 0.1006115596 | EG4: 0.1228070175 | EH4: 0.1556586462 | EI4: 0.1634980989 | EK4: Day 1 | EL4: 2018-04-09 | EM4: 96226 | EN4: 0 | EO4: 0 | EP4: 78 | EQ4: 5334.96 | ER4: 17 | ES4: 688.84 | ET4: 17 | EU4: 1118.79 | EV4: 13752.62 | EW4: 112 | EX4: 249 | EY4: 55.23140562 | EZ4: 63.773125 | FA4: 13752.62 | FB4: 0.07422723588 | FC4: 0 | FD4: 0 | FE4: 0 | FF4: 0 | FG4: 0.7469223349 | FH4: 0.6964285714 | FI4: 0.4119186017 | FJ4: 0.3413654618 | FK4: 0.0964412069 | FL4: 0.1517857143 | FM4: 0.3525946329 | FN4: 0.4738955823 | FO4: 0.1566364582 | FP4: 0.1517857143 | FQ4: 0.2354867654 | FR4: 0.1847389558
A5: Day 2 | B5: 2020-07-16 | C5: 65854 | D5: =COUNTIFS('Sanitized Raw Data'!$H:$H,">="&$B5,'Sanitized Raw Data'!$H:$H,"<"&$B6,'Sanitized Raw Data'!$D:$D,"Cash") -> 0 | E5: =SUMIFS('Sanitized Raw Data'!$C:$C,'Sanitized Raw Data'!$H:$H,">="&$B5,'Sanitized Raw Data'!$H:$H,"<"&$B6,'Sanitized Raw Data'!$D:$D,"Cash") -> 0 | F5: =COUNTIFS('Sanitized Raw Data'!$H:$H,">="&$B5,'Sanitized Raw Data'!$H:$H,"<"&$B6,'Sanitized Raw Data'!$D:$D,"CC") -> 47 | G5: =SUMIFS('Sanitized Raw Data'!$C:$C,'Sanitized Raw Data'!$H:$H,">="&$B5,'Sanitized Raw Data'!$H:$H,"<"&$B6,'Sanitized Raw Data'!$D:$D,"CC") -> 3898.15 | H5: =COUNTIFS('Sanitized Raw Data'!$H:$H,">="&$B5,'Sanitized Raw Data'!$H:$H,"<"&$B6,'Sanitized Raw Data'!$D:$D,"PayPal") -> 4 | I5: =SUMIFS('Sanitized Raw Data'!$C:$C,'Sanitized Raw Data'!$H:$H,">="&$B5,'Sanitized Raw Data'!$H:$H,"<"&$B6,'Sanitized Raw Data'!$D:$D,"PayPal") -> 330 | J5: =COUNTIFS('Sanitized Raw Data'!$H:$H,">="&$B5,'Sanitized Raw Data'!$H:$H,"<"&$B6,'Sanitized Raw Data'!$D:$D,"Personal Check") -> 11 | K5: =SUMIFS('Sanitized Raw Data'!$C:$C,'Sanitized Raw Data'!$H:$H,">="&$B5,'Sanitized Raw Data'!$H:$H,"<"&$B6,'Sanitized Raw Data'!$D:$D,"Personal Check") -> 970 | L5: =SUM(E5,K5,I5,G5,L4) -> 35237.77 | M5: =SUM(D5,F5,H5,J5) -> 62 | N5: =SUM(D5,J5,H5,F5,N4) -> 548 | O5: =L5/N5 -> 64.3025 | P5: =(SUM(E5,K5,I5,G5))/(SUM(D5,F5,H5,J5)) -> 83.84112903 | Q5: =L5/Sheet11!$A2 -> 17618.885 | R5: =(L5-L4)/C$3 -> 0.07893446108 | S5: =E5/(L5-L4) -> 0 | T5: =D5/M5 -> 0 | U5: =SUM(E$3:E5)/L5 -> 0 | V5: =SUM(D$3:D5)/M5 -> 0 | W5: =G5/(L5-L4) -> 0.749911026 | X5: =F5/M5 -> 0.7580645161 | Y5: =SUM(G$3:G5)/L5 -> 0.6556427946 | Z5: =SUM(F$3:F5)/N5 -> 0.4945255474 | AA5: =I5/(L5-L4) -> 0.06348412416 | AB5: =H5/M5 -> 0.06451612903 | AC5: =SUM(I$3:I5)/L5 -> 0.1126268774 | AD5: =SUM(H$3:H5)/N5 -> 0.3248175182 | AE5: =K5/(L5-L4) -> 0.1866048498 | AF5: =J5/M5 -> 0.1774193548 | AG5: =SUM(K$3:K5)/L5 -> 0.231730328 | AH5: =SUM(J$3:J5)/N5 -> 0.1806569343 | AJ5: Day 2 | AK5: 2019-10-08 | AL5: 76366 | AM5: 0 | AN5: 0 | AO5: 71 | AP5: 4453.26 | AQ5: 17 | AR5: 739.68 | AS5: 14 | AT5: 957 | AU5: 15554.83 | AV5: 102 | AW5: 267 | AX5: 58.25779026 | AY5: 60.29352941 | AZ5: 7777.415 | BA5: 0.0805324359 | BB5: 0 | BC5: 0 | BD5: 0 | BE5: 0 | BF5: 0.7241143816 | BG5: 0.6960784314 | BH5: 0.4937720309 | BI5: 0.3820224719 | BJ5: 0.1202743441 | BK5: 0.1666666667 | BL5: 0.2175851488 | BM5: 0.4344569288 | BN5: 0.1556112743 | BO5: 0.137254902 | BP5: 0.2886428203 | BQ5: 0.1835205993 | BS5: Day 2 | BT5: 2019-04-09 | BU5: 74493 | BV5: 0 | BW5: 0 | BX5: 31 | BY5: 2853.89 | BZ5: 11 | CA5: 598 | CB5: 15 | CC5: 881 | CD5: 21481.7 | CE5: 57 | CF5: 360 | CG5: 59.67138889 | CH5: 76.01561404 | CI5: 10740.85 | CJ5: 0.05816506249 | CK5: 0 | CL5: 0 | CM5: 0 | CN5: 0 | CO5: 0.6586573857 | CP5: 0.5438596491 | CQ5: 0.5042003193 | CR5: 0.4305555556 | CS5: 0.1380141199 | CT5: 0.1929824561 | CU5: 0.154514773 | CV5: 0.35 | CW5: 0.2033284944 | CX5: 0.2631578947 | CY5: 0.3412849076 | CZ5: 0.2194444444 | DB5: Day 2 | DC5: 2018-10-10 | DD5: 74104 | DE5: 0 | DF5: 0 | DG5: 31 | DH5: 9141.66 | DI5: 6 | DJ5: 209.58 | DK5: 6 | DL5: 285 | DM5: 16847.74 | DN5: 43 | DO5: 306 | DP5: 55.05797386 | DQ5: 55.33372093 | DR5: 8423.87 | DS5: 0.03210825327 | DT5: 0 | DU5: 0 | DV5: 0 | DW5: 0 | DX5: 0.7921365079 | DY5: 0.7209302326 | DZ5: 0.6544753184 | EA5: 0.5032679739 | EB5: 0.08808287978 | EC5: 0.1395348837 | ED5: 0.1949329702 | EE5: 0.3366013072 | EF5: 0.1197806124 | EG5: 0.1395348837 | EH5: 0.1505917114 | EI5: 0.160130719 | EK5: Day 2 | EL5: 2018-04-10 | EM5: 96226 | EN5: 0 | EO5: 0 | EP5: 24 | EQ5: 1627.7 | ER5: 2 | ES5: 57 | ET5: 4 | EU5: 475 | EV5: 15912.32 | EW5: 30 | EX5: 279 | EY5: 57.03340502 | EZ5: 71.99 | FA5: 7956.16 | FB5: 0.02244403799 | FC5: 0 | FD5: 0 | FE5: 0 | FF5: 0 | FG5: 0.7536694911 | FH5: 0.8 | FI5: 0.4583027491 | FJ5: 0.3906810036 | FK5: 0.02639255452 | FL5: 0.06666666667 | FM5: 0.3083208482 | FN5: 0.4301075269 | FO5: 0.2199379543 | FP5: 0.1333333333 | FQ5: 0.2333764027 | FR5: 0.1792114695
A6: Day 3 | B6: 2020-07-17 | C6: 65854 | D6: =COUNTIFS('Sanitized Raw Data'!$H:$H,">="&$B6,'Sanitized Raw Data'!$H:$H,"<"&$B7,'Sanitized Raw Data'!$D:$D,"Cash") -> 0 | E6: =SUMIFS('Sanitized Raw Data'!$C:$C,'Sanitized Raw Data'!$H:$H,">="&$B6,'Sanitized Raw Data'!$H:$H,"<"&$B7,'Sanitized Raw Data'!$D:$D,"Cash") -> 0 | F6: =COUNTIFS('Sanitized Raw Data'!$H:$H,">="&$B6,'Sanitized Raw Data'!$H:$H,"<"&$B7,'Sanitized Raw Data'!$D:$D,"CC") -> 28 | G6: =SUMIFS('Sanitized Raw Data'!$C:$C,'Sanitized Raw Data'!$H:$H,">="&$B6,'Sanitized Raw Data'!$H:$H,"<"&$B7,'Sanitized Raw Data'!$D:$D,"CC") -> 2220 | H6: =COUNTIFS('Sanitized Raw Data'!$H:$H,">="&$B6,'Sanitized Raw Data'!$H:$H,"<"&$B7,'Sanitized Raw Data'!$D:$D,"PayPal") -> 0 | I6: =SUMIFS('Sanitized Raw Data'!$C:$C,'Sanitized Raw Data'!$H:$H,">="&$B6,'Sanitized Raw Data'!$H:$H,"<"&$B7,'Sanitized Raw Data'!$D:$D,"PayPal") -> 0 | J6: =COUNTIFS('Sanitized Raw Data'!$H:$H,">="&$B6,'Sanitized Raw Data'!$H:$H,"<"&$B7,'Sanitized Raw Data'!$D:$D,"Personal Check") -> 5 | K6: =SUMIFS('Sanitized Raw Data'!$C:$C,'Sanitized Raw Data'!$H:$H,">="&$B6,'Sanitized Raw Data'!$H:$H,"<"&$B7,'Sanitized Raw Data'!$D:$D,"Personal Check") -> 489 | L6: =SUM(E6,K6,I6,G6,L5) -> 37946.77 | M6: =SUM(D6,F6,H6,J6) -> 33 | N6: =SUM(D6,J6,H6,F6,N5) -> 581 | O6: =L6/N6 -> 65.31285714 | P6: =(SUM(E6,K6,I6,G6))/(SUM(D6,F6,H6,J6)) -> 82.09090909 | Q6: =L6/Sheet11!$A3 -> 12648.92333 | R6: =(L6-L5)/C$3 -> 0.04113645337 | S6: =E6/(L6-L5) -> 0 | T6: =D6/M6 -> 0 | U6: =SUM(E$3:E6)/L6 -> 0 | V6: =SUM(D$3:D6)/M6 -> 0 | W6: =G6/(L6-L5) -> 0.8194905869 | X6: =F6/M6 -> 0.8484848485 | Y6: =SUM(G$3:G6)/L6 -> 0.6673398026 | Z6: =SUM(F$3:F6)/N6 -> 0.5146299484 | AA6: =I6/(L6-L5) -> 0 | AB6: =H6/M6 -> 0 | AC6: =SUM(I$3:I6)/L6 -> 0.1045865037 | AD6: =SUM(H$3:H6)/N6 -> 0.3063683305 | AE6: =K6/(L6-L5) -> 0.1805094131 | AF6: =J6/M6 -> 0.1515151515 | AG6: =SUM(K$3:K6)/L6 -> 0.2280736938 | AH6: =SUM(J$3:J6)/N6 -> 0.1790017212 | AJ6: Day 3 | AK6: 2019-10-09 | AL6: 76366 | AM6: 0 | AN6: 0 | AO6: 17 | AP6: 1729 | AQ6: 3 | AR6: 99.79 | AS6: 8 | AT6: 331 | AU6: 17714.62 | AV6: 28 | AW6: 295 | AX6: 60.04955932 | AY6: 77.13535714 | AZ6: 5904.873333 | BA6: 0.02828208889 | BB6: 0 | BC6: 0 | BD6: 0 | BE6: 0 | BF6: 0.8005407933 | BG6: 0.6071428571 | BH6: 0.5311736859 | BI6: 0.4033898305 | BJ6: 0.04620356609 | BK6: 0.1071428571 | BL6: 0.1966900786 | BM6: 0.4033898305 | BN6: 0.1532556406 | BO6: 0.2857142857 | BP6: 0.2721362355 | BQ6: 0.193220339 | BS6: Day 3 | BT6: 2019-04-10 | BU6: 74493 | BV6: 0 | BW6: 0 | BX6: 21 | BY6: 999.63 | BZ6: 3 | CA6: 235 | CB6: 5 | CC6: 275 | CD6: 22991.33 | CE6: 29 | CF6: 389 | CG6: 59.10367609 | CH6: 52.0562069 | CI6: 7663.776667 | CJ6: 0.02026539406 | CK6: 0 | CL6: 0 | CM6: 0 | CN6: 0 | CO6: 0.6621688758 | CP6: 0.724137931 | CQ6: 0.5145726672 | CR6: 0.4524421594 | CS6: 0.1556672827 | CT6: 0.1034482759 | CU6: 0.1545904478 | CV6: 0.3316195373 | CW6: 0.1821638415 | CX6: 0.1724137931 | CY6: 0.330836885 | CZ6: 0.2159383033 | DB6: Day 3 | DC6: 2018-10-11 | DD6: 74104 | DE6: 0 | DF6: 0 | DG6: 16 | DH6: 9141.66 | DI6: 8 | DJ6: 109.47 | DK6: 6 | DL6: 825 | DM6: 18856.86 | DN6: 30 | DO6: 336 | DP6: 56.12160714 | DQ6: 66.97066667 | DR6: 6285.62 | DS6: 0.02711216668 | DT6: 0 | DU6: 0 | DV6: 0 | DW6: 0 | DX6: 0.5348859202 | DY6: 0.5333333333 | DZ6: 0.6417335654 | EA6: 0.505952381 | EB6: 0.05448654137 | EC6: 0.2666666667 | ED6: 0.1799689874 | EE6: 0.3303571429 | EF6: 0.4106275384 | EG6: 0.2 | EH6: 0.1782974472 | EI6: 0.1636904762 | EK6: Day 3 | EL6: 2018-04-11 | EM6: 96226 | EN6: 0 | EO6: 0 | EP6: 10 | EQ6: 629.09 | ER6: 7 | ES6: 174.89 | ET6: 3 | EU6: 94.63 | EV6: 16810.93 | EW6: 20 | EX6: 299 | EY6: 56.22384615 | EZ6: 44.9305 | FA6: 5603.643333 | FB6: 0.009338536362 | FC6: 0 | FD6: 0 | FE6: 0 | FF6: 0 | FG6: 0.7000701083 | FH6: 0.5 | FI6: 0.4712261606 | FJ6: 0.397993311 | FK6: 0.1946228063 | FL6: 0.35 | FM6: 0.3022432429 | FN6: 0.4247491639 | FO6: 0.1053070854 | FP6: 0.15 | FQ6: 0.2265305965 | FR6: 0.1772575251
A7: Day 4 | B7: 2020-07-18 | C7: 65854 | D7: =COUNTIFS('Sanitized Raw Data'!$H:$H,">="&$B7,'Sanitized Raw Data'!$H:$H,"<"&$B8,'Sanitized Raw Data'!$D:$D,"Cash") -> 0 | E7: =SUMIFS('Sanitized Raw Data'!$C:$C,'Sanitized Raw Data'!$H:$H,">="&$B7,'Sanitized Raw Data'!$H:$H,"<"&$B8,'Sanitized Raw Data'!$D:$D,"Cash") -> 0 | F7: =COUNTIFS('Sanitized Raw Data'!$H:$H,">="&$B7,'Sanitized Raw Data'!$H:$H,"<"&$B8,'Sanitized Raw Data'!$D:$D,"CC") -> 13 | G7: =SUMIFS('Sanitized Raw Data'!$C:$C,'Sanitized Raw Data'!$H:$H,">="&$B7,'Sanitized Raw Data'!$H:$H,"<"&$B8,'Sanitized Raw Data'!$D:$D,"CC") -> 784.79 | H7: =COUNTIFS('Sanitized Raw Data'!$H:$H,">="&$B7,'Sanitized Raw Data'!$H:$H,"<"&$B8,'Sanitized Raw Data'!$D:$D,"PayPal") -> 0 | I7: =SUMIFS('Sanitized Raw Data'!$C:$C,'Sanitized Raw Data'!$H:$H,">="&$B7,'Sanitized Raw Data'!$H:$H,"<"&$B8,'Sanitized Raw Data'!$D:$D,"PayPal") -> 0 | J7: =COUNTIFS('Sanitized Raw Data'!$H:$H,">="&$B7,'Sanitized Raw Data'!$H:$H,"<"&$B8,'Sanitized Raw Data'!$D:$D,"Personal Check") -> 2 | K7: =SUMIFS('Sanitized Raw Data'!$C:$C,'Sanitized Raw Data'!$H:$H,">="&$B7,'Sanitized Raw Data'!$H:$H,"<"&$B8,'Sanitized Raw Data'!$D:$D,"Personal Check") -> 75 | L7: =SUM(E7,K7,I7,G7,L6) -> 38806.56 | M7: =SUM(D7,F7,H7,J7) -> 15 | N7: =SUM(D7,J7,H7,F7,N6) -> 596 | O7: =L7/N7 -> 65.11167785 | P7: =(SUM(E7,K7,I7,G7))/(SUM(D7,F7,H7,J7)) -> 57.31933333 | Q7: =L7/Sheet11!$A4 -> 9701.64 | R7: =(L7-L6)/C$3 -> 0.01305600267 | S7: =E7/(L7-L6) -> 0 | T7: =D7/M7 -> 0 | U7: =SUM(E$3:E7)/L7 -> 0 | V7: =SUM(D$3:D7)/M7 -> 0 | W7: =G7/(L7-L6) -> 0.9127693972 | X7: =F7/M7 -> 0.8666666667 | Y7: =SUM(G$3:G7)/L7 -> 0.6727774892 | Z7: =SUM(F$3:F7)/N7 -> 0.5234899329 | AA7: =I7/(L7-L6) -> 0 | AB7: =H7/M7 -> 0 | AC7: =SUM(I$3:I7)/L7 -> 0.102269307 | AD7: =SUM(H$3:H7)/N7 -> 0.2986577181 | AE7: =K7/(L7-L6) -> 0.08723060282 | AF7: =J7/M7 -> 0.1333333333 | AG7: =SUM(K$3:K7)/L7 -> 0.2249532038 | AH7: =SUM(J$3:J7)/N7 -> 0.177852349 | AJ7: Day 4 | AK7: 2019-10-10 | AL7: 76366 | AM7: 0 | AN7: 0 | AO7: 9 | AP7: 399.68 | AQ7: 1 | AR7: 50 | AS7: 5 | AT7: 235 | AU7: 18399.3 | AV7: 15 | AW7: 310 | AX7: 59.35258065 | AY7: 45.64533333 | AZ7: 4599.825 | BA7: 0.008965770107 | BB7: 0 | BC7: 0 | BD7: 0 | BE7: 0 | BF7: 0.583747152 | BG7: 0.6 | BH7: 0.5331300647 | BI7: 0.4129032258 | BJ7: 0.07302681545 | BK7: 0.06666666667 | BL7: 0.192088286 | BM7: 0.3870967742 | BN7: 0.3432260326 | BO7: 0.3333333333 | BP7: 0.2747816493 | BQ7: 0.2 | BS7: Day 4 | BT7: 2019-04-11 | BU7: 74493 | BV7: 0 | BW7: 0 | BX7: 17 | BY7: 917.46 | BZ7: 5 | CA7: 240.52 | CB7: 6 | CC7: 355 | CD7: 24504.31 | CE7: 28 | CF7: 417 | CG7: 58.76333333 | CH7: 54.035 | CI7: 6126.0775 | CJ7: 0.02031036473 | CK7: 0 | CL7: 0 | CM7: 0 | CN7: 0 | CO7: 0.606392682 | CP7: 0.6071428571 | CQ7: 0.5202419493 | CR7: 0.4628297362 | CS7: 0.1589710373 | CT7: 0.1785714286 | CU7: 0.1548609204 | CV7: 0.3213429257 | CW7: 0.2346362807 | CX7: 0.2142857143 | CY7: 0.3248971303 | CZ7: 0.2158273381 | DB7: Day 4 | DC7: 2018-10-12 | DD7: 74104 | DE7: 0 | DF7: 0 | DG7: 14 | DH7: 9141.66 | DI7: 2 | DJ7: 75 | DK7: 6 | DL7: 295 | DM7: 20098.86 | DN7: 22 | DO7: 358 | DP7: 56.14206704 | DQ7: 56.45454545 | DR7: 5024.715 | DS7: 0.01676022887 | DT7: 0 | DU7: 0 | DV7: 0 | DW7: 0 | DX7: 0.7020933977 | DY7: 0.6363636364 | DZ7: 0.645463474 | EA7: 0.5139664804 | EB7: 0.06038647343 | EC7: 0.09090909091 | ED7: 0.1725794398 | EE7: 0.3156424581 | EF7: 0.2375201288 | EG7: 0.2727272727 | EH7: 0.1819570861 | EI7: 0.1703910615 | EK7: Day 4 | EL7: 2018-04-12 | EM7: 96226 | EN7: 0 | EO7: 0 | EP7: 9 | EQ7: 624.63 | ER7: 0 | ES7: 0 | ET7: 3 | EU7: 85 | EV7: 17520.56 | EW7: 12 | EX7: 311 | EY7: 56.33620579 | EZ7: 59.13583333 | FA7: 4380.14 | FB7: 0.007374618087 | FC7: 0 | FD7: 0 | FE7: 0 | FF7: 0 | FG7: 0.8802192692 | FH7: 0.75 | FI7: 0.4877914861 | FJ7: 0.4115755627 | FK7: 0 | FL7: 0 | FM7: 0.2900015753 | FN7: 0.4083601286 | FO7: 0.1197807308 | FP7: 0.25 | FQ7: 0.2222069386 | FR7: 0.1800643087
A8: Day 5 | B8: 2020-07-19 | C8: 65854 | D8: =COUNTIFS('Sanitized Raw Data'!$H:$H,">="&$B8,'Sanitized Raw Data'!$H:$H,"<"&$B9,'Sanitized Raw Data'!$D:$D,"Cash") -> 0 | E8: =SUMIFS('Sanitized Raw Data'!$C:$C,'Sanitized Raw Data'!$H:$H,">="&$B8,'Sanitized Raw Data'!$H:$H,"<"&$B9,'Sanitized Raw Data'!$D:$D,"Cash") -> 0 | F8: =COUNTIFS('Sanitized Raw Data'!$H:$H,">="&$B8,'Sanitized Raw Data'!$H:$H,"<"&$B9,'Sanitized Raw Data'!$D:$D,"CC") -> 9 | G8: =SUMIFS('Sanitized Raw Data'!$C:$C,'Sanitized Raw Data'!$H:$H,">="&$B8,'Sanitized Raw Data'!$H:$H,"<"&$B9,'Sanitized Raw Data'!$D:$D,"CC") -> 481 | H8: =COUNTIFS('Sanitized Raw Data'!$H:$H,">="&$B8,'Sanitized Raw Data'!$H:$H,"<"&$B9,'Sanitized Raw Data'!$D:$D,"PayPal") -> 0 | I8: =SUMIFS('Sanitized Raw Data'!$C:$C,'Sanitized Raw Data'!$H:$H,">="&$B8,'Sanitized Raw Data'!$H:$H,"<"&$B9,'Sanitized Raw Data'!$D:$D,"PayPal") -> 0 | J8: =COUNTIFS('Sanitized Raw Data'!$H:$H,">="&$B8,'Sanitized Raw Data'!$H:$H,"<"&$B9,'Sanitized Raw Data'!$D:$D,"Personal Check") -> 2 | K8: =SUMIFS('Sanitized Raw Data'!$C:$C,'Sanitized Raw Data'!$H:$H,">="&$B8,'Sanitized Raw Data'!$H:$H,"<"&$B9,'Sanitized Raw Data'!$D:$D,"Personal Check") -> 75 | L8: =SUM(E8,K8,I8,G8,L7) -> 39362.56 | M8: =SUM(D8,F8,H8,J8) -> 11 | N8: =SUM(D8,J8,H8,F8,N7) -> 607 | O8: =L8/N8 -> 64.84771005 | P8: =(SUM(E8,K8,I8,G8))/(SUM(D8,F8,H8,J8)) -> 50.54545455 | Q8: =L8/Sheet11!$A5 -> 7872.512 | R8: =(L8-L7)/C$3 -> 0.008442919185 | S8: =E8/(L8-L7) -> 0 | T8: =D8/M8 -> 0 | U8: =SUM(E$3:E8)/L8 -> 0 | V8: =SUM(D$3:D8)/M8 -> 0 | W8: =G8/(L8-L7) -> 0.8651079137 | X8: =F8/M8 -> 0.8181818182 | Y8: =SUM(G$3:G8)/L8 -> 0.6754941752 | Z8: =SUM(F$3:F8)/N8 -> 0.528830313 | AA8: =I8/(L8-L7) -> 0 | AB8: =H8/M8 -> 0 | AC8: =SUM(I$3:I8)/L8 -> 0.1008247431 | AD8: =SUM(H$3:H8)/N8 -> 0.2932454695 | AE8: =K8/(L8-L7) -> 0.1348920863 | AF8: =J8/M8 -> 0.1818181818 | AG8: =SUM(K$3:K8)/L8 -> 0.2236810817 | AH8: =SUM(J$3:J8)/N8 -> 0.1779242175 | AJ8: Day 5 | AK8: 2019-10-11 | AL8: 76366 | AM8: 0 | AN8: 0 | AO8: 8 | AP8: 425 | AQ8: 2 | AR8: 20 | AS8: 3 | AT8: 246 | AU8: 19090.3 | AV8: 13 | AW8: 323 | AX8: 59.10309598 | AY8: 53.15384615 | AZ8: 3818.06 | BA8: 0.00904852945 | BB8: 0 | BC8: 0 | BD8: 0 | BE8: 0 | BF8: 0.6150506512 | BG8: 0.6153846154 | BH8: 0.5360952945 | BI8: 0.4210526316 | BJ8: 0.02894356006 | BK8: 0.1538461538 | BL8: 0.1861830354 | BM8: 0.3777089783 | BN8: 0.3560057887 | BO8: 0.2307692308 | BP8: 0.2777216702 | BQ8: 0.2012383901 | BS8: Day 5 | BT8: 2019-04-12 | BU8: 74493 | BV8: 0 | BW8: 0 | BX8: 13 | BY8: 1021 | BZ8: 2 | CA8: 75 | CB8: 7 | CC8: 1285 | CD8: 26885.31 | CE8: 22 | CF8: 439 | CG8: 61.24216401 | CH8: 108.2272727 | CI8: 5377.062 | CJ8: 0.03196273475 | CK8: 0 | CL8: 0 | CM8: 0 | CN8: 0 | CO8: 0.4288114238 | CP8: 0.5909090909 | CQ8: 0.5121447363 | CR8: 0.4692482916 | CS8: 0.03149937001 | CT8: 0.09090909091 | CU8: 0.143935852 | CV8: 0.3097949886 | CW8: 0.5396892062 | CX8: 0.3181818182 | CY8: 0.3439194118 | CZ8: 0.2209567198 | DB8: Day 5 | DC8: 2018-10-13 | DD8: 74104 | DE8: 0 | DF8: 0 | DG8: 11 | DH8: 9141.66 | DI8: 0 | DJ8: 0 | DK8: 2 | DL8: 159 | DM8: 21004.65 | DN8: 13 | DO8: 371 | DP8: 56.61630728 | DQ8: 69.67615385 | DR8: 4200.93 | DS8: 0.01222322682 | DT8: 0 | DU8: 0 | DV8: 0 | DW8: 0 | DX8: 0.8244626238 | DY8: 0.8461538462 | DZ8: 0.6531825096 | EA8: 0.525606469 | EB8: 0 | EC8: 0 | ED8: 0.1651372434 | EE8: 0.3045822102 | EF8: 0.1755373762 | EG8: 0.1538461538 | EH8: 0.181680247 | EI8: 0.1698113208 | EK8: Day 5 | EL8: 2018-04-13 | EM8: 96226 | EN8: 0 | EO8: 0 | EP8: 9 | EQ8: 630 | ER8: 0 | ES8: 0 | ET8: 0 | EU8: 0 | EV8: 18150.56 | EW8: 9 | EX8: 320 | EY8: 56.7205 | EZ8: 70 | FA8: 3630.112 | FB8: 0.006547087066 | FC8: 0 | FD8: 0 | FE8: 0 | FF8: 0 | FG8: 1 | FH8: 1 | FI8: 0.5055700761 | FJ8: 0.428125 | FK8: 0 | FL8: 0 | FM8: 0.2799357155 | FN8: 0.396875 | FO8: 0 | FP8: 0 | FQ8: 0.2144942084 | FR8: 0.175
A9: Day 6 | B9: 2020-07-20 | C9: 65854 | D9: =COUNTIFS('Sanitized Raw Data'!$H:$H,">="&$B9,'Sanitized Raw Data'!$H:$H,"<"&$B10,'Sanitized Raw Data'!$D:$D,"Cash") -> 0 | E9: =SUMIFS('Sanitized Raw Data'!$C:$C,'Sanitized Raw Data'!$H:$H,">="&$B9,'Sanitized Raw Data'!$H:$H,"<"&$B10,'Sanitized Raw Data'!$D:$D,"Cash") -> 0 | F9: =COUNTIFS('Sanitized Raw Data'!$H:$H,">="&$B9,'Sanitized Raw Data'!$H:$H,"<"&$B10,'Sanitized Raw Data'!$D:$D,"CC") -> 12 | G9: =SUMIFS('Sanitized Raw Data'!$C:$C,'Sanitized Raw Data'!$H:$H,">="&$B9,'Sanitized Raw Data'!$H:$H,"<"&$B10,'Sanitized Raw Data'!$D:$D,"CC") -> 864 | H9: =COUNTIFS('Sanitized Raw Data'!$H:$H,">="&$B9,'Sanitized Raw Data'!$H:$H,"<"&$B10,'Sanitized Raw Data'!$D:$D,"PayPal") -> 1 | I9: =SUMIFS('Sanitized Raw Data'!$C:$C,'Sanitized Raw Data'!$H:$H,">="&$B9,'Sanitized Raw Data'!$H:$H,"<"&$B10,'Sanitized Raw Data'!$D:$D,"PayPal") -> 5 | J9: =COUNTIFS('Sanitized Raw Data'!$H:$H,">="&$B9,'Sanitized Raw Data'!$H:$H,"<"&$B10,'Sanitized Raw Data'!$D:$D,"Personal Check") -> 8 | K9: =SUMIFS('Sanitized Raw Data'!$C:$C,'Sanitized Raw Data'!$H:$H,">="&$B9,'Sanitized Raw Data'!$H:$H,"<"&$B10,'Sanitized Raw Data'!$D:$D,"Personal Check") -> 726 | L9: =SUM(E9,K9,I9,G9,L8) -> 40957.56 | M9: =SUM(D9,F9,H9,J9) -> 21 | N9: =SUM(D9,J9,H9,F9,N8) -> 628 | O9: =L9/N9 -> 65.21904459 | P9: =(SUM(E9,K9,I9,G9))/(SUM(D9,F9,H9,J9)) -> 75.95238095 | Q9: =L9/Sheet11!$A6 -> 6826.26 | R9: =(L9-L8)/C$3 -> 0.02422024478 | S9: =E9/(L9-L8) -> 0 | T9: =D9/M9 -> 0 | U9: =SUM(E$3:E9)/L9 -> 0 | V9: =SUM(D$3:D9)/M9 -> 0 | W9: =G9/(L9-L8) -> 0.54169279 | X9: =F9/M9 -> 0.5714285714 | Y9: =SUM(G$3:G9)/L9 -> 0.6702835813 | Z9: =SUM(F$3:F9)/N9 -> 0.5302547771 | AA9: =I9/(L9-L8) -> 0.003134796238 | AB9: =H9/M9 -> 0.04761904762 | AC9: =SUM(I$3:I9)/L9 -> 0.09702042797 | AD9: =SUM(H$3:H9)/N9 -> 0.2850318471 | AE9: =K9/(L9-L8) -> 0.4551724138 | AF9: =J9/M9 -> 0.380952381 | AG9: =SUM(K$3:K9)/L9 -> 0.2326959907 | AH9: =SUM(J$3:J9)/N9 -> 0.1847133758 | AJ9: Day 6 | AK9: 2019-10-12 | AL9: 76366 | AM9: 0 | AN9: 0 | AO9: 6 | AP9: 328.51 | AQ9: 3 | AR9: 40 | AS9: 2 | AT9: 125 | AU9: 19583.81 | AV9: 11 | AW9: 334 | AX9: 58.63416168 | AY9: 44.86454545 | AZ9: 3263.968333 | BA9: 0.006462430925 | BB9: 0 | BC9: 0 | BD9: 0 | BE9: 0 | BF9: 0.6656602703 | BG9: 0.5454545455 | BH9: 0.5393603185 | BI9: 0.4251497006 | BJ9: 0.08105205568 | BK9: 0.2727272727 | BL9: 0.1835337455 | BM9: 0.374251497 | BN9: 0.253287674 | BO9: 0.1818181818 | BP9: 0.277105936 | BQ9: 0.2005988024 | BS9: Day 6 | BT9: 2019-04-13 | BU9: 74493 | BV9: 0 | BW9: 0 | BX9: 7 | BY9: 259 | BZ9: 2 | CA9: 20 | CB9: 2 | CC9: 95 | CD9: 27259.31 | CE9: 11 | CF9: 450 | CG9: 60.57624444 | CH9: 34 | CI9: 4543.218333 | CJ9: 0.005020605963 | CK9: 0 | CL9: 0 | CM9: 0 | CN9: 0 | CO9: 0.692513369 | CP9: 0.6363636364 | CQ9: 0.5146194089 | CR9: 0.4733333333 | CS9: 0.05347593583 | CT9: 0.1818181818 | CU9: 0.1426947344 | CV9: 0.3066666667 | CW9: 0.2540106952 | CX9: 0.1818181818 | CY9: 0.3426858567 | CZ9: 0.22 | DB9: Day 6 | DC9: 2018-10-14 | DD9: 74104 | DE9: 0 | DF9: 0 | DG9: 9 | DH9: 9141.66 | DI9: 2 | DJ9: 30 | DK9: 4 | DL9: 269 | DM9: 21778.81 | DN9: 15 | DO9: 386 | DP9: 56.42178756 | DQ9: 51.61066667 | DR9: 3629.801667 | DS9: 0.01044693944 | DT9: 0 | DU9: 0 | DV9: 0 | DW9: 0 | DX9: 0.6137749302 | DY9: 0.6 | DZ9: 0.6517817089 | EA9: 0.5284974093 | EB9: 0.03875167924 | EC9: 0.1333333333 | ED9: 0.1606446817 | EE9: 0.2979274611 | EF9: 0.3474733905 | EG9: 0.2666666667 | EH9: 0.1875736094 | EI9: 0.1735751295 | EK9: Day 6 | EL9: 2018-04-14 | EM9: 96226 | EN9: 0 | EO9: 0 | EP9: 3 | EQ9: 125 | ER9: 1 | ES9: 25 | ET9: 1 | EU9: 100 | EV9: 18400.56 | EW9: 5 | EX9: 325 | EY9: 56.61710769 | EZ9: 50 | FA9: 3066.76 | FB9: 0.002598050423 | FC9: 0 | FD9: 0 | FE9: 0 | FF9: 0 | FG9: 0.5 | FH9: 0.6 | FI9: 0.505494398 | FJ9: 0.4307692308 | FK9: 0.1 | FL9: 0.2 | FM9: 0.2774910111 | FN9: 0.3938461538 | FO9: 0.4 | FP9: 0.2 | FQ9: 0.2170145909 | FR9: 0.1753846154
A10: Day 7 | B10: 2020-07-21 | C10: 65854 | D10: =COUNTIFS('Sanitized Raw Data'!$H:$H,">="&$B10,'Sanitized Raw Data'!$H:$H,"<"&$B11,'Sanitized Raw Data'!$D:$D,"Cash") -> 0 | E10: =SUMIFS('Sanitized Raw Data'!$C:$C,'Sanitized Raw Data'!$H:$H,">="&$B10,'Sanitized Raw Data'!$H:$H,"<"&$B11,'Sanitized Raw Data'!$D:$D,"Cash") -> 0 | F10: =COUNTIFS('Sanitized Raw Data'!$H:$H,">="&$B10,'Sanitized Raw Data'!$H:$H,"<"&$B11,'Sanitized Raw Data'!$D:$D,"CC") -> 9 | G10: =SUMIFS('Sanitized Raw Data'!$C:$C,'Sanitized Raw Data'!$H:$H,">="&$B10,'Sanitized Raw Data'!$H:$H,"<"&$B11,'Sanitized Raw Data'!$D:$D,"CC") -> 592.77 | H10: =COUNTIFS('Sanitized Raw Data'!$H:$H,">="&$B10,'Sanitized Raw Data'!$H:$H,"<"&$B11,'Sanitized Raw Data'!$D:$D,"PayPal") -> 0 | I10: =SUMIFS('Sanitized Raw Data'!$C:$C,'Sanitized Raw Data'!$H:$H,">="&$B10,'Sanitized Raw Data'!$H:$H,"<"&$B11,'Sanitized Raw Data'!$D:$D,"PayPal") -> 0 | J10: =COUNTIFS('Sanitized Raw Data'!$H:$H,">="&$B10,'Sanitized Raw Data'!$H:$H,"<"&$B11,'Sanitized Raw Data'!$D:$D,"Personal Check") -> 1 | K10: =SUMIFS('Sanitized Raw Data'!$C:$C,'Sanitized Raw Data'!$H:$H,">="&$B10,'Sanitized Raw Data'!$H:$H,"<"&$B11,'Sanitized Raw Data'!$D:$D,"Personal Check") -> 59 | L10: =SUM(E10,K10,I10,G10,L9) -> 41609.33 | M10: =SUM(D10,F10,H10,J10) -> 10 | N10: =SUM(D10,J10,H10,F10,N9) -> 638 | O10: =L10/N10 -> 65.21838558 | P10: =(SUM(E10,K10,I10,G10))/(SUM(D10,F10,H10,J10)) -> 65.177 | Q10: =L10/Sheet11!$A7 -> 5944.19 | R10: =(L10-L9)/C$3 -> 0.009897196829 | S10: =E10/(L10-L9) -> 0 | T10: =D10/M10 -> 0 | U10: =SUM(E$3:E10)/L10 -> 0 | V10: =SUM(D$3:D10)/M10 -> 0 | W10: =G10/(L10-L9) -> 0.9094772696 | X10: =F10/M10 -> 0.9 | Y10: =SUM(G$3:G10)/L10 -> 0.6740303196 | Z10: =SUM(F$3:F10)/N10 -> 0.5360501567 | AA10: =I10/(L10-L9) -> 0 | AB10: =H10/M10 -> 0 | AC10: =SUM(I$3:I10)/L10 -> 0.0955006966 | AD10: =SUM(H$3:H10)/N10 -> 0.2805642633 | AE10: =K10/(L10-L9) -> 0.09052273041 | AF10: =J10/M10 -> 0.1 | AG10: =SUM(K$3:K10)/L10 -> 0.2304689838 | AH10: =SUM(J$3:J10)/N10 -> 0.1833855799 | AJ10: Day 7 | AK10: 2019-10-13 | AL10: 76366 | AM10: 0 | AN10: 0 | AO10: 10 | AP10: 665 | AQ10: 3 | AR10: 40 | AS10: 5 | AT10: 364 | AU10: 20652.81 | AV10: 18 | AW10: 352 | AX10: 58.67275568 | AY10: 59.38888889 | AZ10: 2950.401429 | BA10: 0.01399837624 | BB10: 0 | BC10: 0 | BD10: 0 | BE10: 0 | BF10: 0.6220767072 | BG10: 0.5555555556 | BH10: 0.5436417611 | BI10: 0.4318181818 | BJ10: 0.0374181478 | BK10: 0.1666666667 | BL10: 0.1759707275 | BM10: 0.3636363636 | BN10: 0.340505145 | BO10: 0.2777777778 | BP10: 0.2803875114 | BQ10: 0.2045454545 | BS10: Day 7 | BT10: 2019-04-14 | BU10: 74493 | BV10: 0 | BW10: 0 | BX10: 6 | BY10: 730 | BZ10: 1 | CA10: 25 | CB10: 4 | CC10: 164 | CD10: 28178.31 | CE10: 11 | CF10: 461 | CG10: 61.1243167 | CH10: 83.54545455 | CI10: 4025.472857 | CJ10: 0.01233672963 | CK10: 0 | CL10: 0 | CM10: 0 | CN10: 0 | CO10: 0.7943416757 | CP10: 0.5454545455 | CQ10: 0.5237421975 | CR10: 0.4750542299 | CS10: 0.02720348205 | CT10: 0.09090909091 | CU10: 0.138928133 | CV10: 0.3015184382 | CW10: 0.1784548422 | CX10: 0.3636363636 | CY10: 0.3373296695 | CZ10: 0.2234273319 | DB10: Day 7 | DC10: 2018-10-15 | DD10: 74104 | DE10: 0 | DF10: 0 | DG10: 105 | DH10: 9141.66 | DI10: 32 | DJ10: 2174.5 | DK10: 30 | DL10: 1519.99 | DM10: 32600.55 | DN10: 167 | DO10: 553 | DP10: 58.95216998 | DQ10: 64.80083832 | DR10: 4657.221429 | DS10: 0.1460344921 | DT10: 0 | DU10: 0 | DV10: 0 | DW10: 0 | DX10: 0.6586048085 | DY10: 0.628742515 | DZ10: 0.6540466342 | EA10: 0.5587703436 | EB10: 0.2009381116 | EC10: 0.1916167665 | ED10: 0.1740200702 | EE10: 0.2658227848 | EF10: 0.1404570799 | EG10: 0.1796407186 | EH10: 0.1719332956 | EI10: 0.1754068716 | EK10: Day 7 | EL10: 2018-04-15 | EM10: 96226 | EN10: 0 | EO10: 0 | EP10: 16 | EQ10: 896.58 | ER10: 3 | ES10: 560 | ET10: 5 | EU10: 175 | EV10: 20032.14 | EW10: 24 | EX10: 349 | EY10: 57.39868195 | EZ10: 67.9825 | FA10: 2861.734286 | FB10: 0.01695570844 | FC10: 0 | FD10: 0 | FE10: 0 | FF10: 0 | FG10: 0.5495164197 | FH10: 0.6666666667 | FI10: 0.5090799086 | FJ10: 0.446991404 | FK10: 0.343225585 | FL10: 0.125 | FM10: 0.2828449681 | FN10: 0.3753581662 | FO10: 0.1072579953 | FP10: 0.2083333333 | FQ10: 0.2080751233 | FR10: 0.1776504298
A11: Day 8 | B11: 2020-07-22 | C11: 65854 | D11: =COUNTIFS('Sanitized Raw Data'!$H:$H,">="&$B11,'Sanitized Raw Data'!$H:$H,"<"&$B12,'Sanitized Raw Data'!$D:$D,"Cash") -> 0 | E11: =SUMIFS('Sanitized Raw Data'!$C:$C,'Sanitized Raw Data'!$H:$H,">="&$B11,'Sanitized Raw Data'!$H:$H,"<"&$B12,'Sanitized Raw Data'!$D:$D,"Cash") -> 0 | F11: =COUNTIFS('Sanitized Raw Data'!$H:$H,">="&$B11,'Sanitized Raw Data'!$H:$H,"<"&$B12,'Sanitized Raw Data'!$D:$D,"CC") -> 30 | G11: =SUMIFS('Sanitized Raw Data'!$C:$C,'Sanitized Raw Data'!$H:$H,">="&$B11,'Sanitized Raw Data'!$H:$H,"<"&$B12,'Sanitized Raw Data'!$D:$D,"CC") -> 1958.91 | H11: =COUNTIFS('Sanitized Raw Data'!$H:$H,">="&$B11,'Sanitized Raw Data'!$H:$H,"<"&$B12,'Sanitized Raw Data'!$D:$D,"PayPal") -> 2 | I11: =SUMIFS('Sanitized Raw Data'!$C:$C,'Sanitized Raw Data'!$H:$H,">="&$B11,'Sanitized Raw Data'!$H:$H,"<"&$B12,'Sanitized Raw Data'!$D:$D,"PayPal") -> 125 | J11: =COUNTIFS('Sanitized Raw Data'!$H:$H,">="&$B11,'Sanitized Raw Data'!$H:$H,"<"&$B12,'Sanitized Raw Data'!$D:$D,"Personal Check") -> 3 | K11: =SUMIFS('Sanitized Raw Data'!$C:$C,'Sanitized Raw Data'!$H:$H,">="&$B11,'Sanitized Raw Data'!$H:$H,"<"&$B12,'Sanitized Raw Data'!$D:$D,"Personal Check") -> 619.63 | L11: =SUM(E11,K11,I11,G11,L10) -> 44312.87 | M11: =SUM(D11,F11,H11,J11) -> 35 | N11: =SUM(D11,J11,H11,F11,N10) -> 673 | O11: =L11/N11 -> 65.843789 | P11: =(SUM(E11,K11,I11,G11))/(SUM(D11,F11,H11,J11)) -> 77.244 | Q11: =L11/Sheet11!$A8 -> 5539.10875 | R11: =(L11-L10)/C$3 -> 0.04105354269 | S11: =E11/(L11-L10) -> 0 | T11: =D11/M11 -> 0 | U11: =SUM(E$3:E11)/L11 -> 0 | V11: =SUM(D$3:D11)/M11 -> 0 | W11: =G11/(L11-L10) -> 0.7245722275 | X11: =F11/M11 -> 0.8571428571 | Y11: =SUM(G$3:G11)/L11 -> 0.6771138949 | Z11: =SUM(F$3:F11)/N11 -> 0.5527488856 | AA11: =I11/(L11-L10) -> 0.04623567619 | AB11: =H11/M11 -> 0.05714285714 | AC11: =SUM(I$3:I11)/L11 -> 0.09249502458 | AD11: =SUM(H$3:H11)/N11 -> 0.2689450223 | AE11: =K11/(L11-L10) -> 0.2291920963 | AF11: =J11/M11 -> 0.08571428571 | AG11: =SUM(K$3:K11)/L11 -> 0.2303910805 | AH11: =SUM(J$3:J11)/N11 -> 0.1783060921 | AJ11: Day 8 | AK11: 2019-10-14 | AL11: 76366 | AM11: 0 | AN11: 0 | AO11: 81 | AP11: 6404.52 | AQ11: 8 | AR11: 365 | AS11: 13 | AT11: 797.01 | AU11: 28219.34 | AV11: 102 | AW11: 454 | AX11: 62.15713656 | AY11: 74.18166667 | AZ11: 3527.4175 | BA11: 0.09908244507 | BB11: 0 | BC11: 0 | BD11: 0 | BE11: 0 | BF11: 0.8464276227 | BG11: 0.7941176471 | BH11: 0.624828575 | BI11: 0.513215859 | BJ11: 0.04823875674 | BK11: 0.07843137255 | BL11: 0.1417215994 | BM11: 0.2995594714 | BN11: 0.1053336206 | BO11: 0.1274509804 | BP11: 0.2334498255 | BQ11: 0.1872246696 | BS11: Day 8 | BT11: 2019-04-15 | BU11: 74493 | BV11: 0 | BW11: 0 | BX11: 104 | BY11: 8368.74 | BZ11: 32 | CA11: 1424.58 | CB11: 25 | CC11: 1204.26 | CD11: 39175.89 | CE11: 161 | CF11: 622 | CG11: 62.98374598 | CH11: 68.30795031 | CI11: 4896.98625 | CJ11: 0.147632395 | CK11: 0 | CL11: 0 | CM11: 0 | CN11: 0 | CO11: 0.7609619571 | CP11: 0.6459627329 | CQ11: 0.5903352802 | CR11: 0.5192926045 | CS11: 0.1295357706 | CT11: 0.198757764 | CU11: 0.1362914793 | CV11: 0.2749196141 | CW11: 0.1095022723 | CX11: 0.1552795031 | CY11: 0.2733732405 | CZ11: 0.2057877814 | DB11: Day 8 | DC11: 2018-10-16 | DD11: 74104 | DE11: 0 | DF11: 0 | DG11: 21 | DH11: 9141.66 | DI11: 6 | DJ11: 299.63 | DK11: 9 | DL11: 564.58 | DM11: 35258.76 | DN11: 36 | DO11: 589 | DP11: 59.86207131 | DQ11: 73.83916667 | DR11: 4407.345 | DS11: 0.03587134298 | DT11: 0 | DU11: 0 | DV11: 0 | DW11: 0 | DX11: 0.6748902457 | DY11: 0.5833333333 | DZ11: 0.6556180648 | EA11: 0.5602716469 | EB11: 0.1127187092 | EC11: 0.1666666667 | ED11: 0.1693984701 | EE11: 0.259762309 | EF11: 0.2123910451 | EG11: 0.25 | EH11: 0.1749834651 | EI11: 0.1799660441 | EK11: Day 8 | EL11: 2018-04-16 | EM11: 96226 | EN11: 0 | EO11: 0 | EP11: 117 | EQ11: 8048.58 | ER11: 26 | ES11: 1414.55 | ET11: 25 | EU11: 1451 | EV11: 30946.27 | EW11: 168 | EX11: 517 | EY11: 59.85738878 | EZ11: 64.96505952 | FA11: 3868.28375 | FB11: 0.1134218403 | FC11: 0 | FD11: 0 | FE11: 0 | FF11: 0 | FG11: 0.7374458615 | FH11: 0.6964285714 | FI11: 0.5896200091 | FJ11: 0.5280464217 | FK11: 0.1296072156 | FL11: 0.1547619048 | FM11: 0.2288010801 | FN11: 0.3036750484 | FO11: 0.1329469229 | FP11: 0.1488095238 | FQ11: 0.1815789108 | FR11: 0.16827853
A12: Day 9 | B12: 2020-07-23 | C12: 65854 | D12: =COUNTIFS('Sanitized Raw Data'!$H:$H,">="&$B12,'Sanitized Raw Data'!$H:$H,"<"&$B13,'Sanitized Raw Data'!$D:$D,"Cash") -> 0 | E12: =SUMIFS('Sanitized Raw Data'!$C:$C,'Sanitized Raw Data'!$H:$H,">="&$B12,'Sanitized Raw Data'!$H:$H,"<"&$B13,'Sanitized Raw Data'!$D:$D,"Cash") -> 0 | F12: =COUNTIFS('Sanitized Raw Data'!$H:$H,">="&$B12,'Sanitized Raw Data'!$H:$H,"<"&$B13,'Sanitized Raw Data'!$D:$D,"CC") -> 60 | G12: =SUMIFS('Sanitized Raw Data'!$C:$C,'Sanitized Raw Data'!$H:$H,">="&$B12,'Sanitized Raw Data'!$H:$H,"<"&$B13,'Sanitized Raw Data'!$D:$D,"CC") -> 4166.15 | H12: =COUNTIFS('Sanitized Raw Data'!$H:$H,">="&$B12,'Sanitized Raw Data'!$H:$H,"<"&$B13,'Sanitized Raw Data'!$D:$D,"PayPal") -> 8 | I12: =SUMIFS('Sanitized Raw Data'!$C:$C,'Sanitized Raw Data'!$H:$H,">="&$B12,'Sanitized Raw Data'!$H:$H,"<"&$B13,'Sanitized Raw Data'!$D:$D,"PayPal") -> 390.09 | J12: =COUNTIFS('Sanitized Raw Data'!$H:$H,">="&$B12,'Sanitized Raw Data'!$H:$H,"<"&$B13,'Sanitized Raw Data'!$D:$D,"Personal Check") -> 10 | K12: =SUMIFS('Sanitized Raw Data'!$C:$C,'Sanitized Raw Data'!$H:$H,">="&$B12,'Sanitized Raw Data'!$H:$H,"<"&$B13,'Sanitized Raw Data'!$D:$D,"Personal Check") -> 764.63 | L12: =SUM(E12,K12,I12,G12,L11) -> 49633.74 | M12: =SUM(D12,F12,H12,J12) -> 78 | N12: =SUM(D12,J12,H12,F12,N11) -> 751 | O12: =L12/N12 -> 66.09019973 | P12: =(SUM(E12,K12,I12,G12))/(SUM(D12,F12,H12,J12)) -> 68.21628205 | Q12: =L12/Sheet11!$A9 -> 5514.86 | R12: =(L12-L11)/C$3 -> 0.08079797734 | S12: =E12/(L12-L11) -> 0 | T12: =D12/M12 -> 0 | U12: =SUM(E$3:E12)/L12 -> 0 | V12: =SUM(D$3:D12)/M12 -> 0 | W12: =G12/(L12-L11) -> 0.7829828581 | X12: =F12/M12 -> 0.7692307692 | Y12: =SUM(G$3:G12)/L12 -> 0.6884633316 | Z12: =SUM(F$3:F12)/N12 -> 0.5752330226 | AA12: =I12/(L12-L11) -> 0.07331319878 | AB12: =H12/M12 -> 0.1025641026 | AC12: =SUM(I$3:I12)/L12 -> 0.09043868143 | AD12: =SUM(H$3:H12)/N12 -> 0.2516644474 | AE12: =K12/(L12-L11) -> 0.1437039432 | AF12: =J12/M12 -> 0.1282051282 | AG12: =SUM(K$3:K12)/L12 -> 0.221097987 | AH12: =SUM(J$3:J12)/N12 -> 0.17310253 | AJ12: Day 9 | AK12: 2019-10-15 | AL12: 76366 | AM12: 0 | AN12: 0 | AO12: 16 | AP12: 1567 | AQ12: 3 | AR12: 60 | AS12: 4 | AT12: 225 | AU12: 30071.34 | AV12: 23 | AW12: 477 | AX12: 63.04264151 | AY12: 80.52173913 | AZ12: 3341.26 | BA12: 0.02425163031 | BB12: 0 | BC12: 0 | BD12: 0 | BE12: 0 | BF12: 0.846112311 | BG12: 0.6956521739 | BH12: 0.6384567498 | BI12: 0.5220125786 | BJ12: 0.03239740821 | BK12: 0.1304347826 | BL12: 0.1349886636 | BM12: 0.2914046122 | BN12: 0.1214902808 | BO12: 0.1739130435 | BP12: 0.2265545865 | BQ12: 0.1865828092 | BS12: Day 9 | BT12: 2019-04-16 | BU12: 74493 | BV12: 0 | BW12: 0 | BX12: 20 | BY12: 1792 | BZ12: 5 | CA12: 353 | CB12: 11 | CC12: 757 | CD12: 42077.89 | CE12: 36 | CF12: 658 | CG12: 63.94816109 | CH12: 80.61111111 | CI12: 4675.321111 | CJ12: 0.03895668049 | CK12: 0 | CL12: 0 | CM12: 0 | CN12: 0 | CO12: 0.6175051688 | CP12: 0.5555555556 | CQ12: 0.592209115 | CR12: 0.5212765957 | CS12: 0.1216402481 | CT12: 0.1388888889 | CU12: 0.1352810229 | CV12: 0.2674772036 | CW12: 0.260854583 | CX12: 0.3055555556 | CY12: 0.2725098621 | CZ12: 0.2112462006 | DB12: Day 9 | DC12: 2018-10-17 | DD12: 74104 | DE12: 0 | DF12: 0 | DG12: 22 | DH12: 9141.66 | DI12: 1 | DJ12: 10 | DK12: 11 | DL12: 1014.63 | DM12: 37743.98 | DN12: 34 | DO12: 623 | DP12: 60.58423756 | DQ12: 73.09470588 | DR12: 4193.775556 | DS12: 0.03353692108 | DT12: 0 | DU12: 0 | DV12: 0 | DW12: 0 | DX12: 0.5877105447 | DY12: 0.6470588235 | DZ12: 0.6511467524 | EA12: 0.5650080257 | EB12: 0.004023788638 | EC12: 0.02941176471 | ED12: 0.158509516 | EE12: 0.2471910112 | EF12: 0.4082656666 | EG12: 0.3235294118 | EH12: 0.1903437316 | EI12: 0.1878009631 | EK12: Day 9 | EL12: 2018-04-17 | EM12: 96226 | EN12: 0 | EO12: 0 | EP12: 18 | EQ12: 1272 | ER12: 4 | ES12: 180 | ET12: 16 | EU12: 980.63 | EV12: 33378.9 | EW12: 38 | EX12: 555 | EY12: 60.14216216 | EZ12: 64.01657895 | FA12: 3708.766667 | FB12: 0.0252803816 | FC12: 0 | FD12: 0 | FE12: 0 | FF12: 0 | FG12: 0.522890863 | FH12: 0.4736842105 | FI12: 0.5847568374 | FJ12: 0.5243243243 | FK12: 0.07399399004 | FL12: 0.1052631579 | FM12: 0.2175188517 | FN12: 0.2900900901 | FO12: 0.403115147 | FP12: 0.4210526316 | FQ12: 0.1977243109 | FR12: 0.1855855856
A13: Day 10 | B13: 2020-07-24 | C13: 65854 | D13: =COUNTIFS('Sanitized Raw Data'!$H:$H,">="&$B13,'Sanitized Raw Data'!$H:$H,"<"&$B14,'Sanitized Raw Data'!$D:$D,"Cash") -> 0 | E13: =SUMIFS('Sanitized Raw Data'!$C:$C,'Sanitized Raw Data'!$H:$H,">="&$B13,'Sanitized Raw Data'!$H:$H,"<"&$B14,'Sanitized Raw Data'!$D:$D,"Cash") -> 0 | F13: =COUNTIFS('Sanitized Raw Data'!$H:$H,">="&$B13,'Sanitized Raw Data'!$H:$H,"<"&$B14,'Sanitized Raw Data'!$D:$D,"CC") -> 16 | G13: =SUMIFS('Sanitized Raw Data'!$C:$C,'Sanitized Raw Data'!$H:$H,">="&$B13,'Sanitized Raw Data'!$H:$H,"<"&$B14,'Sanitized Raw Data'!$D:$D,"CC") -> 2211.33 | H13: =COUNTIFS('Sanitized Raw Data'!$H:$H,">="&$B13,'Sanitized Raw Data'!$H:$H,"<"&$B14,'Sanitized Raw Data'!$D:$D,"PayPal") -> 1 | I13: =SUMIFS('Sanitized Raw Data'!$C:$C,'Sanitized Raw Data'!$H:$H,">="&$B13,'Sanitized Raw Data'!$H:$H,"<"&$B14,'Sanitized Raw Data'!$D:$D,"PayPal") -> 50 | J13: =COUNTIFS('Sanitized Raw Data'!$H:$H,">="&$B13,'Sanitized Raw Data'!$H:$H,"<"&$B14,'Sanitized Raw Data'!$D:$D,"Personal Check") -> 2 | K13: =SUMIFS('Sanitized Raw Data'!$C:$C,'Sanitized Raw Data'!$H:$H,">="&$B13,'Sanitized Raw Data'!$H:$H,"<"&$B14,'Sanitized Raw Data'!$D:$D,"Personal Check") -> 264.01 | L13: =SUM(E13,K13,I13,G13,L12) -> 52159.08 | M13: =SUM(D13,F13,H13,J13) -> 19 | N13: =SUM(D13,J13,H13,F13,N12) -> 770 | O13: =L13/N13 -> 67.73906494 | P13: =(SUM(E13,K13,I13,G13))/(SUM(D13,F13,H13,J13)) -> 132.9126316 | Q13: =L13/Sheet11!$A10 -> 5215.908 | R13: =(L13-L12)/C$3 -> 0.03834755672 | S13: =E13/(L13-L12) -> 0 | T13: =D13/M13 -> 0 | U13: =SUM(E$3:E13)/L13 -> 0 | V13: =SUM(D$3:D13)/M13 -> 0 | W13: =G13/(L13-L12) -> 0.8756563473 | X13: =F13/M13 -> 0.8421052632 | Y13: =SUM(G$3:G13)/L13 -> 0.6975264901 | Z13: =SUM(F$3:F13)/N13 -> 0.5818181818 | AA13: =I13/(L13-L12) -> 0.01979931415 | AB13: =H13/M13 -> 0.05263157895 | AC13: =SUM(I$3:I13)/L13 -> 0.08701859772 | AD13: =SUM(H$3:H13)/N13 -> 0.2467532468 | AE13: =K13/(L13-L12) -> 0.1045443386 | AF13: =J13/M13 -> 0.1052631579 | AG13: =SUM(K$3:K13)/L13 -> 0.2154549122 | AH13: =SUM(J$3:J13)/N13 -> 0.1714285714 | AJ13: Day 10 | AK13: 2019-10-16 | AL13: 76366 | AM13: 0 | AN13: 0 | AO13: 10 | AP13: 894 | AQ13: 1 | AR13: 50 | AS13: 3 | AT13: 175 | AU13: 31190.34 | AV13: 14 | AW13: 491 | AX13: 63.52411405 | AY13: 79.92857143 | AZ13: 3119.034 | BA13: 0.01465311788 | BB13: 0 | BC13: 0 | BD13: 0 | BE13: 0 | BF13: 0.7989276139 | BG13: 0.7142857143 | BH13: 0.6442138816 | BI13: 0.5274949084 | BJ13: 0.04468275246 | BK13: 0.07142857143 | BL13: 0.1317488043 | BM13: 0.2851323829 | BN13: 0.1563896336 | BO13: 0.2142857143 | BP13: 0.2240373141 | BQ13: 0.1873727088 | BS13: Day 10 | BT13: 2019-04-17 | BU13: 74493 | BV13: 0 | BW13: 0 | BX13: 12 | BY13: 680 | BZ13: 0 | CA13: 0 | CB13: 4 | CC13: 225 | CD13: 42982.89 | CE13: 16 | CF13: 674 | CG13: 63.77283383 | CH13: 56.5625 | CI13: 4298.289 | CJ13: 0.0121487925 | CK13: 0 | CL13: 0 | CM13: 0 | CN13: 0 | CO13: 0.7513812155 | CP13: 0.75 | CQ13: 0.595560466 | CR13: 0.5267062315 | CS13: 0 | CT13: 0 | CU13: 0.1324326959 | CV13: 0.2611275964 | CW13: 0.2486187845 | CX13: 0.25 | CY13: 0.2720068381 | CZ13: 0.2121661721 | DB13: Day 10 | DC13: 2018-10-18 | DD13: 74104 | DE13: 0 | DF13: 0 | DG13: 8 | DH13: 9141.66 | DI13: 3 | DJ13: 325 | DK13: 3 | DL13: 200 | DM13: 38588.98 | DN13: 14 | DO13: 637 | DP13: 60.57924647 | DQ13: 60.35714286 | DR13: 3858.898 | DS13: 0.01140289323 | DT13: 0 | DU13: 0 | DV13: 0 | DW13: 0 | DX13: 0.3786982249 | DY13: 0.5714285714 | DZ13: 0.6451808262 | EA13: 0.5651491366 | EB13: 0.3846153846 | EC13: 0.2142857143 | ED13: 0.1634606564 | EE13: 0.2464678179 | EF13: 0.2366863905 | EG13: 0.2142857143 | EH13: 0.1913585174 | EI13: 0.1883830455 | EK13: Day 10 | EL13: 2018-04-18 | EM13: 96226 | EN13: 0 | EO13: 0 | EP13: 19 | EQ13: 913.17 | ER13: 7 | ES13: 264.66 | ET13: 15 | EU13: 2265 | EV13: 36821.73 | EW13: 41 | EX13: 596 | EY13: 61.78142617 | EZ13: 83.97146341 | FA13: 3682.173 | FB13: 0.03577858375 | FC13: 0 | FD13: 0 | FE13: 0 | FF13: 0 | FG13: 0.2652381907 | FH13: 0.4634146341 | FI13: 0.5548818592 | FJ13: 0.5201342282 | FK13: 0.07687280522 | FL13: 0.1707317073 | FM13: 0.2043684531 | FN13: 0.2818791946 | FO13: 0.6578890041 | FP13: 0.3658536585 | FQ13: 0.2407496878 | FR13: 0.1979865772
A14: Day 11 | B14: 2020-07-25 | C14: 65854 | D14: =COUNTIFS('Sanitized Raw Data'!$H:$H,">="&$B14,'Sanitized Raw Data'!$H:$H,"<"&$B15,'Sanitized Raw Data'!$D:$D,"Cash") -> 0 | E14: =SUMIFS('Sanitized Raw Data'!$C:$C,'Sanitized Raw Data'!$H:$H,">="&$B14,'Sanitized Raw Data'!$H:$H,"<"&$B15,'Sanitized Raw Data'!$D:$D,"Cash") -> 0 | F14: =COUNTIFS('Sanitized Raw Data'!$H:$H,">="&$B14,'Sanitized Raw Data'!$H:$H,"<"&$B15,'Sanitized Raw Data'!$D:$D,"CC") -> 1 | G14: =SUMIFS('Sanitized Raw Data'!$C:$C,'Sanitized Raw Data'!$H:$H,">="&$B14,'Sanitized Raw Data'!$H:$H,"<"&$B15,'Sanitized Raw Data'!$D:$D,"CC") -> 50 | H14: =COUNTIFS('Sanitized Raw Data'!$H:$H,">="&$B14,'Sanitized Raw Data'!$H:$H,"<"&$B15,'Sanitized Raw Data'!$D:$D,"PayPal") -> 0 | I14: =SUMIFS('Sanitized Raw Data'!$C:$C,'Sanitized Raw Data'!$H:$H,">="&$B14,'Sanitized Raw Data'!$H:$H,"<"&$B15,'Sanitized Raw Data'!$D:$D,"PayPal") -> 0 | J14: =COUNTIFS('Sanitized Raw Data'!$H:$H,">="&$B14,'Sanitized Raw Data'!$H:$H,"<"&$B15,'Sanitized Raw Data'!$D:$D,"Personal Check") -> 1 | K14: =SUMIFS('Sanitized Raw Data'!$C:$C,'Sanitized Raw Data'!$H:$H,">="&$B14,'Sanitized Raw Data'!$H:$H,"<"&$B15,'Sanitized Raw Data'!$D:$D,"Personal Check") -> 50 | L14: =SUM(E14,K14,I14,G14,L13) -> 52259.08 | M14: =SUM(D14,F14,H14,J14) -> 2 | N14: =SUM(D14,J14,H14,F14,N13) -> 772 | O14: =L14/N14 -> 67.69310881 | P14: =(SUM(E14,K14,I14,G14))/(SUM(D14,F14,H14,J14)) -> 50 | Q14: =L14/Sheet11!$A11 -> 4750.825455 | R14: =(L14-L13)/C$3 -> 0.001518510645 | S14: =E14/(L14-L13) -> 0 | T14: =D14/M14 -> 0 | U14: =SUM(E$3:E14)/L14 -> 0 | V14: =SUM(D$3:D14)/M14 -> 0 | W14: =G14/(L14-L13) -> 0.5 | X14: =F14/M14 -> 0.5 | Y14: =SUM(G$3:G14)/L14 -> 0.6971485147 | Z14: =SUM(F$3:F14)/N14 -> 0.5816062176 | AA14: =I14/(L14-L13) -> 0 | AB14: =H14/M14 -> 0 | AC14: =SUM(I$3:I14)/L14 -> 0.08685208389 | AD14: =SUM(H$3:H14)/N14 -> 0.2461139896 | AE14: =K14/(L14-L13) -> 0.5 | AF14: =J14/M14 -> 0.5 | AG14: =SUM(K$3:K14)/L14 -> 0.2159994014 | AH14: =SUM(J$3:J14)/N14 -> 0.1722797927 | AJ14: Day 11 | AK14: 2019-10-17 | AL14: 76366 | AM14: 0 | AN14: 0 | AO14: 1 | AP14: 10 | AQ14: 3 | AR14: 150 | AS14: 1 | AT14: 100 | AU14: 31450.34 | AV14: 5 | AW14: 496 | AX14: 63.40794355 | AY14: 52 | AZ14: 2859.121818 | BA14: 0.003404656523 | BB14: 0 | BC14: 0 | BD14: 0 | BE14: 0 | BF14: 0.03846153846 | BG14: 0.2 | BH14: 0.6392061262 | BI14: 0.5241935484 | BJ14: 0.5769230769 | BK14: 0.6 | BL14: 0.1354290605 | BM14: 0.2883064516 | BN14: 0.3846153846 | BO14: 0.2 | BP14: 0.2253648132 | BQ14: 0.1875 | BS14: Day 11 | BT14: 2019-04-18 | BU14: 74493 | BV14: 0 | BW14: 0 | BX14: 11 | BY14: 878.79 | BZ14: 1 | CA14: 196.4 | CB14: 4 | CC14: 210 | CD14: 44268.08 | CE14: 16 | CF14: 690 | CG14: 64.15663768 | CH14: 80.324375 | CI14: 4024.370909 | CJ14: 0.01725249352 | CK14: 0 | CL14: 0 | CM14: 0 | CN14: 0 | CO14: 0.6837821645 | CP14: 0.6875 | CQ14: 0.5981217166 | CR14: 0.5304347826 | CS14: 0.1528178713 | CT14: 0.0625 | CU14: 0.1330245179 | CV14: 0.2565217391 | CW14: 0.1633999642 | CX14: 0.25 | CY14: 0.2688537655 | CZ14: 0.2130434783 | DB14: Day 11 | DC14: 2018-10-19 | DD14: 74104 | DE14: 0 | DF14: 0 | DG14: 12 | DH14: 9141.66 | DI14: 0 | DJ14: 0 | DK14: 4 | DL14: 275 | DM14: 39903.98 | DN14: 16 | DO14: 653 | DP14: 61.10869832 | DQ14: 82.1875 | DR14: 3627.634545 | DS14: 0.01774533089 | DT14: 0 | DU14: 0 | DV14: 0 | DW14: 0 | DX14: 0.7908745247 | DY14: 0.75 | DZ14: 0.6499820319 | EA14: 0.5696784074 | EB14: 0 | EC14: 0 | ED14: 0.1580739565 | EE14: 0.2404287902 | EF14: 0.2091254753 | EG14: 0.25 | EH14: 0.1919440116 | EI14: 0.1898928025 | EK14: Day 11 | EL14: 2018-04-19 | EM14: 96226 | EN14: 0 | EO14: 0 | EP14: 16 | EQ14: 1159.63 | ER14: 0 | ES14: 0 | ET14: 4 | EU14: 255 | EV14: 38236.36 | EW14: 20 | EX14: 616 | EY14: 62.07201299 | EZ14: 70.7315 | FA14: 3476.032727 | FB14: 0.01470112028 | FC14: 0 | FD14: 0 | FE14: 0 | FF14: 0 | FG14: 0.819740851 | FH14: 0.8 | FI14: 0.5646808431 | FJ14: 0.5292207792 | FK14: 0 | FL14: 0 | FM14: 0.1968074367 | FN14: 0.2727272727 | FO14: 0.180259149 | FP14: 0.2 | FQ14: 0.2385117203 | FR14: 0.1980519481
A15: Day 12 | B15: 2020-07-26 | C15: 65854 | D15: =COUNTIFS('Sanitized Raw Data'!$H:$H,">="&$B15,'Sanitized Raw Data'!$H:$H,"<"&$B16,'Sanitized Raw Data'!$D:$D,"Cash") -> 0 | E15: =SUMIFS('Sanitized Raw Data'!$C:$C,'Sanitized Raw Data'!$H:$H,">="&$B15,'Sanitized Raw Data'!$H:$H,"<"&$B16,'Sanitized Raw Data'!$D:$D,"Cash") -> 0 | F15: =COUNTIFS('Sanitized Raw Data'!$H:$H,">="&$B15,'Sanitized Raw Data'!$H:$H,"<"&$B16,'Sanitized Raw Data'!$D:$D,"CC") -> 5 | G15: =SUMIFS('Sanitized Raw Data'!$C:$C,'Sanitized Raw Data'!$H:$H,">="&$B15,'Sanitized Raw Data'!$H:$H,"<"&$B16,'Sanitized Raw Data'!$D:$D,"CC") -> 250 | H15: =COUNTIFS('Sanitized Raw Data'!$H:$H,">="&$B15,'Sanitized Raw Data'!$H:$H,"<"&$B16,'Sanitized Raw Data'!$D:$D,"PayPal") -> 0 | I15: =SUMIFS('Sanitized Raw Data'!$C:$C,'Sanitized Raw Data'!$H:$H,">="&$B15,'Sanitized Raw Data'!$H:$H,"<"&$B16,'Sanitized Raw Data'!$D:$D,"PayPal") -> 0 | J15: =COUNTIFS('Sanitized Raw Data'!$H:$H,">="&$B15,'Sanitized Raw Data'!$H:$H,"<"&$B16,'Sanitized Raw Data'!$D:$D,"Personal Check") -> 0 | K15: =SUMIFS('Sanitized Raw Data'!$C:$C,'Sanitized Raw Data'!$H:$H,">="&$B15,'Sanitized Raw Data'!$H:$H,"<"&$B16,'Sanitized Raw Data'!$D:$D,"Personal Check") -> 0 | L15: =SUM(E15,K15,I15,G15,L14) -> 52509.08 | M15: =SUM(D15,F15,H15,J15) -> 5 | N15: =SUM(D15,J15,H15,F15,N14) -> 777 | O15: =L15/N15 -> 67.57925354 | P15: =(SUM(E15,K15,I15,G15))/(SUM(D15,F15,H15,J15)) -> 50 | Q15: =L15/Sheet11!$A12 -> 4375.756667 | R15: =(L15-L14)/C$3 -> 0.003796276612 | S15: =E15/(L15-L14) -> 0 | T15: =D15/M15 -> 0 | U15: =SUM(E$3:E15)/L15 -> 0 | V15: =SUM(D$3:D15)/M15 -> 0 | W15: =G15/(L15-L14) -> 1 | X15: =F15/M15 -> 1 | Y15: =SUM(G$3:G15)/L15 -> 0.6985904152 | Z15: =SUM(F$3:F15)/N15 -> 0.5842985843 | AA15: =I15/(L15-L14) -> 0 | AB15: =H15/M15 -> 0 | AC15: =SUM(I$3:I15)/L15 -> 0.08643857405 | AD15: =SUM(H$3:H15)/N15 -> 0.2445302445 | AE15: =K15/(L15-L14) -> 0 | AF15: =J15/M15 -> 0 | AG15: =SUM(K$3:K15)/L15 -> 0.2149710107 | AH15: =SUM(J$3:J15)/N15 -> 0.1711711712 | AJ15: Day 12 | AK15: 2019-10-18 | AL15: 76366 | AM15: 0 | AN15: 0 | AO15: 5 | AP15: 400.2 | AQ15: 0 | AR15: 0 | AS15: 3 | AT15: 158.63 | AU15: 32009.17 | AV15: 8 | AW15: 504 | AX15: 63.51025794 | AY15: 69.85375 | AZ15: 2667.430833 | BA15: 0.007317785402 | BB15: 0 | BC15: 0 | BD15: 0 | BE15: 0 | BF15: 0.7161390763 | BG15: 0.625 | BH15: 0.6405492551 | BI15: 0.5257936508 | BJ15: 0 | BK15: 0 | BL15: 0.1330646812 | BM15: 0.2837301587 | BN15: 0.2838609237 | BO15: 0.375 | BP15: 0.2263860637 | BQ15: 0.1904761905 | BS15: Day 12 | BT15: 2019-04-19 | BU15: 74493 | BV15: 0 | BW15: 0 | BX15: 3 | BY15: 139 | BZ15: 3 | CA15: 141 | CB15: 1 | CC15: 50 | CD15: 44598.08 | CE15: 7 | CF15: 697 | CG15: 63.98576758 | CH15: 47.14285714 | CI15: 3716.506667 | CJ15: 0.004429946438 | CK15: 0 | CL15: 0 | CM15: 0 | CN15: 0 | CO15: 0.4212121212 | CP15: 0.4285714286 | CQ15: 0.5968126879 | CR15: 0.5294117647 | CS15: 0.4272727273 | CT15: 0.4285714286 | CU15: 0.1352017845 | CV15: 0.2582496413 | CW15: 0.1515151515 | CX15: 0.1428571429 | CY15: 0.2679855276 | CZ15: 0.212338594 | DB15: Day 12 | DC15: 2018-10-20 | DD15: 74104 | DE15: 0 | DF15: 0 | DG15: 15 | DH15: 9141.66 | DI15: 3 | DJ15: 180 | DK15: 5 | DL15: 289 | DM15: 41322.98 | DN15: 23 | DO15: 676 | DP15: 61.12866864 | DQ15: 61.69565217 | DR15: 3443.581667 | DS15: 0.0191487639 | DT15: 0 | DU15: 0 | DV15: 0 | DW15: 0 | DX15: 0.6694855532 | DY15: 0.652173913 | DZ15: 0.6506517681 | EA15: 0.5724852071 | EB15: 0.1268498943 | EC15: 0.1304347826 | ED15: 0.1570017458 | EE15: 0.2366863905 | EF15: 0.2036645525 | EG15: 0.2173913043 | EH15: 0.1923464861 | EI15: 0.1908284024 | EK15: Day 12 | EL15: 2018-04-20 | EM15: 96226 | EN15: 0 | EO15: 0 | EP15: 8 | EQ15: 508.77 | ER15: 5 | ES15: 240 | ET15: 5 | EU15: 337 | EV15: 39322.13 | EW15: 18 | EX15: 634 | EY15: 62.02228707 | EZ15: 60.32055556 | FA15: 3276.844167 | FB15: 0.01128354083 | FC15: 0 | FD15: 0 | FE15: 0 | FF15: 0 | FG15: 0.4685799018 | FH15: 0.4444444444 | FI15: 0.5620272859 | FJ15: 0.5268138801 | FK15: 0.2210412887 | FL15: 0.2777777778 | FM15: 0.1974765863 | FN15: 0.2728706625 | FO15: 0.3103788095 | FP15: 0.2777777778 | FQ15: 0.2404961278 | FR15: 0.2003154574
A16: Day 13 | B16: 2020-07-27 | C16: 65854 | D16: =COUNTIFS('Sanitized Raw Data'!$H:$H,">="&$B16,'Sanitized Raw Data'!$H:$H,"<"&$B17,'Sanitized Raw Data'!$D:$D,"Cash") -> 0 | E16: =SUMIFS('Sanitized Raw Data'!$C:$C,'Sanitized Raw Data'!$H:$H,">="&$B16,'Sanitized Raw Data'!$H:$H,"<"&$B17,'Sanitized Raw Data'!$D:$D,"Cash") -> 0 | F16: =COUNTIFS('Sanitized Raw Data'!$H:$H,">="&$B16,'Sanitized Raw Data'!$H:$H,"<"&$B17,'Sanitized Raw Data'!$D:$D,"CC") -> 5 | G16: =SUMIFS('Sanitized Raw Data'!$C:$C,'Sanitized Raw Data'!$H:$H,">="&$B16,'Sanitized Raw Data'!$H:$H,"<"&$B17,'Sanitized Raw Data'!$D:$D,"CC") -> 275 | H16: =COUNTIFS('Sanitized Raw Data'!$H:$H,">="&$B16,'Sanitized Raw Data'!$H:$H,"<"&$B17,'Sanitized Raw Data'!$D:$D,"PayPal") -> 2 | I16: =SUMIFS('Sanitized Raw Data'!$C:$C,'Sanitized Raw Data'!$H:$H,">="&$B16,'Sanitized Raw Data'!$H:$H,"<"&$B17,'Sanitized Raw Data'!$D:$D,"PayPal") -> 45 | J16: =COUNTIFS('Sanitized Raw Data'!$H:$H,">="&$B16,'Sanitized Raw Data'!$H:$H,"<"&$B17,'Sanitized Raw Data'!$D:$D,"Personal Check") -> 4 | K16: =SUMIFS('Sanitized Raw Data'!$C:$C,'Sanitized Raw Data'!$H:$H,">="&$B16,'Sanitized Raw Data'!$H:$H,"<"&$B17,'Sanitized Raw Data'!$D:$D,"Personal Check") -> 414 | L16: =SUM(E16,K16,I16,G16,L15) -> 53243.08 | M16: =SUM(D16,F16,H16,J16) -> 11 | N16: =SUM(D16,J16,H16,F16,N15) -> 788 | O16: =L16/N16 -> 67.56736041 | P16: =(SUM(E16,K16,I16,G16))/(SUM(D16,F16,H16,J16)) -> 66.72727273 | Q16: =L16/Sheet11!$A13 -> 4095.621538 | R16: =(L16-L15)/C$3 -> 0.01114586813 | S16: =E16/(L16-L15) -> 0 | T16: =D16/M16 -> 0 | U16: =SUM(E$3:E16)/L16 -> 0 | V16: =SUM(D$3:D16)/M16 -> 0 | W16: =G16/(L16-L15) -> 0.3746594005 | X16: =F16/M16 -> 0.4545454545 | Y16: =SUM(G$3:G16)/L16 -> 0.6941247576 | Z16: =SUM(F$3:F16)/N16 -> 0.5824873096 | AA16: =I16/(L16-L15) -> 0.06130790191 | AB16: =H16/M16 -> 0.1818181818 | AC16: =SUM(I$3:I16)/L16 -> 0.0860921269 | AD16: =SUM(H$3:H16)/N16 -> 0.2436548223 | AE16: =K16/(L16-L15) -> 0.5640326975 | AF16: =J16/M16 -> 0.3636363636 | AG16: =SUM(K$3:K16)/L16 -> 0.2197831155 | AH16: =SUM(J$3:J16)/N16 -> 0.173857868 | AJ16: Day 13 | AK16: 2019-10-19 | AL16: 76366 | AM16: 0 | AN16: 0 | AO16: 5 | AP16: 304 | AQ16: 2 | AR16: 75 | AS16: 1 | AT16: 50 | AU16: 32438.17 | AV16: 8 | AW16: 512 | AX16: 63.35580078 | AY16: 53.625 | AZ16: 2495.243846 | BA16: 0.005617683262 | BB16: 0 | BC16: 0 | BD16: 0 | BE16: 0 | BF16: 0.7086247086 | BG16: 0.625 | BH16: 0.6414495639 | BI16: 0.52734375 | BJ16: 0.1748251748 | BK16: 0.25 | BL16: 0.1336169704 | BM16: 0.283203125 | BN16: 0.1165501166 | BO16: 0.125 | BP16: 0.2249334657 | BQ16: 0.189453125 | BS16: Day 13 | BT16: 2019-04-20 | BU16: 74493 | BV16: 0 | BW16: 0 | BX16: 10 | BY16: 1031 | BZ16: 3 | CA16: 80 | CB16: 0 | CC16: 0 | CD16: 45709.08 | CE16: 13 | CF16: 710 | CG16: 64.37898592 | CH16: 85.46153846 | CI16: 3516.083077 | CJ16: 0.01491415301 | CK16: 0 | CL16: 0 | CM16: 0 | CN16: 0 | CO16: 0.9279927993 | CP16: 0.7692307692 | CQ16: 0.6048623162 | CR16: 0.5338028169 | CS16: 0.07200720072 | CT16: 0.2307692308 | CU16: 0.1336657837 | CV16: 0.2577464789 | CW16: 0 | CX16: 0 | CY16: 0.2614719001 | CZ16: 0.2084507042 | DB16: Day 13 | DC16: 2018-10-21 | DD16: 74104 | DE16: 0 | DF16: 0 | DG16: 10 | DH16: 9141.66 | DI16: 3 | DJ16: 139.97 | DK16: 1 | DL16: 50 | DM16: 42270.95 | DN16: 14 | DO16: 690 | DP16: 61.26224638 | DQ16: 67.71214286 | DR16: 3251.611538 | DS16: 0.01279242686 | DT16: 0 | DU16: 0 | DV16: 0 | DW16: 0 | DX16: 0.799603363 | DY16: 0.7142857143 | DZ16: 0.6539921625 | EA16: 0.5753623188 | EB16: 0.1476523519 | EC16: 0.2142857143 | ED16: 0.1567920759 | EE16: 0.2362318841 | EF16: 0.05274428516 | EG16: 0.07142857143 | EH16: 0.1892157617 | EI16: 0.1884057971 | EK16: Day 13 | EL16: 2018-04-21 | EM16: 96226 | EN16: 0 | EO16: 0 | EP16: 4 | EQ16: 339.54 | ER16: 1 | ES16: 19.77 | ET16: 1 | EU16: 100 | EV16: 39781.44 | EW16: 6 | EX16: 640 | EY16: 62.1585 | EZ16: 76.55166667 | FA16: 3060.110769 | FB16: 0.004773242159 | FC16: 0 | FD16: 0 | FE16: 0 | FF16: 0 | FG16: 0.7392392937 | FH16: 0.6666666667 | FI16: 0.5640733468 | FJ16: 0.528125 | FK16: 0.04304282511 | FL16: 0.1666666667 | FM16: 0.1956935194 | FN16: 0.271875 | FO16: 0.2177178812 | FP16: 0.1666666667 | FQ16: 0.2402331338 | FR16: 0.2
A17: Day 14 | B17: 2020-07-28 | C17: 65854 | D17: =COUNTIFS('Sanitized Raw Data'!$H:$H,">="&$B17,'Sanitized Raw Data'!$H:$H,"<"&$B18,'Sanitized Raw Data'!$D:$D,"Cash") -> 0 | E17: =SUMIFS('Sanitized Raw Data'!$C:$C,'Sanitized Raw Data'!$H:$H,">="&$B17,'Sanitized Raw Data'!$H:$H,"<"&$B18,'Sanitized Raw Data'!$D:$D,"Cash") -> 0 | F17: =COUNTIFS('Sanitized Raw Data'!$H:$H,">="&$B17,'Sanitized Raw Data'!$H:$H,"<"&$B18,'Sanitized Raw Data'!$D:$D,"CC") -> 15 | G17: =SUMIFS('Sanitized Raw Data'!$C:$C,'Sanitized Raw Data'!$H:$H,">="&$B17,'Sanitized Raw Data'!$H:$H,"<"&$B18,'Sanitized Raw Data'!$D:$D,"CC") -> 1122.63 | H17: =COUNTIFS('Sanitized Raw Data'!$H:$H,">="&$B17,'Sanitized Raw Data'!$H:$H,"<"&$B18,'Sanitized Raw Data'!$D:$D,"PayPal") -> 1 | I17: =SUMIFS('Sanitized Raw Data'!$C:$C,'Sanitized Raw Data'!$H:$H,">="&$B17,'Sanitized Raw Data'!$H:$H,"<"&$B18,'Sanitized Raw Data'!$D:$D,"PayPal") -> 20 | J17: =COUNTIFS('Sanitized Raw Data'!$H:$H,">="&$B17,'Sanitized Raw Data'!$H:$H,"<"&$B18,'Sanitized Raw Data'!$D:$D,"Personal Check") -> 1 | K17: =SUMIFS('Sanitized Raw Data'!$C:$C,'Sanitized Raw Data'!$H:$H,">="&$B17,'Sanitized Raw Data'!$H:$H,"<"&$B18,'Sanitized Raw Data'!$D:$D,"Personal Check") -> 25 | L17: =SUM(E17,K17,I17,G17,L16) -> 54410.71 | M17: =SUM(D17,F17,H17,J17) -> 17 | N17: =SUM(D17,J17,H17,F17,N16) -> 805 | O17: =L17/N17 -> 67.5909441 | P17: =(SUM(E17,K17,I17,G17))/(SUM(D17,F17,H17,J17)) -> 68.68411765 | Q17: =L17/Sheet11!$A14 -> 3886.479286 | R17: =(L17-L16)/C$3 -> 0.01773058584 | S17: =E17/(L17-L16) -> 0 | T17: =D17/M17 -> 0 | U17: =SUM(E$3:E17)/L17 -> 0 | V17: =SUM(D$3:D17)/M17 -> 0 | W17: =G17/(L17-L16) -> 0.9614603941 | X17: =F17/M17 -> 0.8823529412 | Y17: =SUM(G$3:G17)/L17 -> 0.6998616633 | Z17: =SUM(F$3:F17)/N17 -> 0.5888198758 | AA17: =I17/(L17-L16) -> 0.01712871372 | AB17: =H17/M17 -> 0.05882352941 | AC17: =SUM(I$3:I17)/L17 -> 0.08461220227 | AD17: =SUM(H$3:H17)/N17 -> 0.2397515528 | AE17: =K17/(L17-L16) -> 0.02141089215 | AF17: =J17/M17 -> 0.05882352941 | AG17: =SUM(K$3:K17)/L17 -> 0.2155261345 | AH17: =SUM(J$3:J17)/N17 -> 0.1714285714 | AJ17: Day 14 | AK17: 2019-10-20 | AL17: 76366 | AM17: 0 | AN17: 0 | AO17: 44 | AP17: 3830.89 | AQ17: 12 | AR17: 599.79 | AS17: 3 | AT17: 125 | AU17: 36993.85 | AV17: 59 | AW17: 571 | AX17: 64.78782837 | AY17: 77.21491525 | AZ17: 2642.417857 | BA17: 0.05965586779 | BB17: 0 | BC17: 0 | BD17: 0 | BE17: 0 | BF17: 0.8409041021 | BG17: 0.7457627119 | BH17: 0.666011783 | BI17: 0.5499124343 | BJ17: 0.131657623 | BK17: 0.2033898305 | BL17: 0.1333756827 | BM17: 0.2749562172 | BN17: 0.02743827486 | BO17: 0.05084745763 | BP17: 0.2006125342 | BQ17: 0.1751313485 | BS17: Day 14 | BT17: 2019-04-21 | BU17: 74493 | BV17: 0 | BW17: 0 | BX17: 7 | BY17: 281 | BZ17: 0 | CA17: 0 | CB17: 1 | CC17: 100 | CD17: 46090.08 | CE17: 8 | CF17: 718 | CG17: 64.19231198 | CH17: 47.625 | CI17: 3292.148571 | CJ17: 0.005114574524 | CK17: 0 | CL17: 0 | CM17: 0 | CN17: 0 | CO17: 0.7375328084 | CP17: 0.875 | CQ17: 0.6059590263 | CR17: 0.5376044568 | CS17: 0 | CT17: 0 | CU17: 0.1325608461 | CV17: 0.2548746518 | CW17: 0.2624671916 | CX17: 0.125 | CY17: 0.2614801276 | CZ17: 0.2075208914 | DB17: Day 14 | DC17: 2018-10-22 | DD17: 74104 | DE17: 0 | DF17: 0 | DG17: 55 | DH17: 9141.66 | DI17: 19 | DJ17: 849.07 | DK17: 14 | DL17: 978.63 | DM17: 47398.53 | DN17: 88 | DO17: 778 | DP17: 60.92356041 | DQ17: 58.26795455 | DR17: 3385.609286 | DS17: 0.06919437547 | DT17: 0 | DU17: 0 | DV17: 0 | DW17: 0 | DX17: 0.6435550494 | DY17: 0.625 | DZ17: 0.652863074 | EA17: 0.5809768638 | EB17: 0.1655888353 | EC17: 0.2159090909 | ED17: 0.1577437106 | EE17: 0.233933162 | EF17: 0.1908561154 | EG17: 0.1590909091 | EH17: 0.1893932154 | EI17: 0.1850899743 | EK17: Day 14 | EL17: 2018-04-22 | EM17: 96226 | EN17: 0 | EO17: 0 | EP17: 27 | EQ17: 2061 | ER17: 16 | ES17: 919.63 | ET17: 5 | EU17: 1290 | EV17: 44052.07 | EW17: 48 | EX17: 688 | EY17: 64.02917151 | EZ17: 88.97145833 | FA17: 3146.576429 | FB17: 0.04438124831 | FC17: 0 | FD17: 0 | FE17: 0 | FF17: 0 | FG17: 0.4825985862 | FH17: 0.5625 | FI17: 0.5561747723 | FJ17: 0.5305232558 | FK17: 0.2153382522 | FL17: 0.3333333333 | FM17: 0.1975979789 | FN17: 0.2761627907 | FO17: 0.3020631616 | FP17: 0.1041666667 | FQ17: 0.2462272488 | FR17: 0.1933139535
A18: Day 15 | B18: 2020-07-29 | C18: 65854 | D18: =COUNTIFS('Sanitized Raw Data'!$H:$H,">="&$B18,'Sanitized Raw Data'!$H:$H,"<"&$B19,'Sanitized Raw Data'!$D:$D,"Cash") -> 0 | E18: =SUMIFS('Sanitized Raw Data'!$C:$C,'Sanitized Raw Data'!$H:$H,">="&$B18,'Sanitized Raw Data'!$H:$H,"<"&$B19,'Sanitized Raw Data'!$D:$D,"Cash") -> 0 | F18: =COUNTIFS('Sanitized Raw Data'!$H:$H,">="&$B18,'Sanitized Raw Data'!$H:$H,"<"&$B19,'Sanitized Raw Data'!$D:$D,"CC") -> 23 | G18: =SUMIFS('Sanitized Raw Data'!$C:$C,'Sanitized Raw Data'!$H:$H,">="&$B18,'Sanitized Raw Data'!$H:$H,"<"&$B19,'Sanitized Raw Data'!$D:$D,"CC") -> 1921.64 | H18: =COUNTIFS('Sanitized Raw Data'!$H:$H,">="&$B18,'Sanitized Raw Data'!$H:$H,"<"&$B19,'Sanitized Raw Data'!$D:$D,"PayPal") -> 1 | I18: =SUMIFS('Sanitized Raw Data'!$C:$C,'Sanitized Raw Data'!$H:$H,">="&$B18,'Sanitized Raw Data'!$H:$H,"<"&$B19,'Sanitized Raw Data'!$D:$D,"PayPal") -> 10 | J18: =COUNTIFS('Sanitized Raw Data'!$H:$H,">="&$B18,'Sanitized Raw Data'!$H:$H,"<"&$B19,'Sanitized Raw Data'!$D:$D,"Personal Check") -> 1 | K18: =SUMIFS('Sanitized Raw Data'!$C:$C,'Sanitized Raw Data'!$H:$H,">="&$B18,'Sanitized Raw Data'!$H:$H,"<"&$B19,'Sanitized Raw Data'!$D:$D,"Personal Check") -> 55 | L18: =SUM(E18,K18,I18,G18,L17) -> 56397.35 | M18: =SUM(D18,F18,H18,J18) -> 25 | N18: =SUM(D18,J18,H18,F18,N17) -> 830 | O18: =L18/N18 -> 67.94861446 | P18: =(SUM(E18,K18,I18,G18))/(SUM(D18,F18,H18,J18)) -> 79.4656 | Q18: =L18/Sheet11!$A15 -> 3759.823333 | R18: =(L18-L17)/C$3 -> 0.03016733987 | S18: =E18/(L18-L17) -> 0 | T18: =D18/M18 -> 0 | U18: =SUM(E$3:E18)/L18 -> 0 | V18: =SUM(D$3:D18)/M18 -> 0 | W18: =G18/(L18-L17) -> 0.96728144 | X18: =F18/M18 -> 0.92 | Y18: =SUM(G$3:G18)/L18 -> 0.7092817304 | Z18: =SUM(F$3:F18)/N18 -> 0.5987951807 | AA18: =I18/(L18-L17) -> 0.005033624612 | AB18: =H18/M18 -> 0.04 | AC18: =SUM(I$3:I18)/L18 -> 0.08180898571 | AD18: =SUM(H$3:H18)/N18 -> 0.2337349398 | AE18: =K18/(L18-L17) -> 0.02768493537 | AF18: =J18/M18 -> 0.04 | AG18: =SUM(K$3:K18)/L18 -> 0.2089092839 | AH18: =SUM(J$3:J18)/N18 -> 0.1674698795 | AJ18: Day 15 | AK18: 2019-10-21 | AL18: 76366 | AM18: 0 | AN18: 0 | AO18: 68 | AP18: 5477.52 | AQ18: 21 | AR18: 1522.58 | AS18: 13 | AT18: 948 | AU18: 44941.95 | AV18: 102 | AW18: 673 | AX18: 66.77852897 | AY18: 77.92254902 | AZ18: 2996.13 | BA18: 0.1040790404 | BB18: 0 | BC18: 0 | BD18: 0 | BE18: 0 | BF18: 0.6891609315 | BG18: 0.6666666667 | BH18: 0.6701057698 | BI18: 0.5676077266 | BJ18: 0.1915652798 | BK18: 0.2058823529 | BL18: 0.1436666633 | BM18: 0.26448737 | BN18: 0.1192737887 | BO18: 0.1274509804 | BP18: 0.1862275669 | BQ18: 0.1679049034 | BS18: Day 15 | BT18: 2019-04-22 | BU18: 74493 | BV18: 0 | BW18: 0 | BX18: 10 | BY18: 992.11 | BZ18: 1 | CA18: 19.89 | CB18: 4 | CC18: 214.58 | CD18: 47316.66 | CE18: 15 | CF18: 733 | CG18: 64.55206003 | CH18: 81.772 | CI18: 3154.444 | CJ18: 0.01646570819 | CK18: 0 | CL18: 0 | CM18: 0 | CN18: 0 | CO18: 0.8088424726 | CP18: 0.6666666667 | CQ18: 0.611218332 | CR18: 0.5402455662 | CS18: 0.0162158196 | CT18: 0.06666666667 | CU18: 0.129544858 | CV18: 0.2510231924 | CW18: 0.1749417078 | CX18: 0.2666666667 | CY18: 0.25923681 | CZ18: 0.2087312415 | DB18: Day 15 | DC18: 2018-10-23 | DD18: 74104 | DE18: 0 | DF18: 0 | DG18: 13 | DH18: 9141.66 | DI18: 4 | DJ18: 199.88 | DK18: 7 | DL18: 424 | DM18: 48692.41 | DN18: 24 | DO18: 802 | DP18: 60.71372818 | DQ18: 53.91166667 | DR18: 3246.160667 | DS18: 0.01746032603 | DT18: 0 | DU18: 0 | DV18: 0 | DW18: 0 | DX18: 0.5178223637 | DY18: 0.5416666667 | DZ18: 0.6492747022 | EA18: 0.5798004988 | EB18: 0.1544810956 | EC18: 0.1666666667 | ED18: 0.1576570147 | EE18: 0.2319201995 | EF18: 0.3276965406 | EG18: 0.2916666667 | EH18: 0.1930682831 | EI18: 0.1882793017 | EK18: Day 15 | EL18: 2018-04-23 | EM18: 96226 | EN18: 0 | EO18: 0 | EP18: 73 | EQ18: 7356.41 | ER18: 17 | ES18: 1295.18 | ET18: 10 | EU18: 543.01 | EV18: 53246.67 | EW18: 100 | EX18: 788 | EY18: 67.57191624 | EZ18: 91.946 | FA18: 3549.778 | FB18: 0.09555213768 | FC18: 0 | FD18: 0 | FE18: 0 | FF18: 0 | FG18: 0.8000793944 | FH18: 0.73 | FI18: 0.5982920622 | FJ18: 0.5558375635 | FK18: 0.1408631153 | FL18: 0.17 | FM18: 0.18780104 | FN18: 0.2626903553 | FO18: 0.05905749027 | FP18: 0.1 | FQ18: 0.2139068978 | FR18: 0.1814720812
A19: Day 16 | B19: 2020-07-30 | C19: 65854 | D19: =COUNTIFS('Sanitized Raw Data'!$H:$H,">="&$B19,'Sanitized Raw Data'!$H:$H,"<"&$B20,'Sanitized Raw Data'!$D:$D,"Cash") -> 0 | E19: =SUMIFS('Sanitized Raw Data'!$C:$C,'Sanitized Raw Data'!$H:$H,">="&$B19,'Sanitized Raw Data'!$H:$H,"<"&$B20,'Sanitized Raw Data'!$D:$D,"Cash") -> 0 | F19: =COUNTIFS('Sanitized Raw Data'!$H:$H,">="&$B19,'Sanitized Raw Data'!$H:$H,"<"&$B20,'Sanitized Raw Data'!$D:$D,"CC") -> 59 | G19: =SUMIFS('Sanitized Raw Data'!$C:$C,'Sanitized Raw Data'!$H:$H,">="&$B19,'Sanitized Raw Data'!$H:$H,"<"&$B20,'Sanitized Raw Data'!$D:$D,"CC") -> 3821.58 | H19: =COUNTIFS('Sanitized Raw Data'!$H:$H,">="&$B19,'Sanitized Raw Data'!$H:$H,"<"&$B20,'Sanitized Raw Data'!$D:$D,"PayPal") -> 15 | I19: =SUMIFS('Sanitized Raw Data'!$C:$C,'Sanitized Raw Data'!$H:$H,">="&$B19,'Sanitized Raw Data'!$H:$H,"<"&$B20,'Sanitized Raw Data'!$D:$D,"PayPal") -> 873 | J19: =COUNTIFS('Sanitized Raw Data'!$H:$H,">="&$B19,'Sanitized Raw Data'!$H:$H,"<"&$B20,'Sanitized Raw Data'!$D:$D,"Personal Check") -> 3 | K19: =SUMIFS('Sanitized Raw Data'!$C:$C,'Sanitized Raw Data'!$H:$H,">="&$B19,'Sanitized Raw Data'!$H:$H,"<"&$B20,'Sanitized Raw Data'!$D:$D,"Personal Check") -> 275 | L19: =SUM(E19,K19,I19,G19,L18) -> 61366.93 | M19: =SUM(D19,F19,H19,J19) -> 77 | N19: =SUM(D19,J19,H19,F19,N18) -> 907 | O19: =L19/N19 -> 67.65923925 | P19: =(SUM(E19,K19,I19,G19))/(SUM(D19,F19,H19,J19)) -> 64.54 | Q19: =L19/Sheet11!$A16 -> 3835.433125 | R19: =(L19-L18)/C$3 -> 0.0754636013 | S19: =E19/(L19-L18) -> 0 | T19: =D19/M19 -> 0 | U19: =SUM(E$3:E19)/L19 -> 0 | V19: =SUM(D$3:D19)/M19 -> 0 | W19: =G19/(L19-L18) -> 0.7689945629 | X19: =F19/M19 -> 0.7662337662 | Y19: =SUM(G$3:G19)/L19 -> 0.7141173593 | Z19: =SUM(F$3:F19)/N19 -> 0.6130099228 | AA19: =I19/(L19-L18) -> 0.1756687688 | AB19: =H19/M19 -> 0.1948051948 | AC19: =SUM(I$3:I19)/L19 -> 0.08940988249 | AD19: =SUM(H$3:H19)/N19 -> 0.230429989 | AE19: =K19/(L19-L18) -> 0.05533666829 | AF19: =J19/M19 -> 0.03896103896 | AG19: =SUM(K$3:K19)/L19 -> 0.1964727582 | AH19: =SUM(J$3:J19)/N19 -> 0.1565600882 | AJ19: Day 16 | AK19: 2019-10-22 | AL19: 76366 | AM19: 0 | AN19: 0 | AO19: 20 | AP19: 1289.89 | AQ19: 1 | AR19: 64 | AS19: 10 | AT19: 1096 | AU19: 47391.84 | AV19: 31 | AW19: 704 | AX19: 67.31795455 | AY19: 79.02870968 | AZ19: 2961.99 | BA19: 0.03208089988 | BB19: 0 | BC19: 0 | BD19: 0 | BE19: 0 | BF19: 0.5265093535 | BG19: 0.6451612903 | BH19: 0.6626826475 | BI19: 0.5710227273 | BJ19: 0.02612362188 | BK19: 0.03225806452 | BL19: 0.1375903531 | BM19: 0.2542613636 | BN19: 0.4473670246 | BO19: 0.3225806452 | BP19: 0.1997269994 | BQ19: 0.1747159091 | BS19: Day 16 | BT19: 2019-04-23 | BU19: 74493 | BV19: 0 | BW19: 0 | BX19: 51 | BY19: 5357.83 | BZ19: 14 | CA19: 504.98 | CB19: 6 | CC19: 542.01 | CD19: 53721.48 | CE19: 71 | CF19: 804 | CG19: 66.81776119 | CH19: 90.20873239 | CI19: 3357.5925 | CJ19: 0.0859788168 | CK19: 0 | CL19: 0 | CM19: 0 | CN19: 0 | CO19: 0.8365309251 | CP19: 0.7183098592 | CQ19: 0.6380807081 | CR19: 0.5559701493 | CS19: 0.0788437458 | CT19: 0.1971830986 | CU19: 0.1235001344 | CV19: 0.2462686567 | CW19: 0.08462532905 | CX19: 0.08450704225 | CY19: 0.2384191575 | CZ19: 0.197761194 | DB19: Day 16 | DC19: 2018-10-24 | DD19: 74104 | DE19: 0 | DF19: 0 | DG19: 11 | DH19: 9141.66 | DI19: 3 | DJ19: 725 | DK19: 3 | DL19: 230 | DM19: 50546.41 | DN19: 17 | DO19: 819 | DP19: 61.71722833 | DQ19: 109.0588235 | DR19: 3159.150625 | DS19: 0.02501889237 | DT19: 0 | DU19: 0 | DV19: 0 | DW19: 0 | DX19: 0.4848975189 | DY19: 0.6470588235 | DZ19: 0.6432454847 | EA19: 0.5811965812 | EB19: 0.3910463862 | EC19: 0.1764705882 | ED19: 0.1662175415 | EE19: 0.2307692308 | EF19: 0.1240560949 | EG19: 0.1764705882 | EH19: 0.1905369738 | EI19: 0.188034188 | EK19: Day 16 | EL19: 2018-04-24 | EM19: 96226 | EN19: 0 | EO19: 0 | EP19: 21 | EQ19: 1578 | ER19: 2 | ES19: 100 | ET19: 5 | EU19: 250 | EV19: 55174.67 | EW19: 28 | EX19: 816 | EY19: 67.61601716 | EZ19: 68.85714286 | FA19: 3448.416875 | FB19: 0.02003616486 | FC19: 0 | FD19: 0 | FE19: 0 | FF19: 0 | FG19: 0.8184647303 | FH19: 0.75 | FI19: 0.6059856815 | FJ19: 0.5625 | FK19: 0.05186721992 | FL19: 0.07142857143 | FM19: 0.1830510269 | FN19: 0.256127451 | FO19: 0.1296680498 | FP19: 0.1785714286 | FQ19: 0.2109632917 | FR19: 0.181372549
A20: Day 17 | B20: 2020-07-31 | C20: 65854 | D20: =COUNTIFS('Sanitized Raw Data'!$H:$H,">="&$B20,'Sanitized Raw Data'!$H:$H,"<"&$B21,'Sanitized Raw Data'!$D:$D,"Cash") -> 0 | E20: =SUMIFS('Sanitized Raw Data'!$C:$C,'Sanitized Raw Data'!$H:$H,">="&$B20,'Sanitized Raw Data'!$H:$H,"<"&$B21,'Sanitized Raw Data'!$D:$D,"Cash") -> 0 | F20: =COUNTIFS('Sanitized Raw Data'!$H:$H,">="&$B20,'Sanitized Raw Data'!$H:$H,"<"&$B21,'Sanitized Raw Data'!$D:$D,"CC") -> 8 | G20: =SUMIFS('Sanitized Raw Data'!$C:$C,'Sanitized Raw Data'!$H:$H,">="&$B20,'Sanitized Raw Data'!$H:$H,"<"&$B21,'Sanitized Raw Data'!$D:$D,"CC") -> 484 | H20: =COUNTIFS('Sanitized Raw Data'!$H:$H,">="&$B20,'Sanitized Raw Data'!$H:$H,"<"&$B21,'Sanitized Raw Data'!$D:$D,"PayPal") -> 4 | I20: =SUMIFS('Sanitized Raw Data'!$C:$C,'Sanitized Raw Data'!$H:$H,">="&$B20,'Sanitized Raw Data'!$H:$H,"<"&$B21,'Sanitized Raw Data'!$D:$D,"PayPal") -> 175 | J20: =COUNTIFS('Sanitized Raw Data'!$H:$H,">="&$B20,'Sanitized Raw Data'!$H:$H,"<"&$B21,'Sanitized Raw Data'!$D:$D,"Personal Check") -> 1 | K20: =SUMIFS('Sanitized Raw Data'!$C:$C,'Sanitized Raw Data'!$H:$H,">="&$B20,'Sanitized Raw Data'!$H:$H,"<"&$B21,'Sanitized Raw Data'!$D:$D,"Personal Check") -> 50 | L20: =SUM(E20,K20,I20,G20,L19) -> 62075.93 | M20: =SUM(D20,F20,H20,J20) -> 13 | N20: =SUM(D20,J20,H20,F20,N19) -> 920 | O20: =L20/N20 -> 67.47383696 | P20: =(SUM(E20,K20,I20,G20))/(SUM(D20,F20,H20,J20)) -> 54.53846154 | Q20: =L20/Sheet11!$A17 -> 3651.525294 | R20: =(L20-L19)/C$3 -> 0.01076624047 | S20: =E20/(L20-L19) -> 0 | T20: =D20/M20 -> 0 | U20: =SUM(E$3:E20)/L20 -> 0 | V20: =SUM(D$3:D20)/M20 -> 0 | W20: =G20/(L20-L19) -> 0.682651622 | X20: =F20/M20 -> 0.6153846154 | Y20: =SUM(G$3:G20)/L20 -> 0.7137579735 | Z20: =SUM(F$3:F20)/N20 -> 0.6130434783 | AA20: =I20/(L20-L19) -> 0.2468265162 | AB20: =H20/M20 -> 0.3076923077 | AC20: =SUM(I$3:I20)/L20 -> 0.09120781598 | AD20: =SUM(H$3:H20)/N20 -> 0.2315217391 | AE20: =K20/(L20-L19) -> 0.07052186178 | AF20: =J20/M20 -> 0.07692307692 | AG20: =SUM(K$3:K20)/L20 -> 0.1950342105 | AH20: =SUM(J$3:J20)/N20 -> 0.1554347826 | AJ20: Day 17 | AK20: 2019-10-23 | AL20: 76366 | AM20: 0 | AN20: 0 | AO20: 5 | AP20: 475 | AQ20: 6 | AR20: 195.09 | AS20: 2 | AT20: 200 | AU20: 48261.93 | AV20: 13 | AW20: 717 | AX20: 67.3109205 | AY20: 66.93 | AZ20: 2838.937059 | BA20: 0.01139368305 | BB20: 0 | BC20: 0 | BD20: 0 | BE20: 0 | BF20: 0.545920537 | BG20: 0.3846153846 | BH20: 0.6605776023 | BI20: 0.5676429568 | BJ20: 0.2242181843 | BK20: 0.4615384615 | BL20: 0.1391521226 | BM20: 0.2580195258 | BN20: 0.2298612787 | BO20: 0.1538461538 | BP20: 0.2002702751 | BQ20: 0.1743375174 | BS20: Day 17 | BT20: 2019-04-24 | BU20: 74493 | BV20: 0 | BW20: 0 | BX20: 22 | BY20: 1250.63 | BZ20: 2 | CA20: 60 | CB20: 5 | CC20: 319.63 | CD20: 55351.74 | CE20: 29 | CF20: 833 | CG20: 66.44866747 | CH20: 56.21586207 | CI20: 3255.984706 | CJ20: 0.02188474085 | CK20: 0 | CL20: 0 | CM20: 0 | CN20: 0 | CO20: 0.7671353036 | CP20: 0.7586206897 | CQ20: 0.6418817186 | CR20: 0.5630252101 | CS20: 0.03680394538 | CT20: 0.06896551724 | CU20: 0.1209466947 | CV20: 0.2400960384 | CW20: 0.196060751 | CX20: 0.1724137931 | CY20: 0.2371715867 | CZ20: 0.1968787515 | DB20: Day 17 | DC20: 2018-10-25 | DD20: 74104 | DE20: 0 | DF20: 0 | DG20: 9 | DH20: 9141.66 | DI20: 0 | DJ20: 0 | DK20: 2 | DL20: 100 | DM20: 51146.41 | DN20: 11 | DO20: 830 | DP20: 61.62218072 | DQ20: 54.54545455 | DR20: 3008.612353 | DS20: 0.008096728922 | DT20: 0 | DU20: 0 | DV20: 0 | DW20: 0 | DX20: 0.8333333333 | DY20: 0.8181818182 | DZ20: 0.6454754107 | EA20: 0.5843373494 | EB20: 0 | EC20: 0 | ED20: 0.1642676387 | EE20: 0.2277108434 | EF20: 0.1666666667 | EG20: 0.1818181818 | EH20: 0.1902569506 | EI20: 0.1879518072 | EK20: Day 17 | EL20: 2018-04-25 | EM20: 96226 | EN20: 0 | EO20: 0 | EP20: 14 | EQ20: 918 | ER20: 2 | ES20: 44.79 | ET20: 1 | EU20: 50 | EV20: 56187.46 | EW20: 17 | EX20: 833 | EY20: 67.45193277 | EZ20: 59.57588235 | FA20: 3305.144706 | FB20: 0.01052511795 | FC20: 0 | FD20: 0 | FE20: 0 | FF20: 0 | FG20: 0.9064070538 | FH20: 0.8235294118 | FI20: 0.6114008357 | FJ20: 0.5678271309 | FK20: 0.0442243703 | FL20: 0.1176470588 | FM20: 0.1805486491 | FN20: 0.2533013205 | FO20: 0.04936857591 | FP20: 0.05882352941 | FQ20: 0.2080505152 | FR20: 0.1788715486
A21: Day 18 | B21: 2020-08-01 | C21: 65854 | D21: =COUNTIFS('Sanitized Raw Data'!$H:$H,">="&$B21,'Sanitized Raw Data'!$H:$H,"<"&$B22,'Sanitized Raw Data'!$D:$D,"Cash") -> 0 | E21: =SUMIFS('Sanitized Raw Data'!$C:$C,'Sanitized Raw Data'!$H:$H,">="&$B21,'Sanitized Raw Data'!$H:$H,"<"&$B22,'Sanitized Raw Data'!$D:$D,"Cash") -> 0 | F21: =COUNTIFS('Sanitized Raw Data'!$H:$H,">="&$B21,'Sanitized Raw Data'!$H:$H,"<"&$B22,'Sanitized Raw Data'!$D:$D,"CC") -> 3 | G21: =SUMIFS('Sanitized Raw Data'!$C:$C,'Sanitized Raw Data'!$H:$H,">="&$B21,'Sanitized Raw Data'!$H:$H,"<"&$B22,'Sanitized Raw Data'!$D:$D,"CC") -> 175 | H21: =COUNTIFS('Sanitized Raw Data'!$H:$H,">="&$B21,'Sanitized Raw Data'!$H:$H,"<"&$B22,'Sanitized Raw Data'!$D:$D,"PayPal") -> 2 | I21: =SUMIFS('Sanitized Raw Data'!$C:$C,'Sanitized Raw Data'!$H:$H,">="&$B21,'Sanitized Raw Data'!$H:$H,"<"&$B22,'Sanitized Raw Data'!$D:$D,"PayPal") -> 65 | J21: =COUNTIFS('Sanitized Raw Data'!$H:$H,">="&$B21,'Sanitized Raw Data'!$H:$H,"<"&$B22,'Sanitized Raw Data'!$D:$D,"Personal Check") -> 2 | K21: =SUMIFS('Sanitized Raw Data'!$C:$C,'Sanitized Raw Data'!$H:$H,">="&$B21,'Sanitized Raw Data'!$H:$H,"<"&$B22,'Sanitized Raw Data'!$D:$D,"Personal Check") -> 150 | L21: =SUM(E21,K21,I21,G21,L20) -> 62465.93 | M21: =SUM(D21,F21,H21,J21) -> 7 | N21: =SUM(D21,J21,H21,F21,N20) -> 927 | O21: =L21/N21 -> 67.38503776 | P21: =(SUM(E21,K21,I21,G21))/(SUM(D21,F21,H21,J21)) -> 55.71428571 | Q21: =L21/Sheet11!$A18 -> 3470.329444 | R21: =(L21-L20)/C$3 -> 0.005922191515 | S21: =E21/(L21-L20) -> 0 | T21: =D21/M21 -> 0 | U21: =SUM(E$3:E21)/L21 -> 0 | V21: =SUM(D$3:D21)/M21 -> 0 | W21: =G21/(L21-L20) -> 0.4487179487 | X21: =F21/M21 -> 0.4285714286 | Y21: =SUM(G$3:G21)/L21 -> 0.7121032217 | Z21: =SUM(F$3:F21)/N21 -> 0.6116504854 | AA21: =I21/(L21-L20) -> 0.1666666667 | AB21: =H21/M21 -> 0.2857142857 | AC21: =SUM(I$3:I21)/L21 -> 0.09167893602 | AD21: =SUM(H$3:H21)/N21 -> 0.2319309601 | AE21: =K21/(L21-L20) -> 0.3846153846 | AF21: =J21/M21 -> 0.2857142857 | AG21: =SUM(K$3:K21)/L21 -> 0.1962178423 | AH21: =SUM(J$3:J21)/N21 -> 0.1564185545 | AJ21: Day 18 | AK21: 2019-10-24 | AL21: 76366 | AM21: 0 | AN21: 0 | AO21: 6 | AP21: 589 | AQ21: 0 | AR21: 0 | AS21: 3 | AT21: 109 | AU21: 48959.93 | AV21: 9 | AW21: 726 | AX21: 67.43792011 | AY21: 77.55555556 | AZ21: 2719.996111 | BA21: 0.00914019328 | BB21: 0 | BC21: 0 | BD21: 0 | BE21: 0 | BF21: 0.8438395415 | BG21: 0.6666666667 | BH21: 0.6631902864 | BI21: 0.5688705234 | BJ21: 0 | BK21: 0 | BL21: 0.1371682925 | BM21: 0.2548209366 | BN21: 0.1561604585 | BO21: 0.3333333333 | BP21: 0.1996414211 | BQ21: 0.1763085399 | BS21: Day 18 | BT21: 2019-04-25 | BU21: 74493 | BV21: 0 | BW21: 0 | BX21: 5 | BY21: 314 | BZ21: 0 | CA21: 0 | CB21: 2 | CC21: 225 | CD21: 55890.74 | CE21: 7 | CF21: 840 | CG21: 66.53659524 | CH21: 77 | CI21: 3105.041111 | CJ21: 0.007235579182 | CK21: 0 | CL21: 0 | CM21: 0 | CN21: 0 | CO21: 0.5825602968 | CP21: 0.7142857143 | CQ21: 0.6413096338 | CR21: 0.5642857143 | CS21: 0 | CT21: 0 | CU21: 0.1197803071 | CV21: 0.2380952381 | CW21: 0.4174397032 | CX21: 0.2857142857 | CY21: 0.2389100592 | CZ21: 0.1976190476 | DB21: Day 18 | DC21: 2018-10-26 | DD21: 74104 | DE21: 0 | DF21: 0 | DG21: 6 | DH21: 9141.66 | DI21: 1 | DJ21: 100 | DK21: 2 | DL21: 150 | DM21: 51725.41 | DN21: 9 | DO21: 839 | DP21: 61.65126341 | DQ21: 64.33333333 | DR21: 2873.633889 | DS21: 0.007813343409 | DT21: 0 | DU21: 0 | DV21: 0 | DW21: 0 | DX21: 0.5682210708 | DY21: 0.6666666667 | DZ21: 0.6446106469 | EA21: 0.5852205006 | EB21: 0.1727115717 | EC21: 0.1111111111 | ED21: 0.1643621578 | EE21: 0.2264600715 | EF21: 0.2590673575 | EG21: 0.2222222222 | EH21: 0.1910271953 | EI21: 0.1883194279 | EK21: Day 18 | EL21: 2018-04-26 | EM21: 96226 | EN21: 0 | EO21: 0 | EP21: 6 | EQ21: 273 | ER21: 3 | ES21: 150 | ET21: 3 | EU21: 135 | EV21: 56745.46 | EW21: 12 | EX21: 845 | EY21: 67.15439053 | EZ21: 46.5 | FA21: 3152.525556 | FB21: 0.005798848544 | FC21: 0 | FD21: 0 | FE21: 0 | FF21: 0 | FG21: 0.4892473118 | FH21: 0.5 | FI21: 0.610199653 | FJ21: 0.5668639053 | FK21: 0.2688172043 | FL21: 0.25 | FM21: 0.1814166279 | FN21: 0.2532544379 | FO21: 0.2419354839 | FP21: 0.25 | FQ21: 0.2083837192 | FR21: 0.1798816568
A22: Day 19 | B22: 2020-08-02 | C22: 65854 | D22: =COUNTIFS('Sanitized Raw Data'!$H:$H,">="&$B22,'Sanitized Raw Data'!$H:$H,"<"&$B23,'Sanitized Raw Data'!$D:$D,"Cash") -> 0 | E22: =SUMIFS('Sanitized Raw Data'!$C:$C,'Sanitized Raw Data'!$H:$H,">="&$B22,'Sanitized Raw Data'!$H:$H,"<"&$B23,'Sanitized Raw Data'!$D:$D,"Cash") -> 0 | F22: =COUNTIFS('Sanitized Raw Data'!$H:$H,">="&$B22,'Sanitized Raw Data'!$H:$H,"<"&$B23,'Sanitized Raw Data'!$D:$D,"CC") -> 3 | G22: =SUMIFS('Sanitized Raw Data'!$C:$C,'Sanitized Raw Data'!$H:$H,">="&$B22,'Sanitized Raw Data'!$H:$H,"<"&$B23,'Sanitized Raw Data'!$D:$D,"CC") -> 200 | H22: =COUNTIFS('Sanitized Raw Data'!$H:$H,">="&$B22,'Sanitized Raw Data'!$H:$H,"<"&$B23,'Sanitized Raw Data'!$D:$D,"PayPal") -> 1 | I22: =SUMIFS('Sanitized Raw Data'!$C:$C,'Sanitized Raw Data'!$H:$H,">="&$B22,'Sanitized Raw Data'!$H:$H,"<"&$B23,'Sanitized Raw Data'!$D:$D,"PayPal") -> 100 | J22: =COUNTIFS('Sanitized Raw Data'!$H:$H,">="&$B22,'Sanitized Raw Data'!$H:$H,"<"&$B23,'Sanitized Raw Data'!$D:$D,"Personal Check") -> 0 | K22: =SUMIFS('Sanitized Raw Data'!$C:$C,'Sanitized Raw Data'!$H:$H,">="&$B22,'Sanitized Raw Data'!$H:$H,"<"&$B23,'Sanitized Raw Data'!$D:$D,"Personal Check") -> 0 | L22: =SUM(E22,K22,I22,G22,L21) -> 62765.93 | M22: =SUM(D22,F22,H22,J22) -> 4 | N22: =SUM(D22,J22,H22,F22,N21) -> 931 | O22: =L22/N22 -> 67.4177551 | P22: =(SUM(E22,K22,I22,G22))/(SUM(D22,F22,H22,J22)) -> 75 | Q22: =L22/Sheet11!$A19 -> 3303.47 | R22: =(L22-L21)/C$3 -> 0.004555531934 | S22: =E22/(L22-L21) -> 0 | T22: =D22/M22 -> 0 | U22: =SUM(E$3:E22)/L22 -> 0 | V22: =SUM(D$3:D22)/M22 -> 0 | W22: =G22/(L22-L21) -> 0.6666666667 | X22: =F22/M22 -> 0.75 | Y22: =SUM(G$3:G22)/L22 -> 0.7118860503 | Z22: =SUM(F$3:F22)/N22 -> 0.612244898 | AA22: =I22/(L22-L21) -> 0.3333333333 | AB22: =H22/M22 -> 0.25 | AC22: =SUM(I$3:I22)/L22 -> 0.09283396263 | AD22: =SUM(H$3:H22)/N22 -> 0.2320085929 | AE22: =K22/(L22-L21) -> 0 | AF22: =J22/M22 -> 0 | AG22: =SUM(K$3:K22)/L22 -> 0.1952799871 | AH22: =SUM(J$3:J22)/N22 -> 0.1557465091 | AJ22: Day 19 | AK22: 2019-10-25 | AL22: 76366 | AM22: 0 | AN22: 0 | AO22: 6 | AP22: 475 | AQ22: 0 | AR22: 0 | AS22: 3 | AT22: 5350 | AU22: 54784.93 | AV22: 9 | AW22: 735 | AX22: 74.53731973 | AY22: 647.2222222 | AZ22: 2883.417368 | BA22: 0.07627740094 | BB22: 0 | BC22: 0 | BD22: 0 | BE22: 0 | BF22: 0.08154506438 | BG22: 0.6666666667 | BH22: 0.6013469398 | BI22: 0.5700680272 | BJ22: 0 | BK22: 0 | BL22: 0.1225838931 | BM22: 0.2517006803 | BN22: 0.9184549356 | BO22: 0.3333333333 | BP22: 0.2760691672 | BQ22: 0.1782312925 | BS22: Day 19 | BT22: 2019-04-26 | BU22: 74493 | BV22: 0 | BW22: 0 | BX22: 7 | BY22: 636.9 | BZ22: 3 | CA22: 150 | CB22: 2 | CC22: 100 | CD22: 56777.64 | CE22: 12 | CF22: 852 | CG22: 66.64042254 | CH22: 73.90833333 | CI22: 2988.296842 | CJ22: 0.01190581665 | CK22: 0 | CL22: 0 | CM22: 0 | CN22: 0 | CO22: 0.7181192919 | CP22: 0.5833333333 | CQ22: 0.6425094456 | CR22: 0.5645539906 | CS22: 0.1691284249 | CT22: 0.25 | CU22: 0.1205511536 | CV22: 0.2382629108 | CW22: 0.1127522832 | CX22: 0.1666666667 | CY22: 0.2369394008 | CZ22: 0.1971830986 | DB22: Day 19 | DC22: 2018-10-27 | DD22: 74104 | DE22: 0 | DF22: 0 | DG22: 4 | DH22: 9141.66 | DI22: 3 | DJ22: 295 | DK22: 1 | DL22: 60 | DM22: 52705.41 | DN22: 8 | DO22: 847 | DP22: 62.22598583 | DQ22: 122.5 | DR22: 2773.968947 | DS22: 0.01322465724 | DT22: 0 | DU22: 0 | DV22: 0 | DW22: 0 | DX22: 0.637755102 | DY22: 0.5 | DZ22: 0.6444831754 | EA22: 0.5844155844 | EB22: 0.3010204082 | EC22: 0.375 | ED22: 0.1669031699 | EE22: 0.227863046 | EF22: 0.0612244898 | EG22: 0.125 | EH22: 0.1886136547 | EI22: 0.1877213695 | EK22: Day 19 | EL22: 2018-04-27 | EM22: 96226 | EN22: 0 | EO22: 0 | EP22: 3 | EQ22: 205 | ER22: 2 | ES22: 45 | ET22: 0 | EU22: 0 | EV22: 56995.46 | EW22: 5 | EX22: 850 | EY22: 67.05348235 | EZ22: 50 | FA22: 2999.761053 | FB22: 0.002598050423 | FC22: 0 | FD22: 0 | FE22: 0 | FF22: 0 | FG22: 0.82 | FH22: 0.6 | FI22: 0.6111199032 | FJ22: 0.5670588235 | FK22: 0.18 | FL22: 0.4 | FM22: 0.1814104141 | FN22: 0.2541176471 | FO22: 0 | FP22: 0 | FQ22: 0.2074696827 | FR22: 0.1788235294
A23: Day 20 | B23: 2020-08-03 | C23: 65854 | D23: =COUNTIFS('Sanitized Raw Data'!$H:$H,">="&$B23,'Sanitized Raw Data'!$H:$H,"<"&$B24,'Sanitized Raw Data'!$D:$D,"Cash") -> 0 | E23: =SUMIFS('Sanitized Raw Data'!$C:$C,'Sanitized Raw Data'!$H:$H,">="&$B23,'Sanitized Raw Data'!$H:$H,"<"&$B24,'Sanitized Raw Data'!$D:$D,"Cash") -> 0 | F23: =COUNTIFS('Sanitized Raw Data'!$H:$H,">="&$B23,'Sanitized Raw Data'!$H:$H,"<"&$B24,'Sanitized Raw Data'!$D:$D,"CC") -> 8 | G23: =SUMIFS('Sanitized Raw Data'!$C:$C,'Sanitized Raw Data'!$H:$H,">="&$B23,'Sanitized Raw Data'!$H:$H,"<"&$B24,'Sanitized Raw Data'!$D:$D,"CC") -> 650 | H23: =COUNTIFS('Sanitized Raw Data'!$H:$H,">="&$B23,'Sanitized Raw Data'!$H:$H,"<"&$B24,'Sanitized Raw Data'!$D:$D,"PayPal") -> 0 | I23: =SUMIFS('Sanitized Raw Data'!$C:$C,'Sanitized Raw Data'!$H:$H,">="&$B23,'Sanitized Raw Data'!$H:$H,"<"&$B24,'Sanitized Raw Data'!$D:$D,"PayPal") -> 0 | J23: =COUNTIFS('Sanitized Raw Data'!$H:$H,">="&$B23,'Sanitized Raw Data'!$H:$H,"<"&$B24,'Sanitized Raw Data'!$D:$D,"Personal Check") -> 0 | K23: =SUMIFS('Sanitized Raw Data'!$C:$C,'Sanitized Raw Data'!$H:$H,">="&$B23,'Sanitized Raw Data'!$H:$H,"<"&$B24,'Sanitized Raw Data'!$D:$D,"Personal Check") -> 0 | L23: =SUM(E23,K23,I23,G23,L22) -> 63415.93 | M23: =SUM(D23,F23,H23,J23) -> 8 | N23: =SUM(D23,J23,H23,F23,N22) -> 939 | O23: =L23/N23 -> 67.5356017 | P23: =(SUM(E23,K23,I23,G23))/(SUM(D23,F23,H23,J23)) -> 81.25 | Q23: =L23/Sheet11!$A20 -> 3170.7965 | R23: =(L23-L22)/C$3 -> 0.009870319191 | S23: =E23/(L23-L22) -> 0 | T23: =D23/M23 -> 0 | U23: =SUM(E$3:E23)/L23 -> 0 | V23: =SUM(D$3:D23)/M23 -> 0 | W23: =G23/(L23-L22) -> 1 | X23: =F23/M23 -> 1 | Y23: =SUM(G$3:G23)/L23 -> 0.7148391579 | Z23: =SUM(F$3:F23)/N23 -> 0.6155484558 | AA23: =I23/(L23-L22) -> 0 | AB23: =H23/M23 -> 0 | AC23: =SUM(I$3:I23)/L23 -> 0.09188243396 | AD23: =SUM(H$3:H23)/N23 -> 0.2300319489 | AE23: =K23/(L23-L22) -> 0 | AF23: =J23/M23 -> 0 | AG23: =SUM(K$3:K23)/L23 -> 0.1932784081 | AH23: =SUM(J$3:J23)/N23 -> 0.1544195953 | AJ23: Day 20 | AK23: 2019-10-26 | AL23: 76366 | AM23: 0 | AN23: 0 | AO23: 1 | AP23: 25 | AQ23: 0 | AR23: 0 | AS23: 0 | AT23: 0 | AU23: 54809.93 | AV23: 1 | AW23: 736 | AX23: 74.47001359 | AY23: 25 | AZ23: 2740.4965 | BA23: 0.0003273708195 | BB23: 0 | BC23: 0 | BD23: 0 | BE23: 0 | BF23: 1 | BG23: 1 | BH23: 0.6015287741 | BI23: 0.5706521739 | BJ23: 0 | BK23: 0 | BL23: 0.1225279799 | BM23: 0.2513586957 | BN23: 0 | BO23: 0 | BP23: 0.2759432461 | BQ23: 0.1779891304 | BS23: Day 20 | BT23: 2019-04-27 | BU23: 74493 | BV23: 0 | BW23: 0 | BX23: 2 | BY23: 211.11 | BZ23: 2 | CA23: 45 | CB23: 1 | CC23: 50 | CD23: 57083.75 | CE23: 5 | CF23: 857 | CG23: 66.6088098 | CH23: 61.222 | CI23: 2854.1875 | CJ23: 0.004109245164 | CK23: 0 | CL23: 0 | CM23: 0 | CN23: 0 | CO23: 0.6896540459 | CP23: 0.4 | CQ23: 0.6427622572 | CR23: 0.5635939323 | CS23: 0.1470059782 | CT23: 0.4 | CU23: 0.1206930168 | CV23: 0.2392065344 | CW23: 0.1633399758 | CX23: 0.2 | CY23: 0.236544726 | CZ23: 0.1971995333 | DB23: Day 20 | DC23: 2018-10-28 | DD23: 74104 | DE23: 0 | DF23: 0 | DG23: 5 | DH23: 9141.66 | DI23: 1 | DJ23: 19.77 | DK23: 2 | DL23: 45 | DM23: 53020.18 | DN23: 8 | DO23: 855 | DP23: 62.01190643 | DQ23: 39.34625 | DR23: 2651.009 | DS23: 0.004247678938 | DT23: 0 | DU23: 0 | DV23: 0 | DW23: 0 | DX23: 0.7942307081 | DY23: 0.625 | DZ23: 0.645372196 | EA23: 0.5847953216 | EB23: 0.0628077644 | EC23: 0.125 | ED23: 0.1662851767 | EE23: 0.2269005848 | EF23: 0.1429615275 | EG23: 0.25 | EH23: 0.1883426273 | EI23: 0.1883040936 | EK23: Day 20 | EL23: 2018-04-28 | EM23: 96226 | EN23: 0 | EO23: 0 | EP23: 3 | EQ23: 120.15 | ER23: 0 | ES23: 0 | ET23: 4 | EU23: 280 | EV23: 57395.61 | EW23: 7 | EX23: 857 | EY23: 66.97270712 | EZ23: 57.16428571 | FA23: 2869.7805 | FB23: 0.004158439507 | FC23: 0 | FD23: 0 | FE23: 0 | FF23: 0 | FG23: 0.3002624016 | FH23: 0.4285714286 | FI23: 0.6089526708 | FJ23: 0.5659276546 | FK23: 0 | FL23: 0 | FM23: 0.1801456592 | FN23: 0.252042007 | FO23: 0.6997375984 | FP23: 0.5714285714 | FQ23: 0.21090167 | FR23: 0.1820303384
A24: Day 21 | B24: 2020-08-04 | C24: 65854 | D24: =COUNTIFS('Sanitized Raw Data'!$H:$H,">="&$B24,'Sanitized Raw Data'!$H:$H,"<"&$B25,'Sanitized Raw Data'!$D:$D,"Cash") -> 0 | E24: =SUMIFS('Sanitized Raw Data'!$C:$C,'Sanitized Raw Data'!$H:$H,">="&$B24,'Sanitized Raw Data'!$H:$H,"<"&$B25,'Sanitized Raw Data'!$D:$D,"Cash") -> 0 | F24: =COUNTIFS('Sanitized Raw Data'!$H:$H,">="&$B24,'Sanitized Raw Data'!$H:$H,"<"&$B25,'Sanitized Raw Data'!$D:$D,"CC") -> 7 | G24: =SUMIFS('Sanitized Raw Data'!$C:$C,'Sanitized Raw Data'!$H:$H,">="&$B24,'Sanitized Raw Data'!$H:$H,"<"&$B25,'Sanitized Raw Data'!$D:$D,"CC") -> 675 | H24: =COUNTIFS('Sanitized Raw Data'!$H:$H,">="&$B24,'Sanitized Raw Data'!$H:$H,"<"&$B25,'Sanitized Raw Data'!$D:$D,"PayPal") -> 2 | I24: =SUMIFS('Sanitized Raw Data'!$C:$C,'Sanitized Raw Data'!$H:$H,">="&$B24,'Sanitized Raw Data'!$H:$H,"<"&$B25,'Sanitized Raw Data'!$D:$D,"PayPal") -> 61 | J24: =COUNTIFS('Sanitized Raw Data'!$H:$H,">="&$B24,'Sanitized Raw Data'!$H:$H,"<"&$B25,'Sanitized Raw Data'!$D:$D,"Personal Check") -> 0 | K24: =SUMIFS('Sanitized Raw Data'!$C:$C,'Sanitized Raw Data'!$H:$H,">="&$B24,'Sanitized Raw Data'!$H:$H,"<"&$B25,'Sanitized Raw Data'!$D:$D,"Personal Check") -> 0 | L24: =SUM(E24,K24,I24,G24,L23) -> 64151.93 | M24: =SUM(D24,F24,H24,J24) -> 9 | N24: =SUM(D24,J24,H24,F24,N23) -> 948 | O24: =L24/N24 -> 67.67081224 | P24: =(SUM(E24,K24,I24,G24))/(SUM(D24,F24,H24,J24)) -> 81.77777778 | Q24: =L24/Sheet11!$A21 -> 3054.85381 | R24: =(L24-L23)/C$3 -> 0.01117623835 | S24: =E24/(L24-L23) -> 0 | T24: =D24/M24 -> 0 | U24: =SUM(E$3:E24)/L24 -> 0 | V24: =SUM(D$3:D24)/M24 -> 0 | W24: =G24/(L24-L23) -> 0.9171195652 | X24: =F24/M24 -> 0.7777777778 | Y24: =SUM(G$3:G24)/L24 -> 0.7171598734 | Z24: =SUM(F$3:F24)/N24 -> 0.6170886076 | AA24: =I24/(L24-L23) -> 0.08288043478 | AB24: =H24/M24 -> 0.2222222222 | AC24: =SUM(I$3:I24)/L24 -> 0.09177915614 | AD24: =SUM(H$3:H24)/N24 -> 0.2299578059 | AE24: =K24/(L24-L23) -> 0 | AF24: =J24/M24 -> 0 | AG24: =SUM(K$3:K24)/L24 -> 0.1910609704 | AH24: =SUM(J$3:J24)/N24 -> 0.1529535865 | AJ24: Day 21 | AK24: 2019-10-27 | AL24: 76366 | AM24: 0 | AN24: 0 | AO24: 5 | AP24: 289 | AQ24: 4 | AR24: 209 | AS24: 2 | AT24: 75 | AU24: 55382.93 | AV24: 11 | AW24: 747 | AX24: 74.14046854 | AY24: 52.09090909 | AZ24: 2637.282381 | BA24: 0.007503339182 | BB24: 0 | BC24: 0 | BD24: 0 | BE24: 0 | BF24: 0.5043630017 | BG24: 0.4545454545 | BH24: 0.6005234826 | BI24: 0.5689424364 | BJ24: 0.3647469459 | BK24: 0.3636363636 | BL24: 0.1250340132 | BM24: 0.2530120482 | BN24: 0.1308900524 | BO24: 0.1818181818 | BP24: 0.2744425042 | BQ24: 0.1780455154 | BS24: Day 21 | BT24: 2019-04-28 | BU24: 74493 | BV24: 0 | BW24: 0 | BX24: 5 | BY24: 227 | BZ24: 0 | CA24: 0 | CB24: 1 | CC24: 50 | CD24: 57360.75 | CE24: 6 | CF24: 863 | CG24: 66.46668598 | CH24: 46.16666667 | CI24: 2731.464286 | CJ24: 0.003718470192 | CK24: 0 | CL24: 0 | CM24: 0 | CN24: 0 | CO24: 0.8194945848 | CP24: 0.8333333333 | CQ24: 0.6436157128 | CR24: 0.5654692932 | CS24: 0 | CT24: 0 | CU24: 0.1201101799 | CV24: 0.2375434531 | CW24: 0.1805054152 | CX24: 0.1666666667 | CY24: 0.2362741073 | CZ24: 0.1969872538 | DB24: Day 21 | DC24: 2018-10-29 | DD24: 74104 | DE24: 0 | DF24: 0 | DG24: 6 | DH24: 9141.66 | DI24: 3 | DJ24: 160 | DK24: 2 | DL24: 125 | DM24: 53615.18 | DN24: 11 | DO24: 866 | DP24: 61.9112933 | DQ24: 54.09090909 | DR24: 2553.10381 | DS24: 0.008029256181 | DT24: 0 | DU24: 0 | DV24: 0 | DW24: 0 | DX24: 0.5210084034 | DY24: 0.5454545455 | DZ24: 0.643992056 | EA24: 0.584295612 | EB24: 0.268907563 | EC24: 0.2727272727 | ED24: 0.1674240392 | EE24: 0.227482679 | EF24: 0.2100840336 | EG24: 0.1818181818 | EH24: 0.1885839048 | EI24: 0.188221709 | EK24: Day 21 | EL24: 2018-04-29 | EM24: 96226 | EN24: 0 | EO24: 0 | EP24: 7 | EQ24: 724.77 | ER24: 1 | ES24: 40 | ET24: 0 | EU24: 0 | EV24: 58160.38 | EW24: 8 | EX24: 865 | EY24: 67.23743353 | EZ24: 95.59625 | FA24: 2769.541905 | FB24: 0.007947644088 | FC24: 0 | FD24: 0 | FE24: 0 | FF24: 0 | FG24: 0.9476966931 | FH24: 0.875 | FI24: 0.6134069275 | FJ24: 0.5687861272 | FK24: 0.05230330688 | FL24: 0.125 | FM24: 0.178464618 | FN24: 0.250867052 | FO24: 0 | FP24: 0 | FQ24: 0.2081284545 | FR24: 0.1803468208
A25: Day 22 | B25: 2020-08-05 | C25: 65854 | D25: =COUNTIFS('Sanitized Raw Data'!$H:$H,">="&$B25,'Sanitized Raw Data'!$H:$H,"<"&$B26,'Sanitized Raw Data'!$D:$D,"Cash") -> 0 | E25: =SUMIFS('Sanitized Raw Data'!$C:$C,'Sanitized Raw Data'!$H:$H,">="&$B25,'Sanitized Raw Data'!$H:$H,"<"&$B26,'Sanitized Raw Data'!$D:$D,"Cash") -> 0 | F25: =COUNTIFS('Sanitized Raw Data'!$H:$H,">="&$B25,'Sanitized Raw Data'!$H:$H,"<"&$B26,'Sanitized Raw Data'!$D:$D,"CC") -> 5 | G25: =SUMIFS('Sanitized Raw Data'!$C:$C,'Sanitized Raw Data'!$H:$H,">="&$B25,'Sanitized Raw Data'!$H:$H,"<"&$B26,'Sanitized Raw Data'!$D:$D,"CC") -> 300 | H25: =COUNTIFS('Sanitized Raw Data'!$H:$H,">="&$B25,'Sanitized Raw Data'!$H:$H,"<"&$B26,'Sanitized Raw Data'!$D:$D,"PayPal") -> 0 | I25: =SUMIFS('Sanitized Raw Data'!$C:$C,'Sanitized Raw Data'!$H:$H,">="&$B25,'Sanitized Raw Data'!$H:$H,"<"&$B26,'Sanitized Raw Data'!$D:$D,"PayPal") -> 0 | J25: =COUNTIFS('Sanitized Raw Data'!$H:$H,">="&$B25,'Sanitized Raw Data'!$H:$H,"<"&$B26,'Sanitized Raw Data'!$D:$D,"Personal Check") -> 0 | K25: =SUMIFS('Sanitized Raw Data'!$C:$C,'Sanitized Raw Data'!$H:$H,">="&$B25,'Sanitized Raw Data'!$H:$H,"<"&$B26,'Sanitized Raw Data'!$D:$D,"Personal Check") -> 0 | L25: =SUM(E25,K25,I25,G25,L24) -> 64451.93 | M25: =SUM(D25,F25,H25,J25) -> 5 | N25: =SUM(D25,J25,H25,F25,N24) -> 953 | O25: =L25/N25 -> 67.63056663 | P25: =(SUM(E25,K25,I25,G25))/(SUM(D25,F25,H25,J25)) -> 60 | Q25: =L25/Sheet11!$A22 -> 2929.633182 | R25: =(L25-L24)/C$3 -> 0.004555531934 | S25: =E25/(L25-L24) -> 0 | T25: =D25/M25 -> 0 | U25: =SUM(E$3:E25)/L25 -> 0 | V25: =SUM(D$3:D25)/M25 -> 0 | W25: =G25/(L25-L24) -> 1 | X25: =F25/M25 -> 1 | Y25: =SUM(G$3:G25)/L25 -> 0.7184763901 | Z25: =SUM(F$3:F25)/N25 -> 0.6190975866 | AA25: =I25/(L25-L24) -> 0 | AB25: =H25/M25 -> 0 | AC25: =SUM(I$3:I25)/L25 -> 0.09135195796 | AD25: =SUM(H$3:H25)/N25 -> 0.2287513116 | AE25: =K25/(L25-L24) -> 0 | AF25: =J25/M25 -> 0 | AG25: =SUM(K$3:K25)/L25 -> 0.190171652 | AH25: =SUM(J$3:J25)/N25 -> 0.1521511018 | AJ25: Day 22 | AK25: 2019-10-28 | AL25: 76366 | AM25: 0 | AN25: 0 | AO25: 86 | AP25: 8055.79 | AQ25: 33 | AR25: 1865 | AS25: 10 | AT25: 1690 | AU25: 66993.72 | AV25: 129 | AW25: 876 | AX25: 76.47684932 | AY25: 90.00612403 | AZ25: 3045.169091 | BA25: 0.1520413535 | BB25: 0 | BC25: 0 | BD25: 0 | BE25: 0 | BF25: 0.6938192836 | BG25: 0.6666666667 | BH25: 0.6166927288 | BI25: 0.5833333333 | BJ25: 0.1606264518 | BK25: 0.2558139535 | BL25: 0.1312025963 | BM25: 0.2534246575 | BN25: 0.1455542646 | BO25: 0.07751937984 | BP25: 0.2521046749 | BQ25: 0.1632420091 | BS25: Day 22 | BT25: 2019-04-29 | BU25: 74493 | BV25: 0 | BW25: 0 | BX25: 38 | BY25: 2253.52 | BZ25: 8 | CA25: 319.58 | CB25: 9 | CC25: 567 | CD25: 60500.85 | CE25: 55 | CF25: 918 | CG25: 65.90506536 | CH25: 57.09272727 | CI25: 2750.038636 | CJ25: 0.04215295397 | CK25: 0 | CL25: 0 | CM25: 0 | CN25: 0 | CO25: 0.7176586733 | CP25: 0.6909090909 | CQ25: 0.6474586721 | CR25: 0.5729847495 | CS25: 0.1017738289 | CT25: 0.1454545455 | CU25: 0.1191584912 | CV25: 0.2320261438 | CW25: 0.1805674979 | CX25: 0.1636363636 | CY25: 0.2333828368 | CZ25: 0.1949891068 | DB25: Day 22 | DC25: 2018-10-30 | DD25: 74104 | DE25: 0 | DF25: 0 | DG25: 21 | DH25: 9141.66 | DI25: 4 | DJ25: 250 | DK25: 3 | DL25: 150 | DM25: 55786.41 | DN25: 28 | DO25: 894 | DP25: 62.40090604 | DQ25: 77.54392857 | DR25: 2535.745909 | DS25: 0.02929976789 | DT25: 0 | DU25: 0 | DV25: 0 | DW25: 0 | DX25: 0.8157726266 | DY25: 0.75 | DZ25: 0.6506778264 | EA25: 0.5894854586 | EB25: 0.1151421084 | EC25: 0.1428571429 | ED25: 0.165389205 | EE25: 0.2248322148 | EF25: 0.06908526503 | EG25: 0.1071428571 | EH25: 0.1839329686 | EI25: 0.1856823266 | EK25: Day 22 | EL25: 2018-04-30 | EM25: 96226 | EN25: 0 | EO25: 0 | EP25: 39 | EQ25: 2469 | ER25: 22 | ES25: 1083.89 | ET25: 9 | EU25: 357 | EV25: 62070.27 | EW25: 70 | EX25: 935 | EY25: 66.38531551 | EZ25: 55.85557143 | FA25: 2821.375909 | FB25: 0.04063236547 | FC25: 0 | FD25: 0 | FE25: 0 | FF25: 0 | FG25: 0.6314755658 | FH25: 0.5571428571 | FI25: 0.6145450954 | FJ25: 0.5679144385 | FK25: 0.2772175176 | FL25: 0.3142857143 | FM25: 0.1846851963 | FN25: 0.2556149733 | FO25: 0.09130691656 | FP25: 0.1285714286 | FQ25: 0.2007697083 | FR25: 0.1764705882
A26: Day 23 | B26: 2020-08-06 | C26: 65854 | D26: =COUNTIFS('Sanitized Raw Data'!$H:$H,">="&$B26,'Sanitized Raw Data'!$H:$H,"<"&$B27,'Sanitized Raw Data'!$D:$D,"Cash") -> 0 | E26: =SUMIFS('Sanitized Raw Data'!$C:$C,'Sanitized Raw Data'!$H:$H,">="&$B26,'Sanitized Raw Data'!$H:$H,"<"&$B27,'Sanitized Raw Data'!$D:$D,"Cash") -> 0 | F26: =COUNTIFS('Sanitized Raw Data'!$H:$H,">="&$B26,'Sanitized Raw Data'!$H:$H,"<"&$B27,'Sanitized Raw Data'!$D:$D,"CC") -> 15 | G26: =SUMIFS('Sanitized Raw Data'!$C:$C,'Sanitized Raw Data'!$H:$H,">="&$B26,'Sanitized Raw Data'!$H:$H,"<"&$B27,'Sanitized Raw Data'!$D:$D,"CC") -> 1405 | H26: =COUNTIFS('Sanitized Raw Data'!$H:$H,">="&$B26,'Sanitized Raw Data'!$H:$H,"<"&$B27,'Sanitized Raw Data'!$D:$D,"PayPal") -> 0 | I26: =SUMIFS('Sanitized Raw Data'!$C:$C,'Sanitized Raw Data'!$H:$H,">="&$B26,'Sanitized Raw Data'!$H:$H,"<"&$B27,'Sanitized Raw Data'!$D:$D,"PayPal") -> 0 | J26: =COUNTIFS('Sanitized Raw Data'!$H:$H,">="&$B26,'Sanitized Raw Data'!$H:$H,"<"&$B27,'Sanitized Raw Data'!$D:$D,"Personal Check") -> 0 | K26: =SUMIFS('Sanitized Raw Data'!$C:$C,'Sanitized Raw Data'!$H:$H,">="&$B26,'Sanitized Raw Data'!$H:$H,"<"&$B27,'Sanitized Raw Data'!$D:$D,"Personal Check") -> 0 | L26: =SUM(E26,K26,I26,G26,L25) -> 65856.93 | M26: =SUM(D26,F26,H26,J26) -> 15 | N26: =SUM(D26,J26,H26,F26,N25) -> 968 | O26: =L26/N26 -> 68.0340186 | P26: =(SUM(E26,K26,I26,G26))/(SUM(D26,F26,H26,J26)) -> 93.66666667 | Q26: =L26/Sheet11!$A23 -> 2863.344783 | R26: =(L26-L25)/C$3 -> 0.02133507456 | S26: =E26/(L26-L25) -> 0 | T26: =D26/M26 -> 0 | U26: =SUM(E$3:E26)/L26 -> 0 | V26: =SUM(D$3:D26)/M26 -> 0 | W26: =G26/(L26-L25) -> 1 | X26: =F26/M26 -> 1 | Y26: =SUM(G$3:G26)/L26 -> 0.7244824501 | Z26: =SUM(F$3:F26)/N26 -> 0.625 | AA26: =I26/(L26-L25) -> 0 | AB26: =H26/M26 -> 0 | AC26: =SUM(I$3:I26)/L26 -> 0.08940304384 | AD26: =SUM(H$3:H26)/N26 -> 0.2252066116 | AE26: =K26/(L26-L25) -> 0 | AF26: =J26/M26 -> 0 | AG26: =SUM(K$3:K26)/L26 -> 0.1861145061 | AH26: =SUM(J$3:J26)/N26 -> 0.1497933884 | AJ26: Day 23 | AK26: 2019-10-29 | AL26: 76366 | AM26: 0 | AN26: 0 | AO26: 21 | AP26: 2100 | AQ26: 3 | AR26: 110 | AS26: 1 | AT26: 200 | AU26: 69403.72 | AV26: 25 | AW26: 901 | AX26: 77.02965594 | AY26: 96.4 | AZ26: 3017.553043 | BA26: 0.031558547 | BB26: 0 | BC26: 0 | BD26: 0 | BE26: 0 | BF26: 0.8713692946 | BG26: 0.84 | BH26: 0.6255362105 | BI26: 0.5904550499 | BJ26: 0.04564315353 | BK26: 0.12 | BL26: 0.1282315991 | BM26: 0.2497225305 | BN26: 0.08298755187 | BO26: 0.04 | BP26: 0.2462321904 | BQ26: 0.1598224195 | BS26: Day 23 | BT26: 2019-04-30 | BU26: 74493 | BV26: 0 | BW26: 0 | BX26: 12 | BY26: 473.42 | BZ26: 1 | CA26: 25 | CB26: 2 | CC26: 150 | CD26: 61149.27 | CE26: 15 | CF26: 933 | CG26: 65.54048232 | CH26: 43.228 | CI26: 2658.663913 | CJ26: 0.008704442028 | CK26: 0 | CL26: 0 | CM26: 0 | CN26: 0 | CO26: 0.7301131982 | CP26: 0.8 | CQ26: 0.6483351314 | CR26: 0.5766345123 | CS26: 0.03855525739 | CT26: 0.06666666667 | CU26: 0.1183037835 | CV26: 0.2293676313 | CW26: 0.2313315444 | CX26: 0.1333333333 | CY26: 0.2333610851 | CZ26: 0.1939978564 | DB26: Day 23 | DC26: 2018-10-31 | DD26: 74104 | DE26: 0 | DF26: 0 | DG26: 11 | DH26: 9141.66 | DI26: 0 | DJ26: 0 | DK26: 4 | DL26: 350 | DM26: 56912.73 | DN26: 15 | DO26: 909 | DP26: 62.61026403 | DQ26: 75.088 | DR26: 2474.466522 | DS26: 0.01519917953 | DT26: 0 | DU26: 0 | DV26: 0 | DW26: 0 | DX26: 0.6892534981 | DY26: 0.7333333333 | DZ26: 0.6514412505 | EA26: 0.5918591859 | EB26: 0 | EC26: 0 | ED26: 0.162116103 | EE26: 0.2211221122 | EF26: 0.3107465019 | EG26: 0.2666666667 | EH26: 0.1864426465 | EI26: 0.1870187019 | EK26: Day 23 | EL26: 2018-05-01 | EM26: 96226 | EN26: 0 | EO26: 0 | EP26: 4 | EQ26: 220 | ER26: 4 | ES26: 89.58 | ET26: 8 | EU26: 525 | EV26: 62904.85 | EW26: 16 | EX26: 951 | EY26: 66.14600421 | EZ26: 52.16125 | FA26: 2734.993478 | FB26: 0.008673123688 | FC26: 0 | FD26: 0 | FE26: 0 | FF26: 0 | FG26: 0.263605646 | FH26: 0.25 | FI26: 0.6098890626 | FJ26: 0.5625657203 | FK26: 0.1073354262 | FL26: 0.25 | FM26: 0.1836589707 | FN26: 0.2555205047 | FO26: 0.6290589278 | FP26: 0.5 | FQ26: 0.2064519667 | FR26: 0.181913775
A27: Day 24 | B27: 2020-08-07 | C27: 65854 | AJ27: Day 24 | AK27: 2019-10-30 | AL27: 76366 | AM27: 0 | AN27: 0 | AO27: 9 | AP27: 1369.79 | AQ27: 1 | AR27: 10 | AS27: 0 | AT27: 0 | AU27: 70783.51 | AV27: 10 | AW27: 911 | AX27: 77.69869374 | AY27: 137.979 | AZ27: 2949.312917 | BA27: 0.01806811932 | BB27: 0 | BC27: 0 | BD27: 0 | BE27: 0 | BF27: 0.9927525203 | BG27: 0.9 | BH27: 0.6326943945 | BI27: 0.5938529089 | BJ27: 0.007247479689 | BK27: 0.1 | BL27: 0.1258732436 | BM27: 0.248079034 | BN27: 0 | BO27: 0 | BP27: 0.2414323619 | BQ27: 0.1580680571 | BS27: Day 24 | BT27: 2019-05-01 | BU27: 74493 | BV27: 0 | BW27: 0 | BX27: 6 | BY27: 425 | BZ27: 1 | CA27: 25 | CB27: 4 | CC27: 160 | CD27: 61759.27 | CE27: 11 | CF27: 944 | CG27: 65.42295551 | CH27: 55.45454545 | CI27: 2573.302917 | CJ27: 0.00818868887 | CK27: 0 | CL27: 0 | CM27: 0 | CN27: 0 | CO27: 0.6967213115 | CP27: 0.5454545455 | CQ27: 0.6488130446 | CR27: 0.5762711864 | CS27: 0.04098360656 | CT27: 0.09090909091 | CU27: 0.1175400875 | CV27: 0.2277542373 | CW27: 0.262295082 | CX27: 0.3636363636 | CY27: 0.2336468679 | CZ27: 0.1959745763 | DB27: Day 24 | DC27: 2018-11-01 | DD27: 74104 | DE27: 0 | DF27: 0 | DG27: 5 | DH27: 9141.66 | DI27: 1 | DJ27: 19.89 | DK27: 4 | DL27: 220 | DM27: 57581.26 | DN27: 10 | DO27: 919 | DP27: 62.6564309 | DQ27: 66.853 | DR27: 2399.219167 | DS27: 0.00902151031 | DT27: 0 | DU27: 0 | DV27: 0 | DW27: 0 | DX27: 0.6411679356 | DY27: 0.5 | DZ27: 0.6513219752 | EA27: 0.59085963 | EB27: 0.0297518436 | EC27: 0.1 | ED27: 0.1605793274 | EE27: 0.2198041349 | EF27: 0.3290802208 | EG27: 0.4 | EH27: 0.1880986974 | EI27: 0.189336235 | EK27: Day 24 | EL27: 2018-05-02 | EM27: 96226 | EN27: 0 | EO27: 0 | EP27: 6 | EQ27: 356 | ER27: 3 | ES27: 145 | ET27: 2 | EU27: 228 | EV27: 63633.85 | EW27: 11 | EX27: 962 | EY27: 66.14745322 | EZ27: 66.27272727 | FA27: 2651.410417 | FB27: 0.007575915033 | FC27: 0 | FD27: 0 | FE27: 0 | FF27: 0 | FG27: 0.488340192 | FH27: 0.5454545455 | FI27: 0.6084965785 | FJ27: 0.5623700624 | FK27: 0.1989026063 | FL27: 0.2727272727 | FM27: 0.1838336043 | FN27: 0.2557172557 | FO27: 0.3127572016 | FP27: 0.1818181818 | FQ27: 0.2076698172 | FR27: 0.1819126819
A28: Day 25 | B28: 2020-08-08 | C28: 65854 | AJ28: Day 25 | AK28: 2019-10-31 | AL28: 76366 | AM28: 0 | AN28: 0 | AO28: 9 | AP28: 684 | AQ28: 2 | AR28: 75 | AS28: 0 | AT28: 0 | AU28: 71542.51 | AV28: 11 | AW28: 922 | AX28: 77.59491323 | AY28: 69 | AZ28: 2861.7004 | BA28: 0.009938978079 | BB28: 0 | BC28: 0 | BD28: 0 | BE28: 0 | BF28: 0.9011857708 | BG28: 0.8181818182 | BH28: 0.6355428402 | BI28: 0.5965292842 | BJ28: 0.09881422925 | BK28: 0.1818181818 | BL28: 0.1255861725 | BM28: 0.2472885033 | BN28: 0 | BO28: 0 | BP28: 0.2388709873 | BQ28: 0.1561822126 | BS28: Day 25 | BT28: 2019-05-02 | BU28: 74493 | BV28: 0 | BW28: 0 | BX28: 4 | BY28: 751.23 | BZ28: 0 | CA28: 0 | CB28: 3 | CC28: 175 | CD28: 62685.5 | CE28: 7 | CF28: 951 | CG28: 65.91535226 | CH28: 132.3185714 | CI28: 2507.42 | CJ28: 0.01243378572 | CK28: 0 | CL28: 0 | CM28: 0 | CN28: 0 | CO28: 0.8110620472 | CP28: 0.5714285714 | CQ28: 0.6512104075 | CR28: 0.5762355415 | CS28: 0 | CT28: 0 | CU28: 0.1158033357 | CV28: 0.2260778128 | CW28: 0.1889379528 | CX28: 0.4285714286 | CY28: 0.2329862568 | CZ28: 0.1976866456 | DB28: Day 25 | DC28: 2018-11-02 | DD28: 74104 | DE28: 0 | DF28: 0 | DG28: 2 | DH28: 9141.66 | DI28: 0 | DJ28: 0 | DK28: 2 | DL28: 100 | DM28: 57831.26 | DN28: 4 | DO28: 923 | DP28: 62.65575298 | DQ28: 62.5 | DR28: 2313.2504 | DS28: 0.003373637051 | DT28: 0 | DU28: 0 | DV28: 0 | DW28: 0 | DX28: 0.6 | DY28: 0.5 | DZ28: 0.6511001144 | EA28: 0.5904658722 | EB28: 0 | EC28: 0 | ED28: 0.1598851555 | EE28: 0.218851571 | EF28: 0.4 | EG28: 0.5 | EH28: 0.1890147301 | EI28: 0.1906825569 | EK28: Day 25 | EL28: 2018-05-03 | EM28: 96226 | EN28: 0 | EO28: 0 | EP28: 5 | EQ28: 345 | ER28: 1 | ES28: 50 | ET28: 0 | EU28: 0 | EV28: 64028.85 | EW28: 6 | EX28: 968 | EY28: 66.1455062 | EZ28: 65.83333333 | FA28: 2561.154 | FB28: 0.004104919668 | FC28: 0 | FD28: 0 | FE28: 0 | FF28: 0 | FG28: 0.8734177215 | FH28: 0.8333333333 | FI28: 0.6101309019 | FJ28: 0.5640495868 | FK28: 0.1265822785 | FL28: 0.1666666667 | FM28: 0.1834804155 | FN28: 0.2551652893 | FO28: 0 | FP28: 0 | FQ28: 0.2063886826 | FR28: 0.180785124
A29: Day 26 | B29: 2020-08-09 | C29: 65854 | AJ29: Day 26 | AK29: 2019-11-01 | AL29: 76366 | AM29: 0 | AN29: 0 | AO29: 9 | AP29: 461 | AQ29: 0 | AR29: 0 | AS29: 0 | AT29: 0 | AU29: 72003.51 | AV29: 9 | AW29: 931 | AX29: 77.33996778 | AY29: 51.22222222 | AZ29: 2769.365769 | BA29: 0.006036717911 | BB29: 0 | BC29: 0 | BD29: 0 | BE29: 0 | BF29: 1 | BG29: 1 | BH29: 0.6378762646 | BI29: 0.6004296455 | BJ29: 0 | BK29: 0 | BL29: 0.1247821113 | BM29: 0.2448979592 | BN29: 0 | BO29: 0 | BP29: 0.237341624 | BQ29: 0.1546723953 | BS29: Day 26 | BT29: 2019-05-03 | BU29: 74493 | BV29: 0 | BW29: 0 | BX29: 6 | BY29: 275 | BZ29: 0 | CA29: 0 | CB29: 0 | CC29: 0 | CD29: 62960.5 | CE29: 6 | CF29: 957 | CG29: 65.78944619 | CH29: 45.83333333 | CI29: 2421.557692 | CJ29: 0.003691622032 | CK29: 0 | CL29: 0 | CM29: 0 | CN29: 0 | CO29: 1 | CP29: 1 | CQ29: 0.6527338569 | CR29: 0.578892372 | CS29: 0 | CT29: 0 | CU29: 0.1152975278 | CV29: 0.2246603971 | CW29: 0 | CX29: 0 | CY29: 0.2319686152 | CZ29: 0.1964472309 | DB29: Day 26 | DC29: 2018-11-03 | DD29: 74104 | DE29: 0 | DF29: 0 | DG29: 3 | DH29: 9141.66 | DI29: 0 | DJ29: 0 | DK29: 0 | DL29: 0 | DM29: 57906.26 | DN29: 3 | DO29: 926 | DP29: 62.5337581 | DQ29: 25 | DR29: 2227.163846 | DS29: 0.001012091115 | DT29: 0 | DU29: 0 | DV29: 0 | DW29: 0 | DX29: 1 | DY29: 1 | DZ29: 0.6515520084 | EA29: 0.5917926566 | EB29: 0 | EC29: 0 | ED29: 0.1596780728 | EE29: 0.2181425486 | EF29: 0 | EG29: 0 | EH29: 0.1887699188 | EI29: 0.1900647948 | EK29: Day 26 | EL29: 2018-05-04 | EM29: 96226 | EN29: 0 | EO29: 0 | EP29: 5 | EQ29: 326.63 | ER29: 3 | ES29: 123.18 | ET29: 2 | EU29: 45 | EV29: 64523.66 | EW29: 10 | EX29: 978 | EY29: 65.97511247 | EZ29: 49.481 | FA29: 2481.679231 | FB29: 0.005142165319 | FC29: 0 | FD29: 0 | FE29: 0 | FF29: 0 | FG29: 0.6601119622 | FH29: 0.5 | FI29: 0.6105141897 | FJ29: 0.563394683 | FK29: 0.2489440391 | FL29: 0.3 | FM29: 0.1839824337 | FN29: 0.2556237219 | FO29: 0.09094399871 | FP29: 0.2 | FQ29: 0.2055033766 | FR29: 0.1809815951
A30: Day 27 | B30: 2020-08-10 | C30: 65854 | AJ30: Day 27 | AK30: 2019-11-02 | AL30: 76366 | AM30: 0 | AN30: 0 | AO30: 4 | AP30: 219.79 | AQ30: 1 | AR30: 35 | AS30: 0 | AT30: 0 | AU30: 72258.3 | AV30: 5 | AW30: 936 | AX30: 77.19903846 | AY30: 50.958 | AZ30: 2676.233333 | BA30: 0.003336432444 | BB30: 0 | BC30: 0 | BD30: 0 | BE30: 0 | BF30: 0.8626319714 | BG30: 0.8 | BH30: 0.6386687758 | BI30: 0.6014957265 | BJ30: 0.1373680286 | BK30: 0.2 | BL30: 0.1248264905 | BM30: 0.2446581197 | BN30: 0 | BO30: 0 | BP30: 0.2365047337 | BQ30: 0.1538461538 | BS30: Day 27 | BT30: 2019-05-04 | BU30: 74493 | BV30: 0 | BW30: 0 | BX30: 3 | BY30: 95 | BZ30: 2 | CA30: 61 | CB30: 1 | CC30: 50 | CD30: 63166.5 | CE30: 6 | CF30: 963 | CG30: 65.59345794 | CH30: 34.33333333 | CI30: 2339.5 | CJ30: 0.002765360504 | CK30: 0 | CL30: 0 | CM30: 0 | CN30: 0 | CO30: 0.4611650485 | CP30: 0.5 | CQ30: 0.6521091085 | CR30: 0.5784008307 | CS30: 0.2961165049 | CT30: 0.3333333333 | CU30: 0.1158872187 | CV30: 0.225337487 | CW30: 0.2427184466 | CX30: 0.1666666667 | CY30: 0.2320036728 | CZ30: 0.1962616822 | DB30: Day 27 | DC30: 2018-11-04 | DD30: 74104 | DE30: 0 | DF30: 0 | DG30: 8 | DH30: 9141.66 | DI30: 5 | DJ30: 158 | DK30: 0 | DL30: 0 | DM30: 59097.26 | DN30: 13 | DO30: 939 | DP30: 62.93637913 | DQ30: 91.61538462 | DR30: 2188.787407 | DS30: 0.01607200691 | DT30: 0 | DU30: 0 | DV30: 0 | DW30: 0 | DX30: 0.8673383711 | DY30: 0.6153846154 | DZ30: 0.6559007981 | EA30: 0.5921192758 | EB30: 0.1326616289 | EC30: 0.3846153846 | ED30: 0.1591336045 | EE30: 0.2204472843 | EF30: 0 | EG30: 0 | EH30: 0.1849655974 | EI30: 0.1874334398 | EK30: Day 27 | EL30: 2018-05-05 | EM30: 96226 | EN30: 0 | EO30: 0 | EP30: 4 | EQ30: 259 | ER30: 0 | ES30: 0 | ET30: 1 | EU30: 50 | EV30: 64832.66 | EW30: 5 | EX30: 983 | EY30: 65.95387589 | EZ30: 61.8 | FA30: 2401.20963 | FB30: 0.003211190323 | FC30: 0 | FD30: 0 | FE30: 0 | FF30: 0 | FG30: 0.8381877023 | FH30: 0.8 | FI30: 0.6115993081 | FJ30: 0.5645981689 | FK30: 0 | FL30: 0 | FM30: 0.183105552 | FN30: 0.2543234995 | FO30: 0.1618122977 | FP30: 0.2 | FQ30: 0.2052951398 | FR30: 0.1810783316
A31: Day 28 | B31: 2020-08-11 | C31: 65854 | AJ31: Day 28 | AK31: 2019-11-03 | AL31: 76366 | AM31: 0 | AN31: 0 | AO31: 11 | AP31: 458.89 | AQ31: 0 | AR31: 0 | AS31: 0 | AT31: 0 | AU31: 72717.19 | AV31: 11 | AW31: 947 | AX31: 76.78689546 | AY31: 41.71727273 | AZ31: 2597.0425 | BA31: 0.006009087814 | BB31: 0 | BC31: 0 | BD31: 0 | BE31: 0 | BF31: 1 | BG31: 1 | BH31: 0.6409489971 | BI31: 0.606124604 | BJ31: 0 | BK31: 0 | BL31: 0.1240387589 | BM31: 0.2418162619 | BN31: 0 | BO31: 0 | BP31: 0.235012244 | BQ31: 0.1520591341 | BS31: Day 28 | BT31: 2019-05-05 | BU31: 74493 | BV31: 0 | BW31: 0 | BX31: 1 | BY31: 64 | BZ31: 1 | CA31: 20 | CB31: 1 | CC31: 128 | CD31: 63378.5 | CE31: 3 | CF31: 966 | CG31: 65.60921325 | CH31: 70.66666667 | CI31: 2263.517857 | CJ31: 0.002845904984 | CK31: 0 | CL31: 0 | CM31: 0 | CN31: 0 | CO31: 0.3018867925 | CP31: 0.3333333333 | CQ31: 0.6509376208 | CR31: 0.5776397516 | CS31: 0.09433962264 | CT31: 0.3333333333 | CU31: 0.1158151424 | CV31: 0.2256728778 | CW31: 0.6037735849 | CX31: 0.3333333333 | CY31: 0.2332472368 | CZ31: 0.1966873706 | DB31: Day 28 | DC31: 2018-11-05 | DD31: 74104 | DE31: 0 | DF31: 0 | DG31: 60 | DH31: 9141.66 | DI31: 10 | DJ31: 520 | DK31: 1 | DL31: 20 | DM31: 62891.88 | DN31: 71 | DO31: 1010 | DP31: 62.26918812 | DQ31: 53.44535211 | DR31: 2246.138571 | DS31: 0.0512066825 | DT31: 0 | DU31: 0 | DV31: 0 | DW31: 0 | DX31: 0.8576932605 | DY31: 0.8450704225 | DZ31: 0.6680760696 | EA31: 0.6099009901 | EB31: 0.1370361196 | EC31: 0.1408450704 | ED31: 0.1578003392 | EE31: 0.2148514851 | EF31: 0.005270619983 | EG31: 0.01408450704 | EH31: 0.1741235912 | EI31: 0.1752475248 | EK31: Day 28 | EL31: 2018-05-06 | EM31: 96226 | EN31: 0 | EO31: 0 | EP31: 10 | EQ31: 561.06 | ER31: 2 | ES31: 205 | ET31: 0 | EU31: 0 | EV31: 65598.72 | EW31: 12 | EX31: 995 | EY31: 65.92836181 | EZ31: 63.83833333 | FA31: 2342.811429 | FB31: 0.007961050028 | FC31: 0 | FD31: 0 | FE31: 0 | FF31: 0 | FG31: 0.7323969402 | FH31: 0.8333333333 | FI31: 0.6130099795 | FJ31: 0.567839196 | FK31: 0.2676030598 | FL31: 0.1666666667 | FM31: 0.1840923116 | FN31: 0.2532663317 | FO31: 0 | FP31: 0 | FQ31: 0.202897709 | FR31: 0.1788944724
A32: Day 29 | B32: 2020-08-12 | C32: 65854 | AJ32: Day 29 | AK32: 2019-11-04 | AL32: 76366 | AM32: 0 | AN32: 0 | AO32: 35 | AP32: 2794.63 | AQ32: 0 | AR32: 0 | AS32: 0 | AT32: 0 | AU32: 75511.82 | AV32: 35 | AW32: 982 | AX32: 76.89594705 | AY32: 79.84657143 | AZ32: 2603.855862 | BA32: 0.03659521253 | BB32: 0 | BC32: 0 | BD32: 0 | BE32: 0 | BF32: 1 | BG32: 1 | BH32: 0.6542371777 | BI32: 0.6201629328 | BJ32: 0 | BK32: 0 | BL32: 0.1194481871 | BM32: 0.233197556 | BN32: 0 | BO32: 0 | BP32: 0.2263146352 | BQ32: 0.1466395112 | BS32: Day 29 | BT32: 2019-05-06 | BU32: 74493 | BV32: 0 | BW32: 0 | BX32: 34 | BY32: 2021.11 | BZ32: 13 | CA32: 789.52 | CB32: 8 | CC32: 530 | CD32: 66719.13 | CE32: 55 | CF32: 1021 | CG32: 65.34684623 | CH32: 60.73872727 | CI32: 2300.659655 | CJ32: 0.04484488475 | CK32: 0 | CL32: 0 | CM32: 0 | CN32: 0 | CO32: 0.6050086361 | CP32: 0.6181818182 | CQ32: 0.6486379544 | CR32: 0.5798237023 | CS32: 0.2363386547 | CT32: 0.2363636364 | CU32: 0.1218497603 | CV32: 0.2262487757 | CW32: 0.1586527092 | CX32: 0.1454545455 | CY32: 0.2295122853 | CZ32: 0.193927522 | DB32: Day 29 | DC32: 2018-11-06 | DD32: 74104 | DE32: 0 | DF32: 0 | DG32: 18 | DH32: 9141.66 | DI32: 3 | DJ32: 105 | DK32: 3 | DL32: 275 | DM32: 64963.88 | DN32: 24 | DO32: 1034 | DP32: 62.82773694 | DQ32: 86.33333333 | DR32: 2240.133793 | DS32: 0.02796070388 | DT32: 0 | DU32: 0 | DV32: 0 | DW32: 0 | DX32: 0.8166023166 | DY32: 0.75 | DZ32: 0.6728132618 | EA32: 0.6131528046 | EB32: 0.05067567568 | EC32: 0.125 | ED32: 0.154383636 | EE32: 0.2127659574 | EF32: 0.1327220077 | EG32: 0.125 | EH32: 0.1728031023 | EI32: 0.1740812379 | EK32: Day 29 | EL32: 2018-05-07 | EM32: 96226 | EN32: 0 | EO32: 0 | EP32: 63 | EQ32: 3714.39 | ER32: 3 | ES32: 90 | ET32: 11 | EU32: 604.63 | EV32: 70007.74 | EW32: 77 | EX32: 1072 | EY32: 65.30572761 | EZ32: 57.26 | FA32: 2414.06 | FB32: 0.0458194251 | FC32: 0 | FD32: 0 | FE32: 0 | FF32: 0 | FG32: 0.8424525178 | FH32: 0.8181818182 | FI32: 0.6274600494 | FJ32: 0.5858208955 | FK32: 0.02041269942 | FL32: 0.03896103896 | FM32: 0.1737839273 | FN32: 0.2378731343 | FO32: 0.1371347828 | FP32: 0.1428571429 | FQ32: 0.1987560233 | FR32: 0.1763059701
A33: Day 30 | B33: 2020-08-13 | C33: 65854 | AJ33: Day 30 | BS33: Day 30 | BT33: 2019-05-07 | BU33: 74493 | BV33: 0 | BW33: 0 | BX33: 6 | BY33: 319.76 | BZ33: 2 | CA33: 222.9 | CB33: 3 | CC33: 200 | CD33: 67461.79 | CE33: 11 | CF33: 1032 | CG33: 65.36995155 | CH33: 67.51454545 | CI33: 2248.726333 | CJ33: 0.009969527338 | CK33: 0 | CL33: 0 | CM33: 0 | CN33: 0 | CO33: 0.430560418 | CP33: 0.5454545455 | CQ33: 0.6462372255 | CR33: 0.5794573643 | CS33: 0.3001373441 | CT33: 0.1818181818 | CU33: 0.1238124574 | CV33: 0.2257751938 | CW33: 0.2693022379 | CX33: 0.2727272727 | CY33: 0.2299503171 | CZ33: 0.1947674419 | DB33: Day 30 | DC33: 2018-11-07 | DD33: 74104 | DE33: 0 | DF33: 0 | DG33: 17 | DH33: 9141.66 | DI33: 1 | DJ33: 19.89 | DK33: 1 | DL33: 30 | DM33: 66241.2 | DN33: 19 | DO33: 1053 | DP33: 62.90712251 | DQ33: 67.22736842 | DR33: 2208.04 | DS33: 0.01723685631 | DT33: 0 | DU33: 0 | DV33: 0 | DW33: 0 | DX33: 0.9609416591 | DY33: 0.8947368421 | DZ33: 0.6783692022 | EA33: 0.6182336182 | EB33: 0.01557166568 | EC33: 0.05263157895 | ED33: 0.1517069437 | EE33: 0.2098765432 | EF33: 0.02348667523 | EG33: 0.05263157895 | EH33: 0.169923854 | EI33: 0.1718898386 | EK33: Day 30 | EL33: 2018-05-08 | EM33: 96226 | EN33: 0 | EO33: 0 | EP33: 15 | EQ33: 1373.79 | ER33: 1 | ES33: 10 | ET33: 6 | EU33: 419.79 | EV33: 71811.32 | EW33: 22 | EX33: 1094 | EY33: 65.64106033 | EZ33: 81.98090909 | FA33: 2393.710667 | FB33: 0.01874316713 | FC33: 0 | FD33: 0 | FE33: 0 | FF33: 0 | FG33: 0.7617017266 | FH33: 0.6818181818 | FI33: 0.6308316015 | FJ33: 0.5877513711 | FK33: 0.005544528105 | FL33: 0.04545454545 | FM33: 0.1695585041 | FN33: 0.2340036563 | FO33: 0.2327537453 | FP33: 0.2727272727 | FQ33: 0.1996098944 | FR33: 0.1782449726
A34: Day 31 | B34: 2020-08-14 | C34: 65854 | AJ34: Day 31 | BS34: Day 31 | BT34: 2019-05-08 | BU34: 74493 | BV34: 0 | BW34: 0 | BX34: 6 | BY34: 308 | BZ34: 1 | CA34: 10 | CB34: 3 | CC34: 225 | CD34: 68004.79 | CE34: 10 | CF34: 1042 | CG34: 65.26371401 | CH34: 54.3 | CI34: 2193.702903 | CJ34: 0.007289275502 | CK34: 0 | CL34: 0 | CM34: 0 | CN34: 0 | CO34: 0.5672191529 | CP34: 0.6 | CQ34: 0.6456062874 | CR34: 0.5796545106 | CS34: 0.01841620626 | CT34: 0.1 | CU34: 0.1229708966 | CV34: 0.2245681382 | CW34: 0.4143646409 | CX34: 0.3 | CY34: 0.231422816 | CZ34: 0.1957773512 | DB34: Day 31 | DC34: 2018-11-08 | DD34: 74104 | DE34: 0 | DF34: 0 | DG34: 6 | DH34: 9141.66 | DI34: 2 | DJ34: 87 | DK34: 2 | DL34: 85 | DM34: 66847.2 | DN34: 10 | DO34: 1063 | DP34: 62.88541863 | DQ34: 60.6 | DR34: 2156.36129 | DS34: 0.008177696211 | DT34: 0 | DU34: 0 | DV34: 0 | DW34: 0 | DX34: 0.7161716172 | DY34: 0.6 | DZ34: 0.6787118982 | EA34: 0.6180620884 | EB34: 0.1435643564 | EC34: 0.2 | ED34: 0.1516331275 | EE34: 0.2097836312 | EF34: 0.1402640264 | EG34: 0.2 | EH34: 0.1696549743 | EI34: 0.1721542803 | EK34: Day 31 | EL34: 2018-05-09 | EM34: 96226 | EN34: 0 | EO34: 0 | EP34: 15 | EQ34: 1089.55 | ER34: 2 | ES34: 525 | ET34: 2 | EU34: 75 | EV34: 73500.87 | EW34: 19 | EX34: 1113 | EY34: 66.03851752 | EZ34: 88.92368421 | FA34: 2370.995806 | FB34: 0.01755814437 | FC34: 0 | FD34: 0 | FE34: 0 | FF34: 0 | FG34: 0.6448758545 | FH34: 0.7894736842 | FI34: 0.631154434 | FJ34: 0.5911949686 | FK34: 0.3107336273 | FL34: 0.1052631579 | FM34: 0.1728036689 | FN34: 0.2318059299 | FO34: 0.04439051819 | FP34: 0.1052631579 | FQ34: 0.1960418972 | FR34: 0.1769991015
A35: Day 32 | B35: 2020-08-15 | C35: 65854 | AJ35: Day 32 | BS35: Day 32 | BT35: 2019-05-09 | BU35: 74493 | BV35: 0 | BW35: 0 | BX35: 1 | BY35: 25 | BZ35: 2 | CA35: 50 | CB35: 2 | CC35: 200 | CD35: 68279.79 | CE35: 5 | CF35: 1047 | CG35: 65.21469914 | CH35: 55 | CI35: 2133.743438 | CJ35: 0.003691622032 | CK35: 0 | CL35: 0 | CM35: 0 | CN35: 0 | CO35: 0.09090909091 | CP35: 0.2 | CQ35: 0.6433722189 | CR35: 0.5778414518 | CS35: 0.1818181818 | CT35: 0.4 | CU35: 0.1232079068 | CV35: 0.2254059217 | CW35: 0.7272727273 | CX35: 0.4 | CY35: 0.2334198743 | CZ35: 0.1967526266 | DB35: Day 32 | DC35: 2018-11-09 | DD35: 74104 | DE35: 0 | DF35: 0 | DG35: 8 | DH35: 9141.66 | DI35: 1 | DJ35: 25 | DK35: 0 | DL35: 0 | DM35: 67232.2 | DN35: 9 | DO35: 1072 | DP35: 62.71660448 | DQ35: 42.77777778 | DR35: 2101.00625 | DS35: 0.005195401058 | DT35: 0 | DU35: 0 | DV35: 0 | DW35: 0 | DX35: 0.9350649351 | DY35: 0.8888888889 | DZ35: 0.680179884 | EA35: 0.6203358209 | EB35: 0.06493506494 | EC35: 0.1111111111 | ED35: 0.1511366577 | EE35: 0.2089552239 | EF35: 0 | EG35: 0 | EH35: 0.1686834582 | EI35: 0.1707089552 | EK35: Day 32 | EL35: 2018-05-10 | EM35: 96226 | EN35: 0 | EO35: 0 | EP35: 9 | EQ35: 1127.42 | ER35: 2 | ES35: 86 | ET35: 3 | EU35: 120 | EV35: 74834.29 | EW35: 14 | EX35: 1127 | EY35: 66.40132209 | EZ35: 95.24428571 | FA35: 2338.571562 | FB35: 0.01385716958 | FC35: 0 | FD35: 0 | FE35: 0 | FF35: 0 | FG35: 0.8455100418 | FH35: 0.6428571429 | FI35: 0.634973887 | FJ35: 0.5918367347 | FK35: 0.06449580777 | FL35: 0.1428571429 | FM35: 0.1708738066 | FN35: 0.230700976 | FO35: 0.08999415038 | FP35: 0.2142857143 | FQ35: 0.1941523064 | FR35: 0.1774622893
A36: Day 33 | B36: 2020-08-16 | C36: 65854 | AJ36: Day 33 | BS36: Day 33 | BT36: 2019-05-10 | BU36: 74493 | BV36: 0 | BW36: 0 | BX36: 14 | BY36: 815.64 | BZ36: 0 | CA36: 0 | CB36: 1 | CC36: 58 | CD36: 69153.43 | CE36: 15 | CF36: 1062 | CG36: 65.11622411 | CH36: 58.24266667 | CI36: 2095.558485 | CJ36: 0.01172781335 | CK36: 0 | CL36: 0 | CM36: 0 | CN36: 0 | CO36: 0.9336110984 | CP36: 0.9333333333 | CQ36: 0.6470389104 | CR36: 0.5828625235 | CS36: 0 | CT36: 0 | CU36: 0.1216513772 | CV36: 0.2222222222 | CW36: 0.06638890161 | CX36: 0.06666666667 | CY36: 0.2313097123 | CZ36: 0.1949152542 | DB36: Day 33 | DC36: 2018-11-10 | DD36: 74104 | DE36: 0 | DF36: 0 | DG36: 4 | DH36: 9141.66 | DI36: 1 | DJ36: 100 | DK36: 0 | DL36: 0 | DM36: 67504.2 | DN36: 5 | DO36: 1077 | DP36: 62.67799443 | DQ36: 54.4 | DR36: 2045.581818 | DS36: 0.003670517111 | DT36: 0 | DU36: 0 | DV36: 0 | DW36: 0 | DX36: 0.6323529412 | DY36: 0.8 | DZ36: 0.6799871712 | EA36: 0.6211699164 | EB36: 0.3676470588 | EC36: 0.2 | ED36: 0.1520090602 | EE36: 0.208913649 | EF36: 0 | EG36: 0 | EH36: 0.1680037687 | EI36: 0.1699164345 | EK36: Day 33 | EL36: 2018-05-11 | EM36: 96226 | EN36: 0 | EO36: 0 | EP36: 0 | EQ36: 0 | ER36: 3 | ES36: 39.89 | ET36: 1 | EU36: 100 | EV36: 74974.18 | EW36: 4 | EX36: 1131 | EY36: 66.29016799 | EZ36: 34.9725 | FA36: 2271.944848 | FB36: 0.001453765095 | FC36: 0 | FD36: 0 | FE36: 0 | FF36: 0 | FG36: 0 | FH36: 0 | FI36: 0.6337891258 | FJ36: 0.5897435897 | FK36: 0.2851526199 | FL36: 0.75 | FM36: 0.1710870329 | FN36: 0.2325375774 | FO36: 0.7148473801 | FP36: 0.25 | FQ36: 0.1951238413 | FR36: 0.1777188329
A37: Day 34 | B37: 2020-08-17 | C37: 65854 | AJ37: Day 34 | BS37: Day 34 | BT37: 2019-05-11 | BU37: 74493 | BV37: 0 | BW37: 0 | BX37: 4 | BY37: 143.58 | BZ37: 1 | CA37: 10 | CB37: 1 | CC37: 10 | CD37: 69317.01 | CE37: 6 | CF37: 1068 | CG37: 64.90356742 | CH37: 27.26333333 | CI37: 2038.735588 | CJ37: 0.002195911025 | CK37: 0 | CL37: 0 | CM37: 0 | CN37: 0 | CO37: 0.8777356645 | CP37: 0.6666666667 | CQ37: 0.6475833277 | CR37: 0.5833333333 | CS37: 0.06113216775 | CT37: 0.1666666667 | CU37: 0.121508559 | CV37: 0.2219101124 | CW37: 0.06113216775 | CX37: 0.1666666667 | CY37: 0.2309081133 | CZ37: 0.1947565543 | DB37: Day 34 | DC37: 2018-11-11 | DD37: 74104 | DE37: 0 | DF37: 0 | DG37: 2 | DH37: 9141.66 | DI37: 5 | DJ37: 139.89 | DK37: 0 | DL37: 0 | DM37: 67844.09 | DN37: 7 | DO37: 1084 | DP37: 62.58679889 | DQ37: 48.55571429 | DR37: 1995.414412 | DS37: 0.004586661989 | DT37: 0 | DU37: 0 | DV37: 0 | DW37: 0 | DX37: 0.5884256671 | DY37: 0.2857142857 | DZ37: 0.67952846 | EA37: 0.61900369 | EB37: 0.4115743329 | EC37: 0.7142857143 | ED37: 0.1533094482 | EE37: 0.2121771218 | EF37: 0 | EG37: 0 | EH37: 0.1671620918 | EI37: 0.1688191882 | EK37: Day 34 | EL37: 2018-05-12 | EM37: 96226 | EN37: 0 | EO37: 0 | EP37: 5 | EQ37: 185 | ER37: 0 | ES37: 0 | ET37: 1 | EU37: 25 | EV37: 75184.18 | EW37: 6 | EX37: 1137 | EY37: 66.12504837 | EZ37: 35 | FA37: 2211.299412 | FB37: 0.002182362355 | FC37: 0 | FD37: 0 | FE37: 0 | FF37: 0 | FG37: 0.880952381 | FH37: 0.8333333333 | FI37: 0.6344794876 | FJ37: 0.5910290237 | FK37: 0 | FL37: 0 | FM37: 0.1706091627 | FN37: 0.2313104661 | FO37: 0.119047619 | FP37: 0.1666666667 | FQ37: 0.1949113497 | FR37: 0.1776605101
A38: Day 35 | B38: 2020-08-18 | C38: 65854 | AJ38: Day 35 | BS38: Day 35 | BT38: 2019-05-12 | BU38: 74493 | BV38: 0 | BW38: 0 | BX38: 3 | BY38: 175 | BZ38: 0 | CA38: 0 | CB38: 1 | CC38: 100 | CD38: 69592.01 | CE38: 4 | CF38: 1072 | CG38: 64.91791978 | CH38: 68.75 | CI38: 1988.343143 | CJ38: 0.003691622032 | CK38: 0 | CL38: 0 | CM38: 0 | CN38: 0 | CO38: 0.6363636364 | CP38: 0.75 | CQ38: 0.6475389919 | CR38: 0.5839552239 | CS38: 0 | CT38: 0 | CU38: 0.1210284054 | CV38: 0.2210820896 | CW38: 0.3636363636 | CX38: 0.25 | CY38: 0.2314326027 | CZ38: 0.1949626866 | DB38: Day 35 | DC38: 2018-11-12 | DD38: 74104 | DE38: 0 | DF38: 0 | DG38: 6 | DH38: 9141.66 | DI38: 0 | DJ38: 0 | DK38: 0 | DL38: 0 | DM38: 68233.09 | DN38: 6 | DO38: 1090 | DP38: 62.59916514 | DQ38: 64.83333333 | DR38: 1949.516857 | DS38: 0.005249379251 | DT38: 0 | DU38: 0 | DV38: 0 | DW38: 0 | DX38: 1 | DY38: 1 | DZ38: 0.6813554831 | EA38: 0.6211009174 | EB38: 0 | EC38: 0 | ED38: 0.1524354239 | EE38: 0.2110091743 | EF38: 0 | EG38: 0 | EH38: 0.166209093 | EI38: 0.1678899083 | EK38: Day 35 | EL38: 2018-05-13 | EM38: 96226 | EN38: 0 | EO38: 0 | EP38: 13 | EQ38: 1154.79 | ER38: 4 | ES38: 185 | ET38: 1 | EU38: 25 | EV38: 76548.97 | EW38: 18 | EX38: 1155 | EY38: 66.2761645 | EZ38: 75.82166667 | FA38: 2187.113429 | FB38: 0.01418317295 | FC38: 0 | FD38: 0 | FE38: 0 | FF38: 0 | FG38: 0.8461301739 | FH38: 0.7222222222 | FI38: 0.6382530033 | FJ38: 0.5930735931 | FK38: 0.1355519897 | FL38: 0.2222222222 | FM38: 0.1699841291 | FN38: 0.2311688312 | FO38: 0.01831783644 | FP38: 0.05555555556 | FQ38: 0.1917628676 | FR38: 0.1757575758
A39: Day 36 | B39: 2020-08-19 | C39: 65854 | AJ39: Day 36 | BS39: Day 36 | BT39: 2019-05-13 | BU39: 74493 | BV39: 0 | BW39: 0 | BX39: 3 | BY39: 164 | BZ39: 0 | CA39: 0 | CB39: 0 | CC39: 0 | CD39: 69756.01 | CE39: 3 | CF39: 1075 | CG39: 64.88931163 | CH39: 54.66666667 | CI39: 1937.666944 | CJ39: 0.002201549139 | CK39: 0 | CL39: 0 | CM39: 0 | CN39: 0 | CO39: 1 | CP39: 1 | CQ39: 0.648367646 | CR39: 0.5851162791 | CS39: 0 | CT39: 0 | CU39: 0.1207438614 | CV39: 0.2204651163 | CW39: 0 | CX39: 0 | CY39: 0.2308884926 | CZ39: 0.1944186047 | DB39: Day 36 | DC39: 2018-11-13 | DD39: 74104 | DE39: 0 | DF39: 0 | DG39: 65 | DH39: 6044.99 | DI39: 2 | DJ39: 34.63 | DK39: 0 | DL39: 0 | DM39: 74312.71 | DN39: 67 | DO39: 1157 | DP39: 64.22878997 | DQ39: 90.74059701 | DR39: 2064.241944 | DS39: 0.08204172514 | DT39: 0 | DU39: 0 | DV39: 0 | DW39: 0 | DX39: 0.9943039203 | DY39: 0.9701492537 | DZ39: 0.7069582041 | EA39: 0.6413137424 | EB39: 0.005696079689 | EC39: 0.02985074627 | ED39: 0.1404304863 | EE39: 0.2005185825 | EF39: 0 | EG39: 0 | EH39: 0.1526113097 | EI39: 0.158167675 | EK39: Day 36 | EL39: 2018-05-14 | EM39: 96226 | EN39: 0 | EO39: 0 | EP39: 51 | EQ39: 3159.01 | ER39: 18 | ES39: 1089.68 | ET39: 7 | EU39: 625 | EV39: 81422.66 | EW39: 76 | EX39: 1231 | EY39: 66.14350934 | EZ39: 64.1275 | FA39: 2261.740556 | FB39: 0.05064836946 | FC39: 0 | FD39: 0 | FE39: 0 | FF39: 0 | FG39: 0.6481762279 | FH39: 0.6710526316 | FI39: 0.6388469745 | FJ39: 0.597887896 | FK39: 0.2235841836 | FL39: 0.2368421053 | FM39: 0.1731924504 | FN39: 0.2315190902 | FO39: 0.1282395885 | FP39: 0.09210526316 | FQ39: 0.1879605751 | FR39: 0.1705930138
A40: Day 37 | B40: 2020-08-20 | C40: 65854 | AJ40: Day 37 | BS40: Day 37 | BT40: 2019-05-14 | BU40: 74493 | BV40: 0 | BW40: 0 | BX40: 31 | BY40: 1791.03 | BZ40: 5 | CA40: 114.79 | CB40: 2 | CC40: 153 | CD40: 71814.83 | CE40: 38 | CF40: 1113 | CG40: 64.52365678 | CH40: 54.17947368 | CI40: 1940.941351 | CJ40: 0.02763776462 | CK40: 0 | CL40: 0 | CM40: 0 | CN40: 0 | CO40: 0.8699303485 | CP40: 0.8157894737 | CQ40: 0.6547195057 | CR40: 0.5929919137 | CS40: 0.05575523844 | CT40: 0.1315789474 | CU40: 0.1188807381 | CV40: 0.2174303684 | CW40: 0.07431441311 | CX40: 0.05263157895 | CY40: 0.2263997562 | CZ40: 0.1895777179 | DB40: Day 37 | EK40: Day 37 | EL40: 2018-05-15 | EM40: 96226 | EN40: 0 | EO40: 0 | EP40: 7 | EQ40: 425 | ER40: 0 | ES40: 0 | ET40: 4 | EU40: 530 | EV40: 82377.66 | EW40: 11 | EX40: 1242 | EY40: 66.32661836 | EZ40: 86.81818182 | FA40: 2226.423243 | FB40: 0.009924552616 | FC40: 0 | FD40: 0 | FE40: 0 | FF40: 0 | FG40: 0.445026178 | FH40: 0.6363636364 | FI40: 0.63660002 | FJ40: 0.5982286634 | FK40: 0 | FL40: 0 | FM40: 0.1711846391 | FN40: 0.229468599 | FO40: 0.554973822 | FP40: 0.3636363636 | FQ40: 0.1922153409 | FR40: 0.1723027375
A41: Day 38 | B41: 2020-08-21 | C41: 65854 | AJ41: Day 38 | BS41: Day 38 | BT41: 2019-05-15 | BU41: 74493 | BV41: 0 | BW41: 0 | BX41: 8 | BY41: 552 | BZ41: 4 | CA41: 135 | CB41: 1 | CC41: 50 | CD41: 72551.83 | CE41: 13 | CF41: 1126 | CG41: 64.43324156 | CH41: 56.69230769 | CI41: 1909.258684 | CJ41: 0.009893547045 | CK41: 0 | CL41: 0 | CM41: 0 | CN41: 0 | CO41: 0.7489823609 | CP41: 0.6153846154 | CQ41: 0.6556770518 | CR41: 0.593250444 | CS41: 0.1831750339 | CT41: 0.3076923077 | CU41: 0.119533856 | CV41: 0.2184724689 | CW41: 0.06784260516 | CX41: 0.07692307692 | CY41: 0.2247890922 | CZ41: 0.188277087 | DB41: Day 38 | EK41: Day 38 | EL41: 2018-05-16 | EM41: 96226 | EN41: 0 | EO41: 0 | EP41: 7 | EQ41: 318 | ER41: 0 | ES41: 0 | ET41: 2 | EU41: 300 | EV41: 82995.66 | EW41: 9 | EX41: 1251 | EY41: 66.34345324 | EZ41: 68.66666667 | FA41: 2184.096316 | FB41: 0.006422380646 | FC41: 0 | FD41: 0 | FE41: 0 | FF41: 0 | FG41: 0.5145631068 | FH41: 0.7777777778 | FI41: 0.6356913121 | FJ41: 0.5995203837 | FK41: 0 | FL41: 0 | FM41: 0.1699099688 | FN41: 0.2278177458 | FO41: 0.4854368932 | FP41: 0.2222222222 | FQ41: 0.1943987192 | FR41: 0.1726618705
A42: Day 39 | B42: 2020-08-22 | C42: 65854 | AJ42: Day 39 | BS42: Day 39 | BT42: 2019-05-16 | BU42: 74493 | BV42: 0 | BW42: 0 | BX42: 1 | BY42: 25 | BZ42: 3 | CA42: 225 | CB42: 0 | CC42: 0 | CD42: 72801.83 | CE42: 4 | CF42: 1130 | CG42: 64.42639823 | CH42: 62.5 | CI42: 1866.71359 | CJ42: 0.003356020029 | CK42: 0 | CL42: 0 | CM42: 0 | CN42: 0 | CO42: 0.1 | CP42: 0.25 | CQ42: 0.6537688682 | CR42: 0.5920353982 | CS42: 0.9 | CT42: 0.75 | CU42: 0.1222139608 | CV42: 0.2203539823 | CW42: 0 | CX42: 0 | CY42: 0.224017171 | CZ42: 0.1876106195 | DB42: Day 39 | EK42: Day 39 | EL42: 2018-05-17 | EM42: 96226 | EN42: 0 | EO42: 0 | EP42: 8 | EQ42: 725 | ER42: 0 | ES42: 0 | ET42: 0 | EU42: 0 | EV42: 83720.66 | EW42: 8 | EX42: 1259 | EY42: 66.49774424 | EZ42: 90.625 | FA42: 2146.68359 | FB42: 0.007534346227 | FC42: 0 | FD42: 0 | FE42: 0 | FF42: 0 | FG42: 1 | FH42: 1 | FI42: 0.6388461343 | FJ42: 0.6020651311 | FK42: 0 | FL42: 0 | FM42: 0.1684385909 | FN42: 0.226370135 | FO42: 0 | FP42: 0 | FQ42: 0.1927152748 | FR42: 0.1715647339
A43: Day 40 | B43: 2020-08-23 | C43: 65854 | AJ43: Day 40 | BS43: Day 40 | BT43: 2019-05-17 | BU43: 74493 | BV43: 0 | BW43: 0 | BX43: 15 | BY43: 907.95 | BZ43: 0 | CA43: 0 | CB43: 0 | CC43: 0 | CD43: 73709.78 | CE43: 15 | CF43: 1145 | CG43: 64.37535371 | CH43: 60.53 | CI43: 1842.7445 | CJ43: 0.01218839354 | CK43: 0 | CL43: 0 | CM43: 0 | CN43: 0 | CO43: 1 | CP43: 1 | CQ43: 0.65803371 | CR43: 0.5973799127 | CS43: 0 | CT43: 0 | CU43: 0.120708541 | CV43: 0.2174672489 | CW43: 0 | CX43: 0 | CY43: 0.221257749 | CZ43: 0.1851528384 | DB43: Day 40 | EK43: Day 40 | EL43: 2018-05-18 | EM43: 96226 | EN43: 0 | EO43: 0 | EP43: 2 | EQ43: 150 | ER43: 0 | ES43: 0 | ET43: 2 | EU43: 40 | EV43: 83910.66 | EW43: 4 | EX43: 1263 | EY43: 66.4375772 | EZ43: 47.5 | FA43: 2097.7665 | FB43: 0.001974518321 | FC43: 0 | FD43: 0 | FE43: 0 | FF43: 0 | FG43: 0.7894736842 | FH43: 0.5 | FI43: 0.6391872022 | FJ43: 0.6017418844 | FK43: 0 | FL43: 0 | FM43: 0.1680571932 | FN43: 0.2256532067 | FO43: 0.2105263158 | FP43: 0.5 | FQ43: 0.1927556046 | FR43: 0.1726049089
A44: Day 41 | B44: 2020-08-24 | C44: 65854 | AJ44: Day 41 | BS44: Day 41 | BT44: 2019-05-18 | BU44: 74493 | BV44: 0 | BW44: 0 | BX44: 5 | BY44: 193.58 | BZ44: 0 | CA44: 0 | CB44: 0 | CC44: 0 | CD44: 73903.36 | CE44: 5 | CF44: 1150 | CG44: 64.2637913 | CH44: 38.716 | CI44: 1802.520976 | CJ44: 0.002598633429 | CK44: 0 | CL44: 0 | CM44: 0 | CN44: 0 | CO44: 1 | CP44: 1 | CQ44: 0.6589294452 | CR44: 0.5991304348 | CS44: 0 | CT44: 0 | CU44: 0.1203923611 | CV44: 0.2165217391 | CW44: 0 | CX44: 0 | CY44: 0.2206781938 | CZ44: 0.1843478261 | DB44: Day 41 | EK44: Day 41 | EL44: 2018-05-19 | EM44: 96226 | EN44: 0 | EO44: 0 | EP44: 2 | EQ44: 120 | ER44: 0 | ES44: 0 | ET44: 2 | EU44: 75 | EV44: 84105.66 | EW44: 4 | EX44: 1267 | EY44: 66.38173639 | EZ44: 48.75 | FA44: 2051.357561 | FB44: 0.00202647933 | FC44: 0 | FD44: 0 | FE44: 0 | FF44: 0 | FG44: 0.6153846154 | FH44: 0.5 | FI44: 0.6391320156 | FJ44: 0.6014206788 | FK44: 0 | FL44: 0 | FM44: 0.1676675506 | FN44: 0.2249408051 | FO44: 0.3846153846 | FP44: 0.5 | FQ44: 0.1932004338 | FR44: 0.1736385162
A45: Day 42 | B45: 2020-08-25 | C45: 65854 | AJ45: Day 42 | BS45: Day 42 | BT45: 2019-05-19 | BU45: 74493 | BV45: 0 | BW45: 0 | BX45: 3 | BY45: 144.79 | BZ45: 0 | CA45: 0 | CB45: 0 | CC45: 0 | CD45: 74048.15 | CE45: 3 | CF45: 1153 | CG45: 64.22215958 | CH45: 48.26333333 | CI45: 1763.05119 | CJ45: 0.00194367256 | CK45: 0 | CL45: 0 | CM45: 0 | CN45: 0 | CO45: 1 | CP45: 1 | CQ45: 0.6595963572 | CR45: 0.6001734605 | CS45: 0 | CT45: 0 | CU45: 0.1201569519 | CV45: 0.2159583695 | CW45: 0 | CX45: 0 | CY45: 0.2202466908 | CZ45: 0.18386817 | DB45: Day 42 | EK45: Day 42 | EL45: 2018-05-20 | EM45: 96226 | EN45: 0 | EO45: 0 | EP45: 10 | EQ45: 772.79 | ER45: 2 | ES45: 15 | ET45: 0 | EU45: 0 | EV45: 84893.45 | EW45: 12 | EX45: 1279 | EY45: 66.37486317 | EZ45: 65.64916667 | FA45: 2021.272619 | FB45: 0.008186872571 | FC45: 0 | FD45: 0 | FE45: 0 | FF45: 0 | FG45: 0.9809593927 | FH45: 0.8333333333 | FI45: 0.6423040882 | FJ45: 0.6035965598 | FK45: 0.01904060727 | FL45: 0.1666666667 | FM45: 0.1662883297 | FN45: 0.2243940579 | FO45: 0 | FP45: 0 | FQ45: 0.1914075821 | FR45: 0.1720093823
A46: Day 43 | B46: 2020-08-26 | C46: 65854 | AJ46: Day 43 | BS46: Day 43 | BT46: 2019-05-20 | BU46: 74493 | BV46: 0 | BW46: 0 | BX46: 6 | BY46: 1034.37 | BZ46: 0 | CA46: 0 | CB46: 0 | CC46: 0 | CD46: 75082.52 | CE46: 6 | CF46: 1159 | CG46: 64.78215703 | CH46: 172.395 | CI46: 1746.105116 | CJ46: 0.01388546575 | CK46: 0 | CL46: 0 | CM46: 0 | CN46: 0 | CO46: 1 | CP46: 1 | CQ46: 0.6642859084 | CR46: 0.6022433132 | CS46: 0 | CT46: 0 | CU46: 0.1185016166 | CV46: 0.2148403796 | CW46: 0 | CX46: 0 | CY46: 0.217212475 | CZ46: 0.1829163072 | DB46: Day 43 | EK46: Day 43 | EL46: 2018-05-21 | EM46: 96226 | EN46: 0 | EO46: 0 | EP46: 46 | EQ46: 3178.07 | ER46: 13 | ES46: 758.42 | ET46: 1 | EU46: 19.79 | EV46: 88849.73 | EW46: 60 | EX46: 1339 | EY46: 66.35528753 | EZ46: 65.938 | FA46: 2066.272791 | FB46: 0.04111445971 | FC46: 0 | FD46: 0 | FE46: 0 | FF46: 0 | FG46: 0.8032975421 | FH46: 0.7666666667 | FI46: 0.6494727671 | FJ46: 0.6109036594 | FK46: 0.1917002841 | FL46: 0.2166666667 | FM46: 0.1674198672 | FN46: 0.2240477969 | FO46: 0.005002173759 | FP46: 0.01666666667 | FQ46: 0.1831073657 | FR46: 0.1650485437
A47: Day 44 | B47: 2020-08-27 | C47: 65854 | AJ47: Day 44 | BS47: Day 44 | BT47: 2019-05-21 | BU47: 74493 | BV47: 0 | BW47: 0 | BX47: 1 | BY47: 19.79 | BZ47: 0 | CA47: 0 | CB47: 0 | CC47: 0 | CD47: 75102.31 | CE47: 1 | CF47: 1160 | CG47: 64.74337069 | CH47: 19.79 | CI47: 1706.870682 | CJ47: 0.0002656625455 | CK47: 0 | CL47: 0 | CM47: 0 | CN47: 0 | CO47: 1 | CP47: 1 | CQ47: 0.6643743714 | CR47: 0.6025862069 | CS47: 0 | CT47: 0 | CU47: 0.1184703906 | CV47: 0.2146551724 | CW47: 0 | CX47: 0 | CY47: 0.217155238 | CZ47: 0.1827586207 | DB47: Day 44 | EK47: Day 44 | EL47: 2018-05-22 | EM47: 96226 | EN47: 0 | EO47: 0 | EP47: 12 | EQ47: 558.77 | ER47: 4 | ES47: 239.88 | ET47: 0 | EU47: 0 | EV47: 89648.38 | EW47: 16 | EX47: 1355 | EY47: 66.16116605 | EZ47: 49.915625 | FA47: 2037.463182 | FB47: 0.008299731881 | FC47: 0 | FD47: 0 | FE47: 0 | FF47: 0 | FG47: 0.6996431478 | FH47: 0.75 | FI47: 0.6499197197 | FJ47: 0.6125461255 | FK47: 0.3003568522 | FL47: 0.25 | FM47: 0.1686041622 | FN47: 0.2243542435 | FO47: 0 | FP47: 0 | FQ47: 0.1814761181 | FR47: 0.163099631

Sheet Sanitized Raw Data
A1: donate_id | B1: donate_invoice | C1: donate_amount | D1: donate_method | E1: donate_affiliation | F1: donate_classyear | G1: donate_isthanked | H1: donate_transac_date | I1: donate_create_date | J1: donate_mod_date | K1: donate_num_recurring | L1: donate_pledge
A2: 54014 | B2: EF47-000001 | C2: 20 | D2: Personal Check | E2: 11 | G2: N | H2: 2019-11-07 | I2: 2019-11-07T17:45:00 | J2: 2019-11-07T17:45:00 | K2: 1 | L2: None. Donation by check.
A3: 54015 | B3: EF47-000002 | C3: 100 | D3: Personal Check | E3: 1 | F3: 1969 | G3: N | H3: 2019-10-31 | I3: 2019-11-07T17:46:00 | J3: 2019-11-07T17:46:00 | K3: 1 | L3: None. Donation by check.
A4: 54016 | B4: EF47-000003 | C4: 25 | D4: Personal Check | E4: 1 | F4: 1949 | G4: N | H4: 2019-10-30 | I4: 2019-11-07T18:26:00 | J4: 2019-11-07T18:26:00 | K4: 1 | L4: None. Donation by check.
A5: 54017 | B5: EF47-000004 | C5: 500 | D5: Personal Check | E5: 1 | F5: 1951 | G5: N | H5: 2019-11-01 | I5: 2019-11-07T18:27:00 | J5: 2019-11-07T18:29:00 | K5: 1 | L5: None. Donation by check.
A6: 54018 | B6: EF47-000005 | C6: 55 | D6: Personal Check | E6: 1 | F6: 1955 | G6: N | H6: 2019-10-30 | I6: 2019-11-07T18:29:00 | J6: 2019-11-07T18:29:00 | K6: 1 | L6: None. Donation by check.
A7: 54019 | B7: EF47-000006 | C7: 50 | D7: Personal Check | E7: 5 | F7: 1959 | G7: N | H7: 2019-10-31 | I7: 2019-11-07T18:32:00 | J7: 2019-11-07T18:32:00 | K7: 1 | L7: None. Donation by check.
A8: 54020 | B8: EF47-000007 | C8: 100 | D8: Personal Check | E8: 1 | F8: 1966 | G8: N | H8: 2019-11-01 | I8: 2019-11-07T19:04:00 | J8: 2019-11-07T19:04:00 | K8: 1 | L8: None. Donation by check.
A9: 54021 | B9: EF47-000008 | C9: 50 | D9: Personal Check | E9: 1 | F9: 1960 | G9: N | H9: 2019-10-29 | I9: 2019-11-07T19:10:00 | J9: 2019-11-07T19:10:00 | K9: 1 | L9: None. Donation by check.
A10: 54022 | B10: EF47-000009 | C10: 36 | D10: Personal Check | E10: 6 | F10: 1964 | G10: N | H10: 2019-10-30 | I10: 2019-11-07T19:11:00 | J10: 2019-11-07T19:11:00 | K10: 1 | L10: None. Donation by check.
A11: 54023 | B11: EF47-000010 | C11: 25 | D11: Personal Check | E11: 1 | F11: 1968 | G11: N | H11: 2019-11-01 | I11: 2019-11-07T19:13:00 | J11: 2019-11-07T19:13:00 | K11: 1 | L11: None. Donation by check.
A12: 54024 | B12: EF47-000011 | C12: 50 | D12: Personal Check | E12: 1 | F12: 1967 | G12: N | H12: 2019-10-31 | I12: 2019-11-07T19:16:00 | J12: 2019-11-07T19:16:00 | K12: 1 | L12: None. Donation by check.
A13: 54025 | B13: EF47-000012 | C13: 50 | D13: Personal Check | E13: 1 | F13: 1977 | G13: N | H13: 2019-10-29 | I13: 2019-11-07T19:18:00 | J13: 2019-11-07T19:18:00 | K13: 1 | L13: None. Donation by check.
A14: 54026 | B14: EF47-000013 | C14: 64 | D14: Personal Check | E14: 1 | F14: 1964 | G14: N | H14: 2019-10-20 | I14: 2019-11-07T19:20:00 | J14: 2019-11-07T19:20:00 | K14: 1 | L14: None. Donation by check.
A15: 54027 | B15: EF47-000014 | C15: 25 | D15: Personal Check | E15: 1 | F15: 1968 | G15: N | H15: 2019-10-29 | I15: 2019-11-07T19:21:00 | J15: 2019-11-07T19:21:00 | K15: 1 | L15: None. Donation by check.
A16: 54028 | B16: EF47-000015 | C16: 100 | D16: Personal Check | E16: 1 | F16: 1962 | G16: N | H16: 2019-10-20 | I16: 2019-11-07T19:23:00 | J16: 2019-11-07T19:23:00 | K16: 1 | L16: None. Donation by check.
A17: 54029 | B17: EF47-000016 | C17: 100 | D17: Personal Check | E17: 3 | F17: 2016 | G17: N | H17: 2019-10-28 | I17: 2019-11-07T19:27:00 | J17: 2019-11-07T19:27:00 | K17: 1 | L17: None. Donation by check.
A18: 54030 | B18: EF47-000017 | C18: 100 | D18: Personal Check | E18: 1 | F18: 1958 | G18: N | H18: 2019-10-31 | I18: 2019-11-07T19:29:00 | J18: 2019-11-07T19:29:00 | K18: 1 | L18: None. Donation by check.
A19: 54031 | B19: EF47-000018 | C19: 50 | D19: Personal Check | E19: 5 | F19: 1946 | G19: N | H19: 2019-10-28 | I19: 2019-11-07T19:32:00 | J19: 2019-11-07T19:32:00 | K19: 1 | L19: None. Donation by check.
A20: 54032 | B20: EF47-000019 | C20: 25 | D20: Personal Check | E20: 5 | F20: 1958 | G20: N | H20: 2019-10-28 | I20: 2019-11-07T19:34:00 | J20: 2019-11-07T19:34:00 | K20: 1 | L20: None. Donation by check.
A21: 54033 | B21: EF47-000020 | C21: 100 | D21: Personal Check | E21: 1 | F21: 1949 | G21: N | H21: 2019-10-28 | I21: 2019-11-07T19:35:00 | J21: 2019-11-07T19:35:00 | K21: 1 | L21: None. Donation by check.
A22: 54034 | B22: EF47-000021 | C22: 50 | D22: Personal Check | E22: 1 | F22: 1958 | G22: N | H22: 2019-11-04 | I22: 2019-11-07T19:36:00 | J22: 2019-11-07T19:36:00 | K22: 1 | L22: None. Donation by check.
A23: 54035 | B23: EF47-000022 | C23: 75 | D23: Personal Check | E23: 2 | F23: 2014 | G23: N | H23: 2019-11-03 | I23: 2019-11-07T19:39:00 | J23: 2019-11-07T19:39:00 | K23: 1 | L23: None. Donation by check.
A24: 54036 | B24: EF47-000023 | C24: 100 | D24: Personal Check | E24: 1 | F24: 1958 | G24: N | H24: 2019-11-01 | I24: 2019-11-07T19:42:00 | J24: 2019-11-07T19:42:00 | K24: 1 | L24: None. Donation by check.
A25: 54037 | B25: EF47-000024 | C25: 50 | D25: Personal Check | E25: 1 | F25: 1955 | G25: N | H25: 2019-11-04 | I25: 2019-11-07T19:44:00 | J25: 2019-11-07T19:44:00 | K25: 1 | L25: None. Donation by check.
A26: 54038 | B26: EF47-000025 | C26: 100 | D26: Personal Check | E26: 1 | F26: 1959 | G26: N | H26: 2019-11-02 | I26: 2019-11-07T19:49:00 | J26: 2019-11-07T19:49:00 | K26: 1 | L26: None. Donation by check.
A27: 54039 | B27: EF47-000026 | C27: 50 | D27: Personal Check | E27: 1 | F27: 1951 | G27: N | H27: 2019-11-04 | I27: 2019-11-07T19:51:00 | J27: 2019-11-07T19:51:00 | K27: 1 | L27: None. Donation by check.
A28: 54040 | B28: EF47-000027 | C28: 50 | D28: Personal Check | E28: 1 | F28: 1956 | G28: N | H28: 2019-11-04 | I28: 2019-11-07T19:53:00 | J28: 2019-11-07T19:53:00 | K28: 1 | L28: None. Donation by check.
A29: 54041 | B29: EF47-000028 | C29: 50 | D29: Personal Check | E29: 5 | F29: 1951 | G29: N | H29: 2019-11-04 | I29: 2019-11-07T19:54:00 | J29: 2019-11-07T19:54:00 | K29: 1 | L29: None. Donation by check.
A30: 54042 | B30: EF47-000029 | C30: 100 | D30: Personal Check | E30: 1 | F30: 1956 | G30: N | H30: 2019-11-04 | I30: 2019-11-07T19:55:00 | J30: 2019-11-07T19:55:00 | K30: 1 | L30: None. Donation by check.
A31: 54043 | B31: EF47-000030 | C31: 50 | D31: Personal Check | E31: 1 | F31: 1968 | G31: N | H31: 2019-11-04 | I31: 2019-11-07T19:57:00 | J31: 2019-11-07T19:57:00 | K31: 1 | L31: None. Donation by check.
A32: 54044 | B32: EF47-000031 | C32: 30 | D32: Personal Check | E32: 1 | F32: 1959 | G32: N | H32: 2019-11-04 | I32: 2019-11-07T19:58:00 | J32: 2019-11-07T19:58:00 | K32: 1 | L32: None. Donation by check.
A33: 54045 | B33: EF47-000032 | C33: 19.79 | D33: Personal Check | E33: 1 | F33: 1979 | G33: N | H33: 2019-11-04 | I33: 2019-11-23T12:33:00 | J33: 2019-11-23T12:33:00 | K33: 1 | L33: None. Donation by check.
A34: 54046 | B34: EF47-000033 | C34: 100 | D34: Personal Check | E34: 3 | F34: 2012 | G34: N | H34: 2019-11-03 | I34: 2019-11-23T12:39:00 | J34: 2019-11-23T12:39:00 | K34: 1 | L34: None. Donation by check.
A35: 54047 | B35: EF47-000034 | C35: 50 | D35: Personal Check | E35: 1 | F35: 1958 | G35: N | H35: 2019-11-04 | I35: 2019-11-23T13:14:00 | J35: 2019-11-23T13:14:00 | K35: 1 | L35: None. Donation by check.
A36: 54048 | B36: EF47-000035 | C36: 50 | D36: Personal Check | E36: 1 | F36: 1960 | G36: N | H36: 2019-11-04 | I36: 2019-11-23T13:19:00 | J36: 2019-11-23T13:19:00 | K36: 1 | L36: None. Donation by check.
A37: 54049 | B37: EF47-000036 | C37: 25 | D37: Personal Check | E37: 1 | F37: 1975 | G37: N | H37: 2019-11-05 | I37: 2019-11-23T13:22:00 | J37: 2019-11-23T13:22:00 | K37: 1 | L37: None. Donation by check.
A38: 54050 | B38: EF47-000037 | C38: 128 | D38: Personal Check | E38: 1 | F38: 1964 | G38: N | H38: 2019-11-05 | I38: 2019-11-23T13:23:00 | J38: 2019-11-23T13:23:00 | K38: 1 | L38: None. Donation by check.
A39: 54051 | B39: EF47-000038 | C39: 10 | D39: Personal Check | E39: 1 | F39: 1955 | G39: N | H39: 2019-11-04 | I39: 2019-11-23T13:24:00 | J39: 2019-11-23T13:24:00 | K39: 1 | L39: None. Donation by check.
A40: 54052 | B40: EF47-000039 | C40: 200 | D40: Personal Check | E40: 1 | F40: 1979 | G40: N | H40: 2019-11-07 | I40: 2019-11-23T13:28:00 | J40: 2019-11-23T13:28:00 | K40: 1 | L40: None. Donation by check.
A41: 54053 | B41: EF47-000040 | C41: 25 | D41: Personal Check | E41: 1 | F41: 1957 | G41: N | H41: 2019-11-08 | I41: 2019-11-23T13:32:00 | J41: 2019-11-23T13:32:00 | K41: 1 | L41: None. Donation by check.
A42: 54054 | B42: EF47-000041 | C42: 50 | D42: Personal Check | E42: 1 | F42: 1955 | G42: N | H42: 2019-11-07 | I42: 2019-11-23T13:34:00 | J42: 2019-11-23T13:34:00 | K42: 1 | L42: None. Donation by check.
A43: 54055 | B43: EF47-000042 | C43: 50 | D43: Personal Check | E43: 1 | F43: 1949 | G43: N | H43: 2019-11-07 | I43: 2019-11-23T13:36:00 | J43: 2019-11-23T13:36:00 | K43: 1 | L43: None. Donation by check.
A44: 54056 | B44: EF47-000043 | C44: 50 | D44: Personal Check | E44: 2 | F44: 2007 | G44: N | H44: 2019-11-20 | I44: 2019-11-23T13:38:00 | J44: 2019-11-23T13:38:00 | K44: 1 | L44: None. Donation by check.
A45: 54057 | B45: EF47-000044 | C45: 500 | D45: Personal Check | E45: 7 | G45: N | H45: 2019-11-22 | I45: 2019-12-07T18:55:00 | J45: 2019-12-07T18:55:00 | K45: 1 | L45: None. Donation by check.
A46: 54058 | B46: EF47-000045 | C46: 50 | D46: Personal Check | E46: 1 | F46: 1979 | G46: N | H46: 2019-11-25 | I46: 2019-12-07T18:59:00 | J46: 2019-12-07T18:59:00 | K46: 1 | L46: None. Donation by check.
A47: 54059 | B47: EF47-000046 | C47: 50 | D47: Personal Check | E47: 1 | F47: 1956 | G47: N | H47: 2019-11-19 | I47: 2019-12-07T19:20:00 | J47: 2019-12-07T19:20:00 | K47: 1 | L47: None. Donation by check.
A48: 54060 | B48: EF47-000047 | C48: 300 | D48: Personal Check | E48: 1 | F48: 1957 | G48: N | H48: 2019-11-30 | I48: 2019-12-07T19:21:00 | J48: 2019-12-07T19:21:00 | K48: 1 | L48: None. Donation by check.
A49: 54061 | B49: EF47-000048 | C49: 50 | D49: Personal Check | E49: 2 | F49: 2007 | G49: N | H49: 2020-01-17 | I49: 2020-01-21T21:54:00 | J49: 2020-01-21T21:55:00 | K49: 1 | L49: None. Donation by check.
A50: 54062 | B50: EF47-000049 | C50: 50 | D50: Personal Check | E50: 2 | F50: 2007 | G50: N | H50: 2019-12-20 | I50: 2020-01-21T21:56:00 | J50: 2020-03-09T16:54:00 | K50: 1 | L50: None. Donation by check.
A51: 54063 | B51: EF47-000050 | C51: 50 | D51: Personal Check | E51: 5 | F51: 1946 | G51: N | H51: 2019-12-25 | I51: 2020-01-21T21:59:00 | J51: 2020-08-04T17:11:00 | K51: 1 | L51: None. Donation by check.
A52: 54064 | B52: EF47-000051 | C52: 100 | D52: Personal Check | E52: 1 | F52: 1959 | G52: N | H52: 2020-01-01 | I52: 2020-01-21T22:00:00 | J52: 2020-01-21T22:00:00 | K52: 1 | L52: None. Donation by check.
A53: 54065 | B53: EF47-000052 | C53: 100 | D53: Personal Check | E53: 1 | F53: 1957 | G53: N | H53: 2020-01-22 | I53: 2020-01-29T21:37:00 | J53: 2020-01-29T21:37:00 | K53: 1 | L53: None. Donation by check.
A54: 54066 | B54: EF47-000053 | C54: 250 | D54: Personal Check | E54: 1 | F54: 1955 | G54: N | H54: 2020-02-10 | I54: 2020-03-09T13:54:00 | J54: 2020-03-09T13:54:00 | K54: 1 | L54: None. Donation by check.
A55: 54067 | B55: EF47-000054 | C55: 50 | D55: Personal Check | E55: 2 | F55: 2007 | G55: N | H55: 2020-02-20 | I55: 2020-03-09T13:57:00 | J55: 2020-03-09T13:57:00 | K55: 1 | L55: None. Donation by check.
A56: 54068 | B56: EF47-000055 | C56: 19.58 | D56: Personal Check | E56: 1 | F56: 1958 | G56: N | H56: 2020-03-16 | I56: 2020-03-20T20:47:00 | J56: 2020-03-20T20:47:00 | K56: 1 | L56: None. Donation by check.
A57: 54069 | B57: EF47-000056 | C57: 50 | D57: Personal Check | E57: 2 | F57: 2007 | G57: N | H57: 2020-03-20 | I57: 2020-03-25T14:08:00 | J57: 2020-03-25T14:08:00 | K57: 1 | L57: None. Donation by check.
A58: 54070 | B58: F47-000005 | C58: 150 | D58: CC | E58: 1 | F58: 1975 | G58: N | H58: 2020-04-20T13:39:00 | I58: 2020-04-20T13:39:00 | J58: 2020-04-20T13:39:00 | K58: 1 | L58: 150
A59: 54071 | B59: F47-000006 | C59: 30 | D59: CC | E59: 1 | F59: 1964 | G59: N | H59: 2020-04-20T22:09:00 | I59: 2020-04-20T22:09:00 | J59: 2020-04-20T22:09:00 | K59: 1 | L59: 30
A60: 54072 | B60: EF47-000057 | C60: 50 | D60: Personal Check | E60: 1 | F60: 1964 | G60: N | H60: 2020-04-15 | I60: 2020-04-22T12:25:00 | J60: 2020-04-22T12:25:00 | K60: 1 | L60: None. Donation by check.
A61: 54073 | B61: EF47-000058 | C61: 250 | D61: Personal Check | E61: 7 | G61: N | H61: 2020-04-14 | I61: 2020-04-22T12:29:00 | J61: 2020-04-22T12:29:00 | K61: 1 | L61: None. Donation by check.
A62: 54074 | B62: F47-000007 | C62: 50 | D62: CC | E62: 1 | F62: 1968 | G62: N | H62: 2020-04-22T12:45:00 | I62: 2020-04-22T12:45:00 | J62: 2020-04-22T12:45:00 | K62: 1 | L62: 50
A63: 54075 | B63: EF47-000059 | C63: 50 | D63: Personal Check | E63: 2 | F63: 2007 | G63: N | H63: 2020-04-20 | I63: 2020-04-24T08:57:00 | J63: 2020-04-24T08:57:00 | K63: 1 | L63: None. Donation by check.
A64: 54076 | B64: F47-000008 | C64: 25 | D64: CC | E64: 1 | F64: 1982 | G64: N | H64: 2020-04-26T01:33:00 | I64: 2020-04-26T01:33:00 | J64: 2020-04-26T01:33:00 | K64: 1 | L64: 25
A65: 54077 | B65: EF47-000060 | C65: 100 | D65: Personal Check | E65: 1 | F65: 1964 | G65: N | H65: 2020-04-19 | I65: 2020-05-22T21:31:00 | J65: 2020-05-22T21:31:00 | K65: 1 | L65: None. Donation by check.
A66: 54078 | B66: EF47-000061 | C66: 100 | D66: Personal Check | E66: 1 | F66: 1966 | G66: N | H66: 2020-04-28 | I66: 2020-05-22T21:32:00 | J66: 2020-05-22T21:32:00 | K66: 1 | L66: None. Donation by check.
A67: 54079 | B67: EF47-000062 | C67: 50 | D67: Personal Check | E67: 2 | F67: 2007 | G67: N | H67: 2020-05-20 | I67: 2020-06-05T14:10:00 | J67: 2020-06-05T14:10:00 | K67: 1 | L67: None. Donation by check.
A68: 54080 | B68: EF47-000063 | C68: 50 | D68: PayPal | E68: 13 | G68: N | H68: 2019-11-03 | I68: 2020-06-27T20:53:00 | J68: 2020-06-27T20:53:00 | K68: 1 | L68: None. Donation by check.
A69: 54081 | B69: EF47-000064 | C69: 20 | D69: PayPal | E69: 1 | F69: 1956 | G69: N | H69: 2019-11-03 | I69: 2020-06-27T20:54:00 | J69: 2020-06-27T20:54:00 | K69: 1 | L69: None. Donation by check.
A70: 54082 | B70: EF47-000065 | C70: 50 | D70: PayPal | E70: 2 | F70: 1999 | G70: N | H70: 2019-11-03 | I70: 2020-06-27T20:56:00 | J70: 2020-06-27T20:56:00 | K70: 1 | L70: None. Donation by check.
A71: 54083 | B71: EF47-000066 | C71: 64 | D71: PayPal | E71: 1 | F71: 1964 | G71: N | H71: 2019-11-03 | I71: 2020-06-27T20:57:00 | J71: 2020-06-27T20:57:00 | K71: 1 | L71: None. Donation by check.
A72: 54084 | B72: EF47-000067 | C72: 50 | D72: PayPal | E72: 2 | F72: 2013 | G72: N | H72: 2019-11-04 | I72: 2020-06-27T20:59:00 | J72: 2020-06-27T20:59:00 | K72: 1 | L72: None. Donation by check.
A73: 54085 | B73: EF47-000068 | C73: 58 | D73: PayPal | E73: 1 | F73: 1958 | G73: N | H73: 2019-11-04 | I73: 2020-06-27T21:03:00 | J73: 2020-06-27T21:03:00 | K73: 1 | L73: None. Donation by check.
A74: 54086 | B74: EF47-000069 | C74: 3 | D74: PayPal | E74: 1 | F74: 1975 | G74: N | H74: 2019-11-04 | I74: 2020-06-27T21:05:00 | J74: 2020-06-27T21:05:00 | K74: 1 | L74: None. Donation by check.
A75: 54087 | B75: EF47-000070 | C75: 100 | D75: PayPal | E75: 1 | F75: 1989 | G75: N | H75: 2019-11-04 | I75: 2020-06-27T21:06:00 | J75: 2020-06-27T21:06:00 | K75: 1 | L75: None. Donation by check.
A76: 54088 | B76: EF47-000071 | C76: 100 | D76: PayPal | E76: 1 | F76: 1966 | G76: N | H76: 2019-11-04 | I76: 2020-06-27T21:08:00 | J76: 2020-06-27T21:08:00 | K76: 1 | L76: None. Donation by check.
A77: 54089 | B77: EF47-000072 | C77: 100 | D77: PayPal | E77: 1 | F77: 1964 | G77: N | H77: 2019-11-04 | I77: 2020-06-27T21:11:00 | J77: 2020-06-27T21:11:00 | K77: 1 | L77: None. Donation by check.
A78: 54090 | B78: EF47-000073 | C78: 100 | D78: PayPal | E78: 1 | F78: 2008 | G78: N | H78: 2019-11-04 | I78: 2020-06-27T21:13:00 | J78: 2020-06-27T21:13:00 | K78: 1 | L78: None. Donation by check.
A79: 54091 | B79: EF47-000074 | C79: 5 | D79: PayPal | E79: 4 | G79: N | H79: 2019-11-04 | I79: 2020-06-27T21:18:00 | J79: 2020-06-27T21:18:00 | K79: 1 | L79: None. Donation by check.
A80: 54092 | B80: EF47-000075 | C80: 25 | D80: PayPal | E80: 1 | F80: 1980 | G80: N | H80: 2019-11-04 | I80: 2020-06-27T21:20:00 | J80: 2020-06-27T21:20:00 | K80: 1 | L80: None. Donation by check.
A81: 54093 | B81: EF47-000076 | C81: 50 | D81: PayPal | E81: 1 | F81: 1979 | G81: N | H81: 2019-11-04 | I81: 2020-06-27T21:22:00 | J81: 2020-06-27T21:22:00 | K81: 1 | L81: None. Donation by check.
A82: 54094 | B82: EF47-000077 | C82: 20 | D82: PayPal | E82: 1 | F82: 1977 | G82: N | H82: 2019-11-05 | I82: 2020-06-27T21:24:00 | J82: 2020-06-27T21:24:00 | K82: 1 | L82: None. Donation by check.
A83: 54095 | B83: EF47-000078 | C83: 50 | D83: PayPal | E83: 2 | F83: 2017 | G83: N | H83: 2019-11-05 | I83: 2020-06-27T21:26:00 | J83: 2020-06-27T21:26:00 | K83: 1 | L83: None. Donation by check.
A84: 54096 | B84: EF47-000079 | C84: 5 | D84: PayPal | E84: 1 | F84: 1978 | G84: N | H84: 2019-11-06 | I84: 2020-06-27T21:27:00 | J84: 2020-06-27T21:27:00 | K84: 1 | L84: None. Donation by check.
A85: 54097 | B85: EF47-000080 | C85: 10 | D85: PayPal | E85: 2 | F85: 2019 | G85: N | H85: 2019-11-08 | I85: 2020-06-27T21:30:00 | J85: 2020-06-27T21:30:00 | K85: 1 | L85: None. Donation by check.
A86: 54098 | B86: EF47-000081 | C86: 25 | D86: PayPal | E86: 2 | F86: 2019 | G86: N | H86: 2019-11-09 | I86: 2020-06-28T10:32:00 | J86: 2020-06-28T10:32:00 | K86: 1 | L86: None. Donation by check.
A87: 54099 | B87: EF47-000082 | C87: 10 | D87: PayPal | E87: 1 | F87: 1981 | G87: N | H87: 2019-11-11 | I87: 2020-06-28T10:34:00 | J87: 2020-06-28T10:34:00 | K87: 1 | L87: None. Donation by check.
A88: 54100 | B88: EF47-000083 | C88: 10 | D88: PayPal | E88: 1 | F88: 1965 | G88: N | H88: 2019-11-11 | I88: 2020-06-28T10:35:00 | J88: 2020-06-28T10:35:00 | K88: 1 | L88: None. Donation by check.
A89: 54101 | B89: EF47-000084 | C89: 25 | D89: PayPal | E89: 1 | F89: 2005 | G89: N | H89: 2019-11-14 | I89: 2020-06-28T10:36:00 | J89: 2020-06-28T10:36:00 | K89: 1 | L89: None. Donation by check.
A90: 54102 | B90: EF47-000085 | C90: 10 | D90: PayPal | E90: 1 | F90: 1966 | G90: N | H90: 2019-11-15 | I90: 2020-06-28T10:38:00 | J90: 2020-06-28T10:38:00 | K90: 1 | L90: None. Donation by check.
A91: 54103 | B91: EF47-000086 | C91: 5 | D91: PayPal | E91: 2 | F91: 2011 | G91: N | H91: 2019-11-20 | I91: 2020-06-28T10:39:00 | J91: 2020-06-28T10:39:00 | K91: 1 | L91: None. Donation by check.
A92: 54104 | B92: EF47-000087 | C92: 50 | D92: PayPal | E92: 4 | G92: N | H92: 2019-11-21 | I92: 2020-06-28T10:42:00 | J92: 2020-06-28T10:42:00 | K92: 1 | L92: None. Donation by check.
A93: 54105 | B93: EF47-000088 | C93: 25 | D93: PayPal | E93: 13 | G93: N | H93: 2019-11-22 | I93: 2020-06-28T10:45:00 | J93: 2020-06-28T10:45:00 | K93: 1 | L93: None. Donation by check.
A94: 54106 | B94: EF47-000089 | C94: 10 | D94: PayPal | E94: 1 | F94: 1963 | G94: N | H94: 2019-11-23 | I94: 2020-06-28T10:46:00 | J94: 2020-06-28T10:46:00 | K94: 1 | L94: None. Donation by check.
A95: 54107 | B95: EF47-000090 | C95: 20.09 | D95: PayPal | E95: 3 | F95: 2009 | G95: N | H95: 2019-11-23 | I95: 2020-06-28T10:48:00 | J95: 2020-06-28T10:48:00 | K95: 1 | L95: None. Donation by check.
A96: 54108 | B96: EF47-000091 | C96: 10 | D96: PayPal | E96: 2 | F96: 2016 | G96: N | H96: 2019-11-23 | I96: 2020-06-28T20:10:00 | J96: 2020-06-28T20:10:00 | K96: 1 | L96: None. Donation by check.
A97: 54109 | B97: EF47-000092 | C97: 35 | D97: PayPal | E97: 6 | F97: 1978 | G97: N | H97: 2019-11-27 | I97: 2020-06-28T20:11:00 | J97: 2020-06-28T20:11:00 | K97: 1 | L97: None. Donation by check.
A98: 54110 | B98: EF47-000093 | C98: 10 | D98: PayPal | E98: 1 | F98: 2007 | G98: N | H98: 2019-11-27 | I98: 2020-06-28T20:12:00 | J98: 2020-06-28T20:12:00 | K98: 1 | L98: None. Donation by check.
A99: 54111 | B99: EF47-000094 | C99: 20 | D99: PayPal | E99: 2 | F99: 2015 | G99: N | H99: 2019-11-28 | I99: 2020-06-28T20:14:00 | J99: 2020-06-28T20:14:00 | K99: 1 | L99: None. Donation by check.
A100: 54112 | B100: EF47-000095 | C100: 10 | D100: PayPal | E100: 1 | F100: 1986 | G100: N | H100: 2019-11-29 | I100: 2020-06-28T20:15:00 | J100: 2020-06-28T20:15:00 | K100: 1 | L100: None. Donation by check.
A101: 54113 | B101: EF47-000096 | C101: 3 | D101: PayPal | E101: 1 | F101: 1975 | G101: N | H101: 2019-12-04 | I101: 2020-06-28T20:16:00 | J101: 2020-06-28T20:16:00 | K101: 1 | L101: None. Donation by check.
A102: 54114 | B102: EF47-000097 | C102: 58 | D102: PayPal | E102: 1 | F102: 1958 | G102: N | H102: 2019-12-04 | I102: 2020-06-28T20:18:00 | J102: 2020-06-28T20:18:00 | K102: 1 | L102: None. Donation by check.
A103: 54115 | B103: EF47-000098 | C103: 20 | D103: PayPal | E103: 1 | F103: 1977 | G103: N | H103: 2019-12-05 | I103: 2020-06-28T20:19:00 | J103: 2020-06-28T20:19:00 | K103: 1 | L103: None. Donation by check.
A104: 54116 | B104: EF47-000099 | C104: 5 | D104: PayPal | E104: 1 | F104: 1978 | G104: N | H104: 2019-12-06 | I104: 2020-06-28T20:20:00 | J104: 2020-06-28T20:20:00 | K104: 1 | L104: None. Donation by check.
A105: 54117 | B105: EF47-000100 | C105: 10 | D105: PayPal | E105: 2 | F105: 2019 | G105: N | H105: 2019-12-08 | I105: 2020-06-28T20:21:00 | J105: 2020-06-28T20:21:00 | K105: 1 | L105: None. Donation by check.
A106: 54118 | B106: EF47-000101 | C106: 25 | D106: PayPal | E106: 2 | F106: 2019 | G106: N | H106: 2019-12-09 | I106: 2020-06-28T20:22:00 | J106: 2020-06-28T20:22:00 | K106: 1 | L106: None. Donation by check.
A107: 54119 | B107: EF47-000102 | C107: 10 | D107: PayPal | E107: 1 | F107: 1965 | G107: N | H107: 2019-12-11 | I107: 2020-06-28T20:23:00 | J107: 2020-06-28T20:23:00 | K107: 1 | L107: None. Donation by check.
A108: 54120 | B108: EF47-000103 | C108: 10 | D108: PayPal | E108: 1 | F108: 1981 | G108: N | H108: 2019-12-11 | I108: 2020-06-28T20:24:00 | J108: 2020-06-28T20:24:00 | K108: 1 | L108: None. Donation by check.
A109: 54121 | B109: EF47-000104 | C109: 25 | D109: PayPal | E109: 1 | F109: 2005 | G109: N | H109: 2019-12-14 | I109: 2020-06-28T20:25:00 | J109: 2020-06-28T20:25:00 | K109: 1 | L109: None. Donation by check.
A110: 54122 | B110: EF47-000105 | C110: 10 | D110: PayPal | E110: 1 | F110: 1966 | G110: N | H110: 2019-12-15 | I110: 2020-06-28T20:27:00 | J110: 2020-06-28T20:27:00 | K110: 1 | L110: None. Donation by check.
A111: 54123 | B111: EF47-000106 | C111: 5 | D111: PayPal | E111: 2 | F111: 2011 | G111: N | H111: 2019-12-20 | I111: 2020-06-28T20:28:00 | J111: 2020-06-28T20:28:00 | K111: 1 | L111: None. Donation by check.
A112: 54124 | B112: EF47-000107 | C112: 20.09 | D112: PayPal | E112: 3 | F112: 2009 | G112: N | H112: 2019-12-23 | I112: 2020-06-28T20:29:00 | J112: 2020-06-28T20:29:00 | K112: 1 | L112: None. Donation by check.
A113: 54125 | B113: EF47-000108 | C113: 10 | D113: PayPal | E113: 2 | F113: 2016 | G113: N | H113: 2019-12-23 | I113: 2020-06-28T20:30:00 | J113: 2020-06-28T20:30:00 | K113: 1 | L113: None. Donation by check.
A114: 54126 | B114: EF47-000109 | C114: 10 | D114: PayPal | E114: 1 | F114: 1963 | G114: N | H114: 2019-12-23 | I114: 2020-06-28T20:31:00 | J114: 2020-06-28T20:31:00 | K114: 1 | L114: None. Donation by check.
A115: 54127 | B115: EF47-000110 | C115: 35 | D115: PayPal | E115: 6 | F115: 1978 | G115: N | H115: 2019-12-27 | I115: 2020-06-28T20:32:00 | J115: 2020-06-28T20:32:00 | K115: 1 | L115: None. Donation by check.
A116: 54128 | B116: EF47-000111 | C116: 10 | D116: PayPal | E116: 1 | F116: 2007 | G116: N | H116: 2019-12-27 | I116: 2020-06-28T20:33:00 | J116: 2020-06-28T20:33:00 | K116: 1 | L116: None. Donation by check.
A117: 54129 | B117: EF47-000112 | C117: 20 | D117: PayPal | E117: 2 | F117: 2015 | G117: N | H117: 2019-12-28 | I117: 2020-06-28T20:34:00 | J117: 2020-06-28T20:34:00 | K117: 1 | L117: None. Donation by check.
A118: 54130 | B118: EF47-000113 | C118: 10 | D118: PayPal | E118: 1 | F118: 1986 | G118: N | H118: 2019-12-29 | I118: 2020-06-28T20:35:00 | J118: 2020-06-28T20:35:00 | K118: 1 | L118: None. Donation by check.
A119: 54131 | B119: EF47-000114 | C119: 3 | D119: PayPal | E119: 1 | F119: 1975 | G119: N | H119: 2020-01-04 | I119: 2020-06-28T20:36:00 | J119: 2020-06-28T20:36:00 | K119: 1 | L119: None. Donation by check.
A120: 54132 | B120: EF47-000115 | C120: 58 | D120: PayPal | E120: 1 | F120: 1958 | G120: N | H120: 2020-01-04 | I120: 2020-06-28T20:38:00 | J120: 2020-06-28T20:38:00 | K120: 1 | L120: None. Donation by check.
A121: 54133 | B121: EF47-000116 | C121: 20 | D121: PayPal | E121: 1 | F121: 1977 | G121: N | H121: 2020-01-05 | I121: 2020-06-28T20:39:00 | J121: 2020-06-28T20:39:00 | K121: 1 | L121: None. Donation by check.
A122: 54134 | B122: EF47-000117 | C122: 5 | D122: PayPal | E122: 1 | F122: 1978 | G122: N | H122: 2020-01-06 | I122: 2020-06-28T20:40:00 | J122: 2020-06-28T20:40:00 | K122: 1 | L122: None. Donation by check.
A123: 54135 | B123: EF47-000118 | C123: 10 | D123: PayPal | E123: 2 | F123: 2019 | G123: N | H123: 2020-01-08 | I123: 2020-06-28T20:41:00 | J123: 2020-06-28T20:41:00 | K123: 1 | L123: None. Donation by check.
A124: 54136 | B124: EF47-000119 | C124: 25 | D124: PayPal | E124: 2 | F124: 2019 | G124: N | H124: 2020-01-09 | I124: 2020-06-28T20:42:00 | J124: 2020-06-28T20:42:00 | K124: 1 | L124: None. Donation by check.
A125: 54137 | B125: EF47-000120 | C125: 10 | D125: PayPal | E125: 1 | F125: 1965 | G125: N | H125: 2020-01-11 | I125: 2020-06-28T20:43:00 | J125: 2020-06-28T20:43:00 | K125: 1 | L125: None. Donation by check.
A126: 54138 | B126: EF47-000121 | C126: 10 | D126: PayPal | E126: 1 | F126: 1981 | G126: N | H126: 2020-01-11 | I126: 2020-06-28T20:55:00 | J126: 2020-06-28T20:55:00 | K126: 1 | L126: None. Donation by check.
A127: 54139 | B127: EF47-000122 | C127: 25 | D127: PayPal | E127: 1 | F127: 2005 | G127: N | H127: 2020-01-14 | I127: 2020-06-28T20:56:00 | J127: 2020-06-28T20:56:00 | K127: 1 | L127: None. Donation by check.
A128: 54140 | B128: EF47-000123 | C128: 10 | D128: PayPal | E128: 1 | F128: 1966 | G128: N | H128: 2020-01-15 | I128: 2020-06-28T20:57:00 | J128: 2020-06-28T20:57:00 | K128: 1 | L128: None. Donation by check.
A129: 54141 | B129: EF47-000124 | C129: 5 | D129: PayPal | E129: 2 | F129: 2011 | G129: N | H129: 2020-01-20 | I129: 2020-06-28T20:58:00 | J129: 2020-06-28T20:58:00 | K129: 1 | L129: None. Donation by check.
A130: 54142 | B130: EF47-000125 | C130: 10 | D130: PayPal | E130: 2 | F130: 2016 | G130: N | H130: 2020-01-23 | I130: 2020-06-28T20:59:00 | J130: 2020-06-28T20:59:00 | K130: 1 | L130: None. Donation by check.
A131: 54143 | B131: EF47-000126 | C131: 20.09 | D131: PayPal | E131: 3 | F131: 2009 | G131: N | H131: 2020-01-23 | I131: 2020-06-28T21:00:00 | J131: 2020-06-28T21:00:00 | K131: 1 | L131: None. Donation by check.
A132: 54144 | B132: EF47-000127 | C132: 10 | D132: PayPal | E132: 1 | F132: 1963 | G132: N | H132: 2020-01-23 | I132: 2020-06-28T21:01:00 | J132: 2020-06-28T21:01:00 | K132: 1 | L132: None. Donation by check.
A133: 54145 | B133: EF47-000128 | C133: 10 | D133: PayPal | E133: 1 | F133: 2007 | G133: N | H133: 2020-01-27 | I133: 2020-06-28T21:02:00 | J133: 2020-06-28T21:02:00 | K133: 1 | L133: None. Donation by check.
A134: 54146 | B134: EF47-000129 | C134: 35 | D134: PayPal | E134: 6 | F134: 1978 | G134: N | H134: 2020-01-27 | I134: 2020-06-28T21:03:00 | J134: 2020-06-28T21:03:00 | K134: 1 | L134: None. Donation by check.
A135: 54147 | B135: EF47-000130 | C135: 20 | D135: PayPal | E135: 2 | F135: 2015 | G135: N | H135: 2020-01-28 | I135: 2020-06-28T21:04:00 | J135: 2020-06-28T21:04:00 | K135: 1 | L135: None. Donation by check.
A136: 54148 | B136: EF47-000131 | C136: 10 | D136: PayPal | E136: 1 | F136: 1986 | G136: N | H136: 2020-01-29 | I136: 2020-06-28T21:05:00 | J136: 2020-06-28T21:05:00 | K136: 1 | L136: None. Donation by check.
A137: 54149 | B137: EF47-000132 | C137: 3 | D137: PayPal | E137: 1 | F137: 1975 | G137: N | H137: 2020-02-04 | I137: 2020-06-28T21:05:00 | J137: 2020-06-28T21:05:00 | K137: 1 | L137: None. Donation by check.
A138: 54150 | B138: EF47-000133 | C138: 58 | D138: PayPal | E138: 1 | F138: 1958 | G138: N | H138: 2020-02-04 | I138: 2020-06-28T21:06:00 | J138: 2020-06-28T21:06:00 | K138: 1 | L138: None. Donation by check.
A139: 54151 | B139: EF47-000134 | C139: 20 | D139: PayPal | E139: 1 | F139: 1977 | G139: N | H139: 2020-02-05 | I139: 2020-06-28T21:07:00 | J139: 2020-06-28T21:07:00 | K139: 1 | L139: None. Donation by check.
A140: 54152 | B140: EF47-000135 | C140: 5 | D140: PayPal | E140: 1 | F140: 1978 | G140: N | H140: 2020-02-06 | I140: 2020-06-28T21:08:00 | J140: 2020-06-28T21:08:00 | K140: 1 | L140: None. Donation by check.
A141: 54153 | B141: EF47-000136 | C141: 25 | D141: PayPal | E141: 2 | F141: 2019 | G141: N | H141: 2020-02-09 | I141: 2020-06-28T21:09:00 | J141: 2020-06-28T21:09:00 | K141: 1 | L141: None. Donation by check.
A142: 54154 | B142: EF47-000137 | C142: 10 | D142: PayPal | E142: 2 | F142: 2019 | G142: N | H142: 2020-02-08 | I142: 2020-06-28T21:12:00 | J142: 2020-06-28T21:12:00 | K142: 1 | L142: None. Donation by check.
A143: 54155 | B143: EF47-000138 | C143: 10 | D143: PayPal | E143: 1 | F143: 1981 | G143: N | H143: 2020-02-11 | I143: 2020-06-28T21:13:00 | J143: 2020-06-28T21:13:00 | K143: 1 | L143: None. Donation by check.
A144: 54156 | B144: EF47-000139 | C144: 10 | D144: PayPal | E144: 1 | F144: 1965 | G144: N | H144: 2020-02-11 | I144: 2020-06-28T21:15:00 | J144: 2020-06-28T21:15:00 | K144: 1 | L144: None. Donation by check.
A145: 54157 | B145: EF47-000140 | C145: 25 | D145: PayPal | E145: 1 | F145: 2005 | G145: N | H145: 2020-02-14 | I145: 2020-06-28T21:16:00 | J145: 2020-06-28T21:16:00 | K145: 1 | L145: None. Donation by check.
A146: 54158 | B146: EF47-000141 | C146: 10 | D146: PayPal | E146: 1 | F146: 1966 | G146: N | H146: 2020-02-15 | I146: 2020-06-28T21:17:00 | J146: 2020-06-28T21:17:00 | K146: 1 | L146: None. Donation by check.
A147: 54159 | B147: EF47-000142 | C147: 5 | D147: PayPal | E147: 2 | F147: 2011 | G147: N | H147: 2020-02-20 | I147: 2020-06-28T21:18:00 | J147: 2020-06-28T21:18:00 | K147: 1 | L147: None. Donation by check.
A148: 54160 | B148: EF47-000143 | C148: 10 | D148: PayPal | E148: 1 | F148: 1963 | G148: N | H148: 2020-02-23 | I148: 2020-06-28T21:19:00 | J148: 2020-06-28T21:19:00 | K148: 1 | L148: None. Donation by check.
A149: 54161 | B149: EF47-000144 | C149: 10 | D149: PayPal | E149: 2 | F149: 2016 | G149: N | H149: 2020-02-23 | I149: 2020-06-28T21:20:00 | J149: 2020-06-28T21:20:00 | K149: 1 | L149: None. Donation by check.
A150: 54162 | B150: EF47-000145 | C150: 20.09 | D150: PayPal | E150: 3 | F150: 2009 | G150: N | H150: 2020-02-23 | I150: 2020-06-28T21:21:00 | J150: 2020-06-28T21:21:00 | K150: 1 | L150: None. Donation by check.
A151: 54163 | B151: EF47-000146 | C151: 35 | D151: PayPal | E151: 6 | F151: 1978 | G151: N | H151: 2020-02-27 | I151: 2020-06-28T21:22:00 | J151: 2020-06-28T21:22:00 | K151: 1 | L151: None. Donation by check.
A152: 54164 | B152: EF47-000147 | C152: 10 | D152: PayPal | E152: 1 | F152: 2007 | G152: N | H152: 2020-02-27 | I152: 2020-06-28T21:23:00 | J152: 2020-06-28T21:23:00 | K152: 1 | L152: None. Donation by check.
A153: 54165 | B153: EF47-000148 | C153: 20 | D153: PayPal | E153: 2 | F153: 2015 | G153: N | H153: 2020-02-28 | I153: 2020-06-28T21:24:00 | J153: 2020-06-28T21:24:00 | K153: 1 | L153: None. Donation by check.
A154: 54166 | B154: EF47-000149 | C154: 10 | D154: PayPal | E154: 1 | F154: 1986 | G154: N | H154: 2020-02-29 | I154: 2020-06-28T21:25:00 | J154: 2020-06-28T21:25:00 | K154: 1 | L154: None. Donation by check.
A155: 54167 | B155: EF47-000150 | C155: 3 | D155: PayPal | E155: 1 | F155: 1975 | G155: N | H155: 2020-03-04 | I155: 2020-06-28T21:26:00 | J155: 2020-06-28T21:26:00 | K155: 1 | L155: None. Donation by check.
A156: 54168 | B156: EF47-000151 | C156: 58 | D156: PayPal | E156: 1 | F156: 1958 | G156: N | H156: 2020-03-04 | I156: 2020-06-28T21:27:00 | J156: 2020-06-28T21:27:00 | K156: 1 | L156: None. Donation by check.
A157: 54169 | B157: EF47-000152 | C157: 20 | D157: PayPal | E157: 1 | F157: 1977 | G157: N | H157: 2020-03-05 | I157: 2020-06-28T21:27:00 | J157: 2020-06-28T21:27:00 | K157: 1 | L157: None. Donation by check.
A158: 54170 | B158: EF47-000153 | C158: 5 | D158: PayPal | E158: 1 | F158: 1978 | G158: N | H158: 2020-03-06 | I158: 2020-06-28T21:28:00 | J158: 2020-06-28T21:28:00 | K158: 1 | L158: None. Donation by check.
A159: 54171 | B159: EF47-000154 | C159: 10 | D159: PayPal | E159: 2 | F159: 2019 | G159: N | H159: 2020-03-08 | I159: 2020-06-28T21:29:00 | J159: 2020-06-28T21:29:00 | K159: 1 | L159: None. Donation by check.
A160: 54172 | B160: EF47-000155 | C160: 25 | D160: PayPal | E160: 2 | F160: 2019 | G160: N | H160: 2020-03-09 | I160: 2020-06-28T21:30:00 | J160: 2020-06-28T21:30:00 | K160: 1 | L160: None. Donation by check.
A161: 54173 | B161: EF47-000156 | C161: 10 | D161: PayPal | E161: 1 | F161: 1981 | G161: N | H161: 2020-03-11 | I161: 2020-06-28T21:32:00 | J161: 2020-06-28T21:32:00 | K161: 1 | L161: None. Donation by check.
A162: 54174 | B162: EF47-000157 | C162: 10 | D162: PayPal | E162: 1 | F162: 1965 | G162: N | H162: 2020-03-11 | I162: 2020-06-28T21:32:00 | J162: 2020-06-28T21:32:00 | K162: 1 | L162: None. Donation by check.
A163: 54175 | B163: EF47-000158 | C163: 25 | D163: PayPal | E163: 1 | F163: 2005 | G163: N | H163: 2020-03-14 | I163: 2020-06-28T21:33:00 | J163: 2020-06-28T21:33:00 | K163: 1 | L163: None. Donation by check.
A164: 54176 | B164: EF47-000159 | C164: 10 | D164: PayPal | E164: 1 | F164: 1966 | G164: N | H164: 2020-03-15 | I164: 2020-06-28T21:34:00 | J164: 2020-06-28T21:34:00 | K164: 1 | L164: None. Donation by check.
A165: 54177 | B165: EF47-000160 | C165: 5 | D165: PayPal | E165: 2 | F165: 2011 | G165: N | H165: 2020-03-20 | I165: 2020-06-28T21:35:00 | J165: 2020-06-28T21:35:00 | K165: 1 | L165: None. Donation by check.
A166: 54178 | B166: EF47-000161 | C166: 10 | D166: PayPal | E166: 2 | F166: 2016 | G166: N | H166: 2020-03-23 | I166: 2020-06-28T21:39:00 | J166: 2020-06-28T21:39:00 | K166: 1 | L166: None. Donation by check.
A167: 54179 | B167: EF47-000162 | C167: 20.09 | D167: PayPal | E167: 3 | F167: 2009 | G167: N | H167: 2020-03-23 | I167: 2020-06-28T21:40:00 | J167: 2020-06-28T21:40:00 | K167: 1 | L167: None. Donation by check.
A168: 54180 | B168: EF47-000163 | C168: 10 | D168: PayPal | E168: 1 | F168: 1963 | G168: N | H168: 2020-03-23 | I168: 2020-06-28T21:40:00 | J168: 2020-06-28T21:40:00 | K168: 1 | L168: None. Donation by check.
A169: 54181 | B169: EF47-000164 | C169: 10 | D169: PayPal | E169: 1 | F169: 2007 | G169: N | H169: 2020-03-27 | I169: 2020-06-28T21:42:00 | J169: 2020-06-28T21:42:00 | K169: 1 | L169: None. Donation by check.
A170: 54182 | B170: EF47-000165 | C170: 35 | D170: PayPal | E170: 6 | F170: 1978 | G170: N | H170: 2020-03-27 | I170: 2020-06-28T21:43:00 | J170: 2020-06-28T21:43:00 | K170: 1 | L170: None. Donation by check.
A171: 54183 | B171: EF47-000166 | C171: 20 | D171: PayPal | E171: 2 | F171: 2015 | G171: N | H171: 2020-03-28 | I171: 2020-06-28T21:44:00 | J171: 2020-06-28T21:44:00 | K171: 1 | L171: None. Donation by check.
A172: 54184 | B172: EF47-000167 | C172: 10 | D172: PayPal | E172: 1 | F172: 1986 | G172: N | H172: 2020-03-29 | I172: 2020-06-28T21:46:00 | J172: 2020-06-28T21:46:00 | K172: 1 | L172: None. Donation by check.
A173: 54185 | B173: EF47-000168 | C173: 3 | D173: PayPal | E173: 1 | F173: 1975 | G173: N | H173: 2020-04-04 | I173: 2020-06-28T21:47:00 | J173: 2020-06-28T21:47:00 | K173: 1 | L173: None. Donation by check.
A174: 54186 | B174: EF47-000169 | C174: 58 | D174: PayPal | E174: 1 | F174: 1958 | G174: N | H174: 2020-04-04 | I174: 2020-06-28T21:48:00 | J174: 2020-06-28T21:48:00 | K174: 1 | L174: None. Donation by check.
A175: 54187 | B175: EF47-000170 | C175: 20 | D175: PayPal | E175: 1 | F175: 1977 | G175: N | H175: 2020-04-05 | I175: 2020-06-28T21:49:00 | J175: 2020-06-28T21:49:00 | K175: 1 | L175: None. Donation by check.
A176: 54188 | B176: EF47-000171 | C176: 5 | D176: PayPal | E176: 1 | F176: 1978 | G176: N | H176: 2020-04-06 | I176: 2020-06-28T21:56:00 | J176: 2020-06-28T21:56:00 | K176: 1 | L176: None. Donation by check.
A177: 54189 | B177: EF47-000172 | C177: 10 | D177: PayPal | E177: 2 | F177: 2019 | G177: N | H177: 2020-04-08 | I177: 2020-06-28T21:56:00 | J177: 2020-06-28T21:56:00 | K177: 1 | L177: None. Donation by check.
A178: 54190 | B178: EF47-000173 | C178: 10 | D178: PayPal | E178: 1 | F178: 1965 | G178: N | H178: 2020-04-11 | I178: 2020-06-28T21:57:00 | J178: 2020-06-28T21:57:00 | K178: 1 | L178: None. Donation by check.
A179: 54191 | B179: EF47-000174 | C179: 10 | D179: PayPal | E179: 1 | F179: 1981 | G179: N | H179: 2020-04-11 | I179: 2020-06-28T21:58:00 | J179: 2020-06-28T21:58:00 | K179: 1 | L179: None. Donation by check.
A180: 54192 | B180: EF47-000175 | C180: 25 | D180: PayPal | E180: 1 | F180: 2005 | G180: N | H180: 2020-04-14 | I180: 2020-06-28T21:59:00 | J180: 2020-06-28T21:59:00 | K180: 1 | L180: None. Donation by check.
A181: 54193 | B181: EF47-000176 | C181: 10 | D181: PayPal | E181: 1 | F181: 1966 | G181: N | H181: 2020-04-15 | I181: 2020-06-28T22:00:00 | J181: 2020-06-28T22:00:00 | K181: 1 | L181: None. Donation by check.
A182: 54194 | B182: EF47-000177 | C182: 5 | D182: PayPal | E182: 2 | F182: 2011 | G182: N | H182: 2020-04-20 | I182: 2020-06-28T22:01:00 | J182: 2020-06-28T22:01:00 | K182: 1 | L182: None. Donation by check.
A183: 54195 | B183: EF47-000178 | C183: 10 | D183: PayPal | E183: 2 | F183: 2016 | G183: N | H183: 2020-04-23 | I183: 2020-06-28T22:01:00 | J183: 2020-06-28T22:01:00 | K183: 1 | L183: None. Donation by check.
A184: 54196 | B184: EF47-000179 | C184: 10 | D184: PayPal | E184: 1 | F184: 1963 | G184: N | H184: 2020-04-23 | I184: 2020-06-28T22:02:00 | J184: 2020-06-28T22:02:00 | K184: 1 | L184: None. Donation by check.
A185: 54197 | B185: EF47-000180 | C185: 20.09 | D185: PayPal | E185: 3 | F185: 2009 | G185: N | H185: 2020-04-23 | I185: 2020-06-28T22:03:00 | J185: 2020-06-28T22:03:00 | K185: 1 | L185: None. Donation by check.
A186: 54198 | B186: EF47-000181 | C186: 35 | D186: PayPal | E186: 6 | F186: 1978 | G186: N | H186: 2020-04-27 | I186: 2020-06-28T22:04:00 | J186: 2020-06-28T22:04:00 | K186: 1 | L186: None. Donation by check.
A187: 54199 | B187: EF47-000182 | C187: 10 | D187: PayPal | E187: 1 | F187: 2007 | G187: N | H187: 2020-04-27 | I187: 2020-06-28T22:06:00 | J187: 2020-06-28T22:06:00 | K187: 1 | L187: None. Donation by check.
A188: 54200 | B188: EF47-000183 | C188: 20 | D188: PayPal | E188: 2 | F188: 2015 | G188: N | H188: 2020-04-28 | I188: 2020-06-28T22:07:00 | J188: 2020-06-28T22:07:00 | K188: 1 | L188: None. Donation by check.
A189: 54201 | B189: EF47-000184 | C189: 10 | D189: PayPal | E189: 1 | F189: 1986 | G189: N | H189: 2020-04-29 | I189: 2020-06-28T22:11:00 | J189: 2020-06-28T22:11:00 | K189: 1 | L189: None. Donation by check.
A190: 54202 | B190: EF47-000185 | C190: 3 | D190: PayPal | E190: 1 | F190: 1975 | G190: N | H190: 2020-05-04 | I190: 2020-06-28T22:12:00 | J190: 2020-06-28T22:12:00 | K190: 1 | L190: None. Donation by check.
A191: 54203 | B191: EF47-000186 | C191: 20 | D191: PayPal | E191: 1 | F191: 1977 | G191: N | H191: 2020-05-05 | I191: 2020-06-28T22:13:00 | J191: 2020-06-28T22:13:00 | K191: 1 | L191: None. Donation by check.
A192: 54204 | B192: EF47-000187 | C192: 5 | D192: PayPal | E192: 1 | F192: 1978 | G192: N | H192: 2020-05-06 | I192: 2020-06-28T22:20:00 | J192: 2020-06-28T22:20:00 | K192: 1 | L192: None. Donation by check.
A193: 54205 | B193: EF47-000188 | C193: 10 | D193: PayPal | E193: 2 | F193: 2019 | G193: N | H193: 2020-05-08 | I193: 2020-06-28T22:21:00 | J193: 2020-06-28T22:21:00 | K193: 1 | L193: None. Donation by check.
A194: 54206 | B194: EF47-000189 | C194: 58 | D194: PayPal | E194: 1 | F194: 1958 | G194: N | H194: 2020-05-09 | I194: 2020-06-28T22:23:00 | J194: 2020-06-28T22:23:00 | K194: 1 | L194: None. Donation by check.
A195: 54207 | B195: EF47-000190 | C195: 10 | D195: PayPal | E195: 1 | F195: 1965 | G195: N | H195: 2020-05-11 | I195: 2020-06-28T22:24:00 | J195: 2020-06-28T22:24:00 | K195: 1 | L195: None. Donation by check.
A196: 54208 | B196: EF47-000191 | C196: 10 | D196: PayPal | E196: 1 | F196: 1981 | G196: N | H196: 2020-05-11 | I196: 2020-06-28T22:25:00 | J196: 2020-06-28T22:25:00 | K196: 1 | L196: None. Donation by check.
A197: 54209 | B197: EF47-000192 | C197: 25 | D197: PayPal | E197: 1 | F197: 2005 | G197: N | H197: 2020-05-14 | I197: 2020-06-28T22:26:00 | J197: 2020-06-28T22:26:00 | K197: 1 | L197: None. Donation by check.
A198: 54210 | B198: EF47-000193 | C198: 10 | D198: PayPal | E198: 1 | F198: 1966 | G198: N | H198: 2020-05-15 | I198: 2020-06-28T22:26:00 | J198: 2020-06-28T22:26:00 | K198: 1 | L198: None. Donation by check.
A199: 54211 | B199: EF47-000194 | C199: 5 | D199: PayPal | E199: 2 | F199: 2011 | G199: N | H199: 2020-05-20 | I199: 2020-06-28T22:27:00 | J199: 2020-06-28T22:27:00 | K199: 1 | L199: None. Donation by check.
A200: 54212 | B200: EF47-000195 | C200: 10 | D200: PayPal | E200: 2 | F200: 2016 | G200: N | H200: 2020-05-23 | I200: 2020-06-28T22:28:00 | J200: 2020-06-28T22:28:00 | K200: 1 | L200: None. Donation by check.
... 769 more rows

Sheet Sheet11 (hidden)
A1: 1
A2: 2
A3: 3
A4: 4
A5: 5
A6: 6
A7: 7
A8: 8
A9: 9
A10: 10
A11: 11
A12: 12
A13: 13
A14: 14
A15: 15
A16: 16
A17: 17
A18: 18
A19: 19
A20: 20
A21: 21
A22: 22
A23: 23
A24: 24
A25: 25
A26: 26
A27: 27
A28: 28
A29: 29
A30: 30
A31: 31
A32: 32
A33: 33
A34: 34
A35: 35
A36: 36
A37: 37
A38: 38
A39: 39
A40: 40
A41: 41
A42: 42
A43: 43
A44: 44
A45: 45
A46: 46
A47: 47
A48: 48
A49: 49
A50: 50
A51: 51
A52: 52
A53: 53
A54: 54
A55: 55
A56: 56
A57: 57
A58: 58
A59: 59
A60: 60
A61: 61
A62: 62
